Body Name,Service Area,Expenses Type,Invoice Payment Date,Transaction Number,Net Amount,Supplier Name
Manchester City Council,Regeneration Finance,Rents,01.11.2018,1906252738,"86,347.34",Regus Management (UK) Ltd
Manchester City Council,Adult Social Care,Third party payments relating to Voluntary Organisations,01.11.2018,5101003168,"75,123.50",The Big Life Company
Manchester City Council,Adult Social Care,Rents,01.11.2018,5101003216,"67,835.62",T15 Consultancy Ltd
Manchester City Council,Housing General Fund,Works and associated costs for Land and Buildings,01.11.2018,5101003192,"18,914.09",Homes England
Manchester City Council,Adult Social Care,Professional fees,01.11.2018,1906247596,"11,000.00",SCI Assessments Ltd.
Manchester City Council,Adult Social Care,Payments for services,01.11.2018,5100981619,"8,575.00",Delphi Medical
Manchester City Council,Adult Social Care,Third party payments relating to Voluntary Organisations,01.11.2018,5101003181,"8,410.50",People First Housing Association
Manchester City Council,Manchester Leisure,Electricity,01.11.2018,1906252736,"7,716.73",Npower
Manchester City Council,Manchester Leisure,Electricity,01.11.2018,1906252737,"7,357.09",Npower
Manchester City Council,Manchester Leisure,Electricity,01.11.2018,1906252735,"6,894.18",Npower
Manchester City Council,Regeneration Finance,Subsistence and Conference Expenses,01.11.2018,5101003200,"6,439.67",The Mechanics Centre Ltd
Manchester City Council,Corporate Services,Legal Fees,01.11.2018,5101003190,"6,262.00",Mourant Ozannes
Manchester City Council,Adult Social Care,Supporting People Payments,01.11.2018,5101003166,"4,592.16",People First Housing Association
Manchester City Council,Adult Social Care,Supporting People Payments,01.11.2018,5101003180,"4,592.16",People First Housing Association
Manchester City Council,Regeneration Finance,Professional fees,01.11.2018,1906246191,"4,436.00",Savills (UK) Ltd
Manchester City Council,Corporate Services,Legal Fees,01.11.2018,5101003190,"3,738.00",Mourant Ozannes
Manchester City Council,Regeneration Finance,Printing,01.11.2018,5101003170,"2,769.00",VIP-System Ltd
Manchester City Council,Housing Revenue Account,Rents,01.11.2018,5101003204,"1,549.37",M J Mapp
Manchester City Council,Manchester Leisure,Catering,01.11.2018,5101003226,"1,396.80",Manchester Central
Manchester City Council,Adult Social Care,Professional fees,01.11.2018,1906247646,"1,375.00",Redacted Personal Information
Manchester City Council,Chief Executives,Professional fees,01.11.2018,5101003177,"1,000.00",The Jamaica Society Manchester
Manchester City Council,Hospitality + Trading Services,Catering Provisions,01.11.2018,1906252776,728.51,Brake Bros Foodservice Ltd
Manchester City Council,Hospitality + Trading Services,Catering Provisions,01.11.2018,1906252817,727.70,Brake Bros Foodservice Ltd
Manchester City Council,Hospitality + Trading Services,Catering Provisions,01.11.2018,1906252814,695.87,Brake Bros Foodservice Ltd
Manchester City Council,Hospitality + Trading Services,Catering Provisions,01.11.2018,1906252815,641.35,Brake Bros Foodservice Ltd
Manchester City Council,Hospitality + Trading Services,Catering Provisions,01.11.2018,1906252811,617.36,Brake Bros Foodservice Ltd
Manchester City Council,Hospitality + Trading Services,Catering Provisions,01.11.2018,1906252807,593.72,Brake Bros Foodservice Ltd
Manchester City Council,Hospitality + Trading Services,Catering Provisions,01.11.2018,1906252790,581.81,Brake Bros Foodservice Ltd
Manchester City Council,Hospitality + Trading Services,Catering Provisions,01.11.2018,1906252797,579.49,Brake Bros Foodservice Ltd
Manchester City Council,Hospitality + Trading Services,Catering Provisions,01.11.2018,1906252791,570.86,Brake Bros Foodservice Ltd
Manchester City Council,Hospitality + Trading Services,Catering Provisions,01.11.2018,1906252796,548.64,Brake Bros Foodservice Ltd
Manchester City Council,Hospitality + Trading Services,Catering Provisions,01.11.2018,1906252779,537.97,Brake Bros Foodservice Ltd
Manchester City Council,Hospitality + Trading Services,Catering Provisions,01.11.2018,1906252774,533.58,Brake Bros Foodservice Ltd
Manchester City Council,Hospitality + Trading Services,Catering Provisions,01.11.2018,1906252813,529.28,Brake Bros Foodservice Ltd
Manchester City Council,Hospitality + Trading Services,Catering Provisions,01.11.2018,1906252780,509.06,Brake Bros Foodservice Ltd
Manchester City Council,Adult Social Care,Third party payments relating to Voluntary Organisations,01.11.2018,5101003167,"-75,123.50",The Big Life Company
Manchester City Council,Corporate Services,Long Term Debtors,02.11.2018,5101003265,"1,462,386.00",Manchester New Square Partnership
Manchester City Council,Corporate Services,Long Term Debtors,02.11.2018,5101003462,"226,312.45",Blue Dog Property 2 Ltd
Manchester City Council,Regeneration Finance,Internal Repairs and Maintenance for buildings,02.11.2018,5101003318,"43,222.10",Manchester Working Ltd
Manchester City Council,Manchester Leisure,Professional fees,02.11.2018,5101003186,"37,803.69",The Sports Presentation Company
Manchester City Council,Manchester Leisure,Professional fees,02.11.2018,1906253320,"23,424.69",ATP INTERNATIONAL INC
Manchester City Council,Manchester Leisure,I T Provision,02.11.2018,5101003273,"18,692.00",Biblioteca Ltd.
Manchester City Council,Chief Executives,Grant and subscriptions awarded,02.11.2018,5101003275,"15,000.00",Wythenshawe Community Housing Group
Manchester City Council,Corporate Services,Works and associated costs for Land and Buildings,02.11.2018,5101003272,"14,897.45",Manchester Working Ltd
Manchester City Council,Regeneration Finance,Preventative Maintenance Work,02.11.2018,5101003320,"12,083.49",Manchester Working Ltd
Manchester City Council,Manchester Leisure,Payments to Sub-Contractors,02.11.2018,5101003489,"12,000.00",Clean-Up UK Limited
Manchester City Council,Adult Social Care,Bed and Breakfast Accommodation Expenditure,02.11.2018,5101003266,"10,485.00",Redacted Personal Information
Manchester City Council,Regeneration Finance,Contract Cleaning External,02.11.2018,5101003251,"6,887.08",Mitie Cleaning & Environmental
Manchester City Council,Housing Revenue Account,Professional fees,02.11.2018,5101003261,"6,292.50",Roger Hannah & Co
Manchester City Council,Regeneration Finance,Rents,02.11.2018,1906252731,"6,060.03",Regus Management (UK) Ltd
Manchester City Council,Adult Social Care,Rents,02.11.2018,5101003334,"6,038.68",Eeven Homes Ltd.
Manchester City Council,Adult Social Care,Foster Payments,02.11.2018,1906253267,"5,705.85",Redacted Personal Information
Manchester City Council,Adult Social Care,Personal needs of client,02.11.2018,1906253265,"5,677.42",STEFFAS AND ASSOCIATES
Manchester City Council,Adult Social Care,Training and Development,02.11.2018,5101003285,"5,625.00",University Of Salford
Manchester City Council,Highways Services,Compensation Payments,02.11.2018,1906247754,"5,469.00",Law Room Solicitors
Manchester City Council,Chief Executives,ICT Support & Maintenance,02.11.2018,5101003082,"4,500.00",Modern Mindset Ltd
Manchester City Council,Hospitality + Trading Services,Tyres and Tubes,02.11.2018,5101003306,"3,599.48",ATS Euromaster Limited
Manchester City Council,Manchester Leisure,Payments for services,02.11.2018,5101003262,"3,463.93",Greenwich Leisure Limited
Manchester City Council,Hospitality + Trading Services,Refuse Collection,02.11.2018,5101003479,"3,289.82",Glasdon U.K. Limited
Manchester City Council,Manchester Leisure,Professional fees,02.11.2018,5101003187,"3,000.00",247.TV Ltd
Manchester City Council,Regeneration Finance,External repairs and maintenance for buildings,02.11.2018,5101003317,"2,874.15",Manchester Working Ltd
Manchester City Council,Manchester Leisure,Rodent and Pest Control,02.11.2018,5101003262,"2,630.60",Greenwich Leisure Limited
Manchester City Council,Corporate Services,Professional fees,02.11.2018,5101003233,"2,500.00",Thomson Associates
Manchester City Council,Chief Executives,Agency staff provision,02.11.2018,5101003309,"1,944.00",Ashberry Recruitment Ltd
Manchester City Council,Adult Social Care,Third party payments to other Local Authorities,02.11.2018,5101003302,"1,812.00",Cygnet (NW) Ltd
Manchester City Council,Housing Revenue Account,Supporting People Payments,02.11.2018,5101003327,"1,538.46",Northwards Housing Limited
Manchester City Council,Adult Social Care,Supporting People Payments,02.11.2018,5101003279,"1,392.05",Wythenshawe Community Housing Group
Manchester City Council,Corporate Services,Works and associated costs for Land and Buildings,02.11.2018,5101003342,"1,375.00",Jane Simpson Access Ltd
Manchester City Council,Adult Social Care,Third party payments to other Local Authorities,02.11.2018,5101003304,"1,359.00",Cygnet (NW) Ltd
Manchester City Council,Adult Social Care,Transport Coach Hire,02.11.2018,5101003287,"1,350.00",Connect Cars Ltd
Manchester City Council,Corporate Services,Welfare Provision Service Awards,02.11.2018,5101003414,"1,241.23",The Furnishing Service Ltd
Manchester City Council,Manchester Leisure,Payments for services,02.11.2018,5101003269,"1,175.00",Dance and Fitness Agency Ltd
Manchester City Council,Chief Executives,Hire of Equipment,02.11.2018,5101003057,"1,119.51",Xerox Finance Ltd
Manchester City Council,Hospitality + Trading Services,Hire of Machinery,02.11.2018,5101003322,"1,038.50",R & M Developments Ltd
Manchester City Council,Housing Revenue Account,Council Dwelling Adaptations,02.11.2018,5101003357,"1,023.64",Rixonway Kitchens Limited
Manchester City Council,Hospitality + Trading Services,Hire of Machinery,02.11.2018,5101003319,"1,012.50",R & M Developments Ltd
Manchester City Council,Hospitality + Trading Services,Hire of Machinery,02.11.2018,5101003323,"1,012.50",R & M Developments Ltd
Manchester City Council,Chief Executives,Advertising,02.11.2018,5101003350,995.00,Moonscape Media Ltd
Manchester City Council,Corporate Services,Welfare Provision Service Awards,02.11.2018,5101003424,962.00,The Furnishing Service Ltd
Manchester City Council,Corporate Services,Welfare Provision Service Awards,02.11.2018,5101003429,928.36,The Furnishing Service Ltd
Manchester City Council,Chief Executives,Advertising,02.11.2018,5101003366,926.25,TES Global Ltd
Manchester City Council,Manchester Leisure,Compensation Payments,02.11.2018,1906239566,842.00,Department For Work & Pensions
Manchester City Council,Hospitality + Trading Services,Hire of Machinery,02.11.2018,5101003321,830.80,R & M Developments Ltd
Manchester City Council,Adult Social Care,Equipment,02.11.2018,5101003298,810.00,Ultimate Healthcare
Manchester City Council,Adult Social Care,Supporting People Payments,02.11.2018,5101003277,791.09,Wythenshawe Community Housing Group
Manchester City Council,Regeneration Finance,Postage,02.11.2018,1906239542,787.00,Royal Mail Group Plc
Manchester City Council,Chief Executives,Advertising,02.11.2018,5101003360,749.55,TES Global Ltd
Manchester City Council,Chief Executives,Advertising,02.11.2018,5101003286,720.00,Skyline Ltd
Manchester City Council,Corporate Services,Welfare Provision Service Awards,02.11.2018,5101003386,710.00,The Furnishing Service Ltd
Manchester City Council,Corporate Services,Welfare Provision Service Awards,02.11.2018,5101003421,709.20,The Furnishing Service Ltd
Manchester City Council,Corporate Services,Welfare Provision Service Awards,02.11.2018,5101003401,695.39,The Furnishing Service Ltd
Manchester City Council,Corporate Services,Welfare Provision Service Awards,02.11.2018,5101003419,695.39,The Furnishing Service Ltd
Manchester City Council,Adult Social Care,Training and Development,02.11.2018,1906244939,688.50,Wipers Youth CIC
Manchester City Council,Corporate Services,Welfare Provision Service Awards,02.11.2018,5101003384,633.23,The Furnishing Service Ltd
Manchester City Council,Chief Executives,Advertising,02.11.2018,5101003349,600.00,Moonscape Media Ltd
Manchester City Council,Adult Social Care,Personal needs of client,02.11.2018,5101003380,583.00,The Furnishing Service Ltd
Manchester City Council,Corporate Services,Welfare Provision Service Awards,02.11.2018,5101003427,552.36,The Furnishing Service Ltd
Manchester City Council,Adult Social Care,Third party payments to Health Authority,02.11.2018,1906252827,548.00,University Hosp Birmingham NHS FT
Manchester City Council,Corporate Services,Welfare Provision Service Awards,02.11.2018,5101003387,513.36,The Furnishing Service Ltd
Manchester City Council,Corporate Services,Welfare Provision Service Awards,02.11.2018,5101003397,506.88,The Furnishing Service Ltd
Manchester City Council,Libraries and Theatres,Training and Development,02.11.2018,5101003293,500.00,Arc People Development Ltd
Manchester City Council,Adult Social Care,Third party payments to Health Authority,02.11.2018,1906252830,500.00,University Hosp Birmingham NHS FT
Manchester City Council,Chief Executives,Hire of Equipment,02.11.2018,5101003256,"-1,119.51",Xerox Finance Ltd
Manchester City Council,Manchester Leisure,Payments for services,02.11.2018,5101003262,"-2,630.60",Greenwich Leisure Limited
Manchester City Council,Regeneration Finance,Contract Cleaning External,02.11.2018,5101003250,"-6,887.08",Mitie Cleaning & Environmental
Manchester City Council,Adult Social Care,Payments for services,02.11.2018,5101003469,"-11,301.05",David Lewis Organisation
Manchester City Council,Adult Social Care,Third party payments relating to Voluntary Organisations,05.11.2018,5101003291,"498,000.00","CGL - Change, Grow, Live"
Manchester City Council,Insurance Fund,Insurance,05.11.2018,1906247641,"60,000.00",Hodge.Jones & Allen LLP
Manchester City Council,Regeneration Finance,Rents,05.11.2018,1906252824,"45,132.25",CBRE Ltd
Manchester City Council,Adult Social Care,Third party payments relating to Voluntary Organisations,05.11.2018,5101003164,"44,308.08","CGL - Change, Grow, Live"
Manchester City Council,Adult Social Care,Supporting People Payments,05.11.2018,5101003290,"23,028.50",Sanctuary Housing Association
Manchester City Council,Adult Social Care,Extra Care Sheltered Housing Payments,05.11.2018,5101003448,"17,797.73",Creative Support Ltd
Manchester City Council,Adult Social Care,Bed and Breakfast Accommodation Expenditure,05.11.2018,5101003335,"17,291.00",Redacted Personal Information
Manchester City Council,Corporate Services,Rents,05.11.2018,1906252754,"15,436.41",Regus Management (UK) Ltd
Manchester City Council,Adult Social Care,Supporting People Payments,05.11.2018,5101003513,"11,771.00",People First Housing Association
Manchester City Council,Chief Executives,Agency staff provision,05.11.2018,5101003328,"11,257.14",Venn Group Ltd
Manchester City Council,Highways Services,Compensation Payments,05.11.2018,1906247606,"11,000.00",Law Room Solicitors
Manchester City Council,Regeneration Finance,I T Provision,05.11.2018,5101003236,"10,016.23",Capita IT Services Ltd
Manchester City Council,Corporate Services,Professional fees,05.11.2018,5101003211,"9,000.00",Turner & Townsend Project
Manchester City Council,Manchester Leisure,Security,05.11.2018,5101003217,"8,377.04",Showsec International Ltd
Manchester City Council,Adult Social Care,Third party payments to Health Authority,05.11.2018,5101003523,"8,000.00",Northenden Group Practice
Manchester City Council,Adult Social Care,Third party payments to Health Authority,05.11.2018,5101003526,"8,000.00",Northenden Group Practice
Manchester City Council,Environment and Operations,Construction Works,05.11.2018,5101003392,"7,660.81",GMCA
Manchester City Council,Highways Services,Professional fees,05.11.2018,5101003332,"7,632.00",AECOM Limited
Manchester City Council,Adult Social Care,Bed and Breakfast Accommodation Expenditure,05.11.2018,5101003267,"7,282.12",K L Properties
Manchester City Council,Highways Services,Compensation Payments,05.11.2018,1906247578,"6,050.67",Redacted Personal Information
Manchester City Council,Manchester Leisure,Professional fees,05.11.2018,5101003249,"5,948.06",Biffa Municipal Limited
Manchester City Council,Highways Services,Compensation Payments,05.11.2018,1906246236,"5,829.00",Dorians Solicitors
Manchester City Council,Hospitality + Trading Services,Hire of Machinery,05.11.2018,5101003442,"4,991.00",F.R.Sharrock Ltd
Manchester City Council,Manchester Leisure,Professional fees,05.11.2018,5101003249,"4,559.88",Biffa Municipal Limited
Manchester City Council,Adult Social Care,Compensation Payments,05.11.2018,1906245312,"4,225.00",Northwards Housing Limited
Manchester City Council,Chief Executives,Professional fees,05.11.2018,1906229468,"4,175.00",Redacted Personal Information
Manchester City Council,Adult Social Care,Legal Fees,05.11.2018,5101003282,"3,975.00",Byrom Street Chambers
Manchester City Council,Chief Executives,Agency staff provision,05.11.2018,5101003222,"3,954.79",Deekay Technical Recruitment Ltd
Manchester City Council,Adult Social Care,Rents,05.11.2018,5101003549,"3,624.74",Johnnie Johnson Housing
Manchester City Council,Chief Executives,Licences Purchase,05.11.2018,5101003240,"3,432.10",Capita IT Services Ltd
Manchester City Council,Adult Social Care,Equipment,05.11.2018,5101003494,"3,129.05",Connevans Ltd
Manchester City Council,Highways Services,Compensation Payments,05.11.2018,1906246198,"2,700.00",Redacted Personal Information
Manchester City Council,Chief Executives,Agency staff provision,05.11.2018,5101003525,"2,112.00",Redacted Personal Information
Manchester City Council,Libraries and Theatres,Training and Development,05.11.2018,5101003457,"2,040.00",Open University
Manchester City Council,Highways Services,Compensation Payments,05.11.2018,1906246231,"2,000.00",Horwich Cohen Coghlan Solicitors
Manchester City Council,Regeneration Finance,Equipment,05.11.2018,5101003491,"1,995.00",Proton (Southern) Ltd
Manchester City Council,Adult Social Care,Contract Cleaning External,05.11.2018,5101003473,"1,920.00",Tiddlywinks Day Nursery
Manchester City Council,Housing Revenue Account,Council Dwelling Adaptations,05.11.2018,5101003466,"1,694.02",Manchester Working Ltd
Manchester City Council,Manchester Leisure,Testing Fees,05.11.2018,5101003534,"1,492.50",Lancashire County Council
Manchester City Council,Chief Executives,I T Provision,05.11.2018,5101003365,"1,425.00",Civica UK Ltd
Manchester City Council,Housing Revenue Account,Council Dwelling Adaptations,05.11.2018,5101003466,"1,406.11",Manchester Working Ltd
Manchester City Council,Regeneration Finance,Internal Repairs and Maintenance for buildings,05.11.2018,5101003255,"1,271.37",Sitewatch Fire & Surveillance Ltd
Manchester City Council,Corporate Services,Gym Membership Scheme,05.11.2018,1906253328,943.78,Greenwich Leisure Limited
Manchester City Council,Chief Executives,Advertising,05.11.2018,5101003377,926.25,TES Global Ltd
Manchester City Council,Chief Executives,Payments to Sub-Contractors,05.11.2018,5101003539,825.70,Redacted Personal Information
Manchester City Council,Regeneration Finance,External repairs and maintenance for buildings,05.11.2018,5101003296,790.00,P Mcguinness & Co Ltd
Manchester City Council,Highways Services,Compensation Payments,05.11.2018,1906247607,678.00,Department For Work & Pensions
Manchester City Council,Adult Social Care,Professional fees,05.11.2018,1906250798,650.00,18 St John Street Chambers
Manchester City Council,Manchester Leisure,Hire of Machinery,05.11.2018,5101003276,585.75,Landscape Supply Company
Manchester City Council,Regeneration Finance,Equipment,05.11.2018,5101003497,560.00,E Jordon (Refrigeration) Ltd
Manchester City Council,Chief Executives,Compensation Payments,05.11.2018,1906253305,550.00,Redacted Personal Information
Manchester City Council,Chief Executives,Payments to Sub-Contractors,05.11.2018,5101003551,528.84,Redacted Personal Information
Manchester City Council,Corporate Services,Travel Season Ticket Loan Scheme,05.11.2018,5101003482,513.00,First Bus
Manchester City Council,Corporate Services,Travel Season Ticket Loan Scheme,05.11.2018,5101003484,513.00,First Bus
Manchester City Council,Corporate Services,Travel Season Ticket Loan Scheme,05.11.2018,5101003488,513.00,First Bus
Manchester City Council,Chief Executives,Payments to Sub-Contractors,05.11.2018,5101003541,501.25,Redacted Personal Information
Manchester City Council,Chief Executives,Equipment,05.11.2018,5101003173,500.00,Rushton Electronic Solutions Ltd
Manchester City Council,Corporate Services,Professional fees,05.11.2018,5101003258,"-9,000.00",Turner & Townsend Project
Manchester City Council,Corporate Services,Long Term Debtors,06.11.2018,5101003906,"385,420.00",First Step (Ancoats) Ltd
Manchester City Council,Chief Executives,Landline Telephone Charges,06.11.2018,1906253326,"140,112.38",BT PLC
Manchester City Council,Chief Executives,Works and associated costs for Land and Buildings,06.11.2018,5101003909,"71,429.00",Office for Metropolitan Architectur
Manchester City Council,Chief Executives,Mobilephone Charges,06.11.2018,1906256092,"64,991.78",ORANGE(A/PM/01)
Manchester City Council,Chief Executives,Equipment Operating Lease,06.11.2018,5101003721,"63,884.94",Ricoh UK Ltd.
Manchester City Council,Housing General Fund,Surplus property Fees,06.11.2018,1906256557,"52,050.00",Hempsons
Manchester City Council,Adult Social Care,Personal Needs of Residents - Other Amenities,06.11.2018,5101003702,"36,615.39",Stockton-On Tees Borough Council
Manchester City Council,Chief Executives,Printing,06.11.2018,5101003723,"33,403.60",Ricoh UK Ltd.
Manchester City Council,Adult Social Care,Bed and Breakfast Accommodation Expenditure,06.11.2018,5101002574,"27,005.00",Redacted Personal Information
Manchester City Council,Corporate Services,Legal Fees,06.11.2018,5101001975,"15,000.00",DWF LLP
Manchester City Council,Housing Revenue Account,Council Dwelling Adaptations,06.11.2018,5101003649,"12,552.02",Pts Plumbing Trade Supplies
Manchester City Council,Housing Revenue Account,Council Dwelling Adaptations,06.11.2018,5101003598,"10,710.39",Total Glass Ltd
Manchester City Council,Adult Social Care,Seconded Employees,06.11.2018,5101003676,"10,312.32",Central Mcr Uni Hospital t/a
Manchester City Council,Corporate Services,Legal Fees,06.11.2018,5101001975,"7,120.52",DWF LLP
Manchester City Council,Manchester Leisure,Equipment,06.11.2018,5101003656,"6,952.50",Solon Security Ltd
Manchester City Council,Housing Revenue Account,Council Dwelling Adaptations,06.11.2018,5101003650,"6,392.84",Pts Plumbing Trade Supplies
Manchester City Council,Adult Social Care,Foster Payments,06.11.2018,1906256558,"5,368.42",Redacted Personal Information
Manchester City Council,Hospitality + Trading Services,Vehicle Hire Costs,06.11.2018,5101003742,"5,174.90",Specialist Vehicle rental
Manchester City Council,Adult Social Care,Supporting People Payments,06.11.2018,5101003609,"4,900.25",Praxis Care Group
Manchester City Council,Housing Revenue Account,Council Dwelling Adaptations,06.11.2018,5101003643,"3,985.83",Pts Plumbing Trade Supplies
Manchester City Council,Adult Social Care,Payments for services,06.11.2018,5101003665,"3,847.30",United Response
Manchester City Council,Adult Social Care,General Office expenses,06.11.2018,1906247680,"3,150.00",Rix Petroleum (Mercia) Ltd
Manchester City Council,Housing Revenue Account,Council Dwelling Adaptations,06.11.2018,5101003647,"3,125.98",Pts Plumbing Trade Supplies
Manchester City Council,Chief Executives,Advertising,06.11.2018,5101003512,"2,851.68",Reach Publishing Services Ltd
Manchester City Council,Adult Social Care,Furniture,06.11.2018,5101003774,"2,692.04",Egan Reid Stationery Co Ltd
Manchester City Council,Housing Revenue Account,Council Dwelling Adaptations,06.11.2018,5101003651,"2,609.36",Pts Plumbing Trade Supplies
Manchester City Council,Chief Executives,Printing,06.11.2018,5101003441,"2,200.00",Geiger Limited
Manchester City Council,Housing Revenue Account,Council Dwelling Adaptations,06.11.2018,5101003645,"2,177.61",Pts Plumbing Trade Supplies
Manchester City Council,Manchester Leisure,Payments for services,06.11.2018,5101003611,"2,038.00",Teamkinetic Ltd
Manchester City Council,Adult Social Care,Payments for services,06.11.2018,5101003654,"2,011.88",Fairfield Care Ltd
Manchester City Council,Manchester Leisure,Payments to Sub-Contractors,06.11.2018,5101003579,"1,800.00",Arboricultural Services Treework
Manchester City Council,Chief Executives,Advertising,06.11.2018,5101003663,"1,800.00",GAYDIO Community Interest Company
Manchester City Council,Adult Social Care,Personal needs of client,06.11.2018,5101003673,"1,788.55",Direct Healthcare Group Ltd
Manchester City Council,Chief Executives,Payments to Sub-Contractors,06.11.2018,5101003572,"1,766.23",Redacted Personal Information
Manchester City Council,Hospitality + Trading Services,Hire of Equipment,06.11.2018,1906255886,"1,541.86",MCD Manchester Ltd
Manchester City Council,Chief Executives,Compensation Payments,06.11.2018,1906255898,"1,500.00",KBW Barristers Chambers
Manchester City Council,Manchester Leisure,Stationery,06.11.2018,1906256436,"1,474.75",CSTAR
Manchester City Council,Housing Revenue Account,Council Dwelling Adaptations,06.11.2018,5101003642,"1,466.55",Pts Plumbing Trade Supplies
Manchester City Council,Regeneration Finance,Furniture,06.11.2018,5101003769,"1,462.76",Egan Reid Stationery Co Ltd
Manchester City Council,Chief Executives,Landline Telephone Charges,06.11.2018,1906252932,"1,445.78",Vodafone (Ex C&W)
Manchester City Council,Hospitality + Trading Services,Catering Provisions,06.11.2018,1906256208,"1,361.03",THE NOISY DRINK CO
Manchester City Council,Chief Executives,Rents,06.11.2018,1906252739,"1,296.01",Regus Management (UK) Ltd
Manchester City Council,Chief Executives,Payments to Sub-Contractors,06.11.2018,5101003567,"1,271.53",Redacted Personal Information
Manchester City Council,Hospitality + Trading Services,Catering Provisions,06.11.2018,1906256182,"1,257.76",Brake Bros Foodservice Ltd
Manchester City Council,Chief Executives,Grant and subscriptions awarded,06.11.2018,5101003527,"1,250.00",Manchester Histories
Manchester City Council,Manchester Leisure,Professional fees,06.11.2018,1906250809,"1,200.00",The Writing Squad
Manchester City Council,Manchester Leisure,External repairs and maintenance for buildings,06.11.2018,1906254313,"1,127.90",Maysand Ltd
Manchester City Council,Housing Revenue Account,Council Dwelling Adaptations,06.11.2018,5101003653,"1,053.75",Pts Plumbing Trade Supplies
Manchester City Council,Adult Social Care,Legal Fees,06.11.2018,5101003670,"1,000.00",Redacted Personal Information
Manchester City Council,Chief Executives,Payments to Sub-Contractors,06.11.2018,5101003625,986.45,Redacted Personal Information
Manchester City Council,Hospitality + Trading Services,Catering Provisions,06.11.2018,1906256199,983.58,Brake Bros Foodservice Ltd
Manchester City Council,Housing Revenue Account,Licences Purchase,06.11.2018,5101003660,975.00,Ncc Services Limited
Manchester City Council,Housing Revenue Account,Council Dwelling Adaptations,06.11.2018,5101003652,879.50,Pts Plumbing Trade Supplies
Manchester City Council,Housing Revenue Account,Council Dwelling Adaptations,06.11.2018,5101003646,855.79,Pts Plumbing Trade Supplies
Manchester City Council,Hospitality + Trading Services,Hire of Machinery,06.11.2018,5101003658,844.19,R & M Developments Ltd
Manchester City Council,Hospitality + Trading Services,Hire of Machinery,06.11.2018,5101003657,829.38,R & M Developments Ltd
Manchester City Council,Regeneration Finance,Cleaning Equipment and Materials,06.11.2018,5101003762,805.85,Alliance Disposables Ltd
Manchester City Council,Hospitality + Trading Services,Catering Provisions,06.11.2018,1906256151,804.93,Brake Bros Foodservice Ltd
Manchester City Council,Hospitality + Trading Services,Catering Provisions,06.11.2018,1906256234,792.70,Ralph Livesey Ltd
Manchester City Council,Hospitality + Trading Services,Catering Provisions,06.11.2018,1906256193,782.70,Brake Bros Foodservice Ltd
Manchester City Council,Chief Executives,Vehicle Hire Costs,06.11.2018,5101003741,750.75,Manchester Van Hire Ltd
Manchester City Council,Chief Executives,Training and Development,06.11.2018,1906201998,750.00,Martin Robert Hall Ltd
Manchester City Council,Adult Social Care,"Clothes, Uniform and Laundry",06.11.2018,5101003756,750.00,Alliance Disposables Ltd
Manchester City Council,Hospitality + Trading Services,Catering Provisions,06.11.2018,1906256210,683.48,Brake Bros Foodservice Ltd
Manchester City Council,Hospitality + Trading Services,Catering Provisions,06.11.2018,1906256399,670.55,Ralph Livesey Ltd
Manchester City Council,Manchester Leisure,Equipment,06.11.2018,5101003814,665.00,Fast Hire UK
Manchester City Council,Hospitality + Trading Services,Catering Provisions,06.11.2018,1906256298,663.19,Ralph Livesey Ltd
Manchester City Council,Regeneration Finance,Security,06.11.2018,5101003685,657.25,Chubb  Systems Limited
Manchester City Council,Manchester Leisure,Equipment,06.11.2018,5101003589,655.50,Parkeon Ltd
Manchester City Council,Adult Social Care,Payments for services,06.11.2018,5101003614,651.20,Fairfield Care Ltd
Manchester City Council,Manchester Leisure,External repairs and maintenance for buildings,06.11.2018,5101003563,650.00,Ashlea Ltd
Manchester City Council,Hospitality + Trading Services,Catering Provisions,06.11.2018,1906256214,640.72,Brake Bros Foodservice Ltd
Manchester City Council,Hospitality + Trading Services,Catering Provisions,06.11.2018,1906256143,640.17,Brake Bros Foodservice Ltd
Manchester City Council,Adult Social Care,Rents,06.11.2018,1906255981,640.00,Rent Solutions
Manchester City Council,Hospitality + Trading Services,Catering Provisions,06.11.2018,1906256121,635.86,Brake Bros Foodservice Ltd
Manchester City Council,Chief Executives,Payments to Sub-Contractors,06.11.2018,5101003621,634.60,Redacted Personal Information
Manchester City Council,Hospitality + Trading Services,Catering Provisions,06.11.2018,1906256252,629.75,Ralph Livesey Ltd
Manchester City Council,Hospitality + Trading Services,Catering Provisions,06.11.2018,1906256373,612.71,Ralph Livesey Ltd
Manchester City Council,Hospitality + Trading Services,Catering Provisions,06.11.2018,1906256238,607.79,Ralph Livesey Ltd
Manchester City Council,Chief Executives,Compensation Payments,06.11.2018,1906255897,600.00,KBW Barristers Chambers
Manchester City Council,Hospitality + Trading Services,Catering Provisions,06.11.2018,1906256132,592.96,Brake Bros Foodservice Ltd
Manchester City Council,Hospitality + Trading Services,Catering Provisions,06.11.2018,1906256365,589.95,Ralph Livesey Ltd
Manchester City Council,Hospitality + Trading Services,Catering Provisions,06.11.2018,1906256245,589.73,Ralph Livesey Ltd
Manchester City Council,Hospitality + Trading Services,Catering Provisions,06.11.2018,1906256321,587.82,Ralph Livesey Ltd
Manchester City Council,Hospitality + Trading Services,Catering Provisions,06.11.2018,1906256397,581.53,Ralph Livesey Ltd
Manchester City Council,Hospitality + Trading Services,Catering Provisions,06.11.2018,1906256139,574.68,Brake Bros Foodservice Ltd
Manchester City Council,Hospitality + Trading Services,Catering Provisions,06.11.2018,1906256217,574.29,Brake Bros Foodservice Ltd
Manchester City Council,Highways Services,Furniture,06.11.2018,5101003771,572.00,Egan Reid Stationery Co Ltd
Manchester City Council,Hospitality + Trading Services,Catering Provisions,06.11.2018,1906256124,565.09,Brake Bros Foodservice Ltd
Manchester City Council,Hospitality + Trading Services,Catering Provisions,06.11.2018,1906256285,555.39,Ralph Livesey Ltd
Manchester City Council,Hospitality + Trading Services,Catering Provisions,06.11.2018,1906256255,551.77,Ralph Livesey Ltd
Manchester City Council,Adult Social Care,Legal Fees,06.11.2018,5101003553,550.68,Otten Penna Solicitors
Manchester City Council,Hospitality + Trading Services,Catering Provisions,06.11.2018,1906256141,548.56,Brake Bros Foodservice Ltd
Manchester City Council,Hospitality + Trading Services,Catering Provisions,06.11.2018,1906256385,542.49,Ralph Livesey Ltd
Manchester City Council,Hospitality + Trading Services,Catering Provisions,06.11.2018,1906256164,535.78,Brake Bros Foodservice Ltd
Manchester City Council,Hospitality + Trading Services,Catering Provisions,06.11.2018,1906256381,532.76,Ralph Livesey Ltd
Manchester City Council,Adult Social Care,Furniture,06.11.2018,5101003770,528.00,Egan Reid Stationery Co Ltd
Manchester City Council,Chief Executives,Payments to Sub-Contractors,06.11.2018,5101003564,518.75,Redacted Personal Information
Manchester City Council,Hospitality + Trading Services,Catering Provisions,06.11.2018,1906256128,514.86,Brake Bros Foodservice Ltd
Manchester City Council,Corporate Services,Public Transport,06.11.2018,5101003630,513.00,First Bus
Manchester City Council,Corporate Services,Travel Season Ticket Loan Scheme,06.11.2018,5101003486,513.00,First Bus
Manchester City Council,Corporate Services,Travel Season Ticket Loan Scheme,06.11.2018,5101003487,513.00,First Bus
Manchester City Council,Corporate Services,Travel Season Ticket Loan Scheme,06.11.2018,5101003631,513.00,First Bus
Manchester City Council,Hospitality + Trading Services,Catering Provisions,06.11.2018,1906256250,504.69,Ralph Livesey Ltd
Manchester City Council,Hospitality + Trading Services,Catering Provisions,06.11.2018,1906256369,501.59,Ralph Livesey Ltd
Manchester City Council,Adult Social Care,Hire of Premises,06.11.2018,5101003456,500.83,The Mechanics Centre Ltd
Manchester City Council,Chief Executives,Advertising,06.11.2018,1906254148,500.00,Programme Master Ltd
Manchester City Council,Corporate Services,Training and Development,06.11.2018,5101003732,-520.00,The University Of Liverpool
Manchester City Council,Corporate Services,Training and Development,06.11.2018,5101003731,-695.00,The University Of Liverpool
Manchester City Council,Chief Executives,Advertising,06.11.2018,5101003514,"-2,851.68",Reach Publishing Services Ltd
Manchester City Council,Adult Social Care,Rents,07.11.2018,5101003916,"76,462.71",Accommodation Links Ltd
Manchester City Council,Regeneration Finance,Catering Provisions,07.11.2018,1906259965,"55,509.32",Ralph Livesey Ltd
Manchester City Council,Hospitality + Trading Services,Vehicle Hire Costs,07.11.2018,5101003932,"15,913.67",Carlton Fuels Ltd
Manchester City Council,Hospitality + Trading Services,Royalties Payable,07.11.2018,1906256110,"14,614.25",St Paul's Catholic High School (Aca
Manchester City Council,Corporate Services,Transport Taxis,07.11.2018,1906260209,"12,147.70",Street Cars
Manchester City Council,Housing General Fund,Building Works,07.11.2018,1906259920,"11,996.00",Pollock Lifts Ltd
Manchester City Council,Housing General Fund,Building Works,07.11.2018,1906259927,"11,295.00",UPS Building & Maintenance Ltd
Manchester City Council,Housing General Fund,Building Works,07.11.2018,1906259921,"10,734.01",UPS Building & Maintenance Ltd
Manchester City Council,Corporate Services,Transport Taxis,07.11.2018,1906259984,"10,191.80",Street Cars
Manchester City Council,Childrens Services,Works and associated costs for Land and Buildings,07.11.2018,5101003911,"10,113.87",Conlon Construction Ltd
Manchester City Council,Chief Executives,Professional fees,07.11.2018,1906201375,"10,087.12",Redacted Personal Information
Manchester City Council,Corporate Services,Fees,07.11.2018,1906214301,"9,429.32",Agilisys Contact Services Ltd
Manchester City Council,Housing General Fund,Building Works,07.11.2018,1906259923,"9,274.67",Pollock Lifts Ltd
Manchester City Council,Corporate Services,Professional fees,07.11.2018,5101003260,"9,000.00",Turner & Townsend Project
Manchester City Council,Housing Revenue Account,Council Dwelling Adaptations,07.11.2018,5101003856,"7,693.39",Rixonway Kitchens Limited
Manchester City Council,Regeneration Finance,Professional fees,07.11.2018,5101003935,"6,544.40",Gerald Eve
Manchester City Council,Housing General Fund,Building Works,07.11.2018,1906259925,"6,378.00",Stannah Lift Services Ltd
Manchester City Council,Housing General Fund,Building Works,07.11.2018,1906259916,"6,306.00",Pollock Lifts Ltd
Manchester City Council,Highways Services,Compensation Payments,07.11.2018,1906254157,"6,000.00",Trade Union Legal LLP
Manchester City Council,Chief Executives,Professional fees,07.11.2018,5101003878,"5,970.00",Esteem
Manchester City Council,Housing Revenue Account,Council Dwelling Adaptations,07.11.2018,5101003855,"5,559.71",Rixonway Kitchens Limited
Manchester City Council,Housing General Fund,Building Works,07.11.2018,1906259922,"5,345.00",Stannah Lift Services Ltd
Manchester City Council,Housing General Fund,Building Works,07.11.2018,1906259918,"4,891.00",Thyssenkrupp Encasa
Manchester City Council,Corporate Services,I T Provision,07.11.2018,5101002963,"4,780.00",Riba Enterprises Ltd
Manchester City Council,Housing Revenue Account,Council Dwelling Adaptations,07.11.2018,5101003864,"4,513.34",Rexel UK Ltd
Manchester City Council,Adult Social Care,Personal needs of client,07.11.2018,5101003896,"4,476.00",ArjoHuntleigh
Manchester City Council,Adult Social Care,Transport Coach Hire,07.11.2018,5101003843,"4,125.00",Redacted Personal Information
Manchester City Council,Insurance Fund,Insurance,07.11.2018,1906254161,"4,039.00",Department For Work & Pensions
Manchester City Council,Housing Revenue Account,Council Dwelling Adaptations,07.11.2018,5101003918,"3,795.89",Rexel UK Ltd
Manchester City Council,Corporate Services,Transport Taxis,07.11.2018,1906259964,"3,716.20",Street Cars
Manchester City Council,Corporate Services,Transport Taxis,07.11.2018,1906260210,"3,663.70",Street Cars
Manchester City Council,Adult Social Care,Transport Coach Hire,07.11.2018,5101003841,"3,040.00",Redacted Personal Information
Manchester City Council,Housing General Fund,Building Works,07.11.2018,1906259919,"2,945.50",Hoist & Shower Chair Company
Manchester City Council,Housing General Fund,Building Works,07.11.2018,1906259924,"2,909.00",Stannah Lift Services Ltd
Manchester City Council,Chief Executives,Funeral and coroner related services,07.11.2018,1906256084,"2,875.00",Redacted Personal Information
Manchester City Council,Housing Revenue Account,Council Dwelling Adaptations,07.11.2018,5101003919,"2,659.42",Rexel UK Ltd
Manchester City Council,Housing General Fund,Building Works,07.11.2018,1906259926,"2,648.00",Hoist & Shower Chair Company
Manchester City Council,Adult Social Care,Transport Coach Hire,07.11.2018,5101003838,"2,560.00",Redacted Personal Information
Manchester City Council,Highways Services,Payments to Sub-Contractors,07.11.2018,5101003840,"2,550.00",Northern Marking Limited
Manchester City Council,Housing General Fund,Building Works,07.11.2018,1906259917,"2,498.00",Hoist & Shower Chair Company
Manchester City Council,Corporate Services,I T Provision,07.11.2018,5101003455,"2,461.84",Northgate Public Services (UK) Ltd
Manchester City Council,Adult Social Care,Bed and Breakfast Accommodation Expenditure,07.11.2018,5101003915,"2,455.00",Redacted Personal Information
Manchester City Council,Housing Revenue Account,Council Dwelling Adaptations,07.11.2018,5101003852,"2,342.35",Rixonway Kitchens Limited
Manchester City Council,Chief Executives,Travel,07.11.2018,5101004009,"2,125.00",Diversity Travel Ltd
Manchester City Council,Highways Services,Compensation Payments,07.11.2018,1906246235,"2,010.00",Horwich Cohen Coghlan Solicitors
Manchester City Council,Manchester Leisure,Building Materials for direct delivery,07.11.2018,5101003480,"1,980.00",Plantscape
Manchester City Council,Adult Social Care,Payments for services,07.11.2018,5101003959,"1,890.00",High Peak School Limited
Manchester City Council,Manchester Leisure,Professional fees,07.11.2018,5101003734,"1,830.00",Street Style Surgery
Manchester City Council,Highways Services,Compensation Payments,07.11.2018,1906254157,"1,830.00",Trade Union Legal LLP
Manchester City Council,Adult Social Care,Training and Development,07.11.2018,5101003704,"1,800.00",University Of Manchester
Manchester City Council,Adult Social Care,Training and Development,07.11.2018,5101003706,"1,800.00",University Of Manchester
Manchester City Council,Adult Social Care,Training and Development,07.11.2018,5101003716,"1,800.00",University Of Manchester
Manchester City Council,Adult Social Care,Training and Development,07.11.2018,5101003722,"1,800.00",University Of Manchester
Manchester City Council,Housing Revenue Account,Council Dwelling Adaptations,07.11.2018,5101003859,"1,546.37",JTC Furniture Group
Manchester City Council,Adult Social Care,Training and Development,07.11.2018,5101003712,"1,540.00",University Of Manchester
Manchester City Council,Adult Social Care,Training and Development,07.11.2018,5101003726,"1,540.00",University Of Manchester
Manchester City Council,Manchester Leisure,Goods purchased for resale in Council outlets,07.11.2018,5101003895,"1,456.27",Normann Copenhagen
Manchester City Council,Adult Social Care,Payments for services,07.11.2018,5101003976,"1,450.00",The Together Trust
Manchester City Council,Manchester Leisure,Training and Development,07.11.2018,5101003738,"1,366.66",CSPT Ltd t/a Community Safety
Manchester City Council,Housing Revenue Account,Council Dwelling Adaptations,07.11.2018,5101003863,"1,354.85",Rexel UK Ltd
Manchester City Council,Insurance Fund,Insurance,07.11.2018,1906254153,"1,303.60",Weightmans LLP Solicitors
Manchester City Council,Highways Services,Compensation Payments,07.11.2018,1906254159,"1,300.00",Redacted Personal Information
Manchester City Council,Adult Social Care,Legal Fees,07.11.2018,5101003922,"1,250.00",Kings Chambers
Manchester City Council,Manchester Leisure,Payments to Sub-Contractors,07.11.2018,5101003582,"1,200.00",Arboricultural Services Treework
Manchester City Council,Highways Services,Building Materials for direct delivery,07.11.2018,1906259951,"1,169.20",Benchmark Building Supplies Ltd
Manchester City Council,Housing Revenue Account,Council Dwelling Adaptations,07.11.2018,5101003902,"1,107.35",Rexel UK Ltd
Manchester City Council,Hospitality + Trading Services,Vehicle Hire Costs,07.11.2018,5101004019,"1,062.00",Fleet Dynamic Consultancy Ltd
Manchester City Council,Hospitality + Trading Services,Hire of Machinery,07.11.2018,5101003900,"1,038.50",R & M Developments Ltd
Manchester City Council,Hospitality + Trading Services,Hire of Machinery,07.11.2018,5101003901,"1,038.50",R & M Developments Ltd
Manchester City Council,Hospitality + Trading Services,Hire of Machinery,07.11.2018,5101003899,"1,012.50",R & M Developments Ltd
Manchester City Council,Hospitality + Trading Services,Hire of Machinery,07.11.2018,5101003965,"1,012.50",R & M Developments Ltd
Manchester City Council,Housing Revenue Account,Council Dwelling Adaptations,07.11.2018,5101003926,964.96,Rexel UK Ltd
Manchester City Council,Regeneration Finance,Security,07.11.2018,1906254177,875.00,Marpol Security Limited
Manchester City Council,Chief Executives,Training and Development,07.11.2018,5101003736,874.00,Coachingworks4me Ltd
Manchester City Council,Hospitality + Trading Services,Hire of Machinery,07.11.2018,5101003866,829.38,R & M Developments Ltd
Manchester City Council,Hospitality + Trading Services,Hire of Machinery,07.11.2018,5101003867,829.38,R & M Developments Ltd
Manchester City Council,Hospitality + Trading Services,Vehicle Hire Costs,07.11.2018,5101004071,816.71,Manchester Van Hire Ltd
Manchester City Council,Corporate Services,Travel Season Ticket Loan Scheme,07.11.2018,5101003697,792.00,Transport for Greater Manchester
Manchester City Council,Hospitality + Trading Services,Hire of Machinery,07.11.2018,5101003871,790.49,R & M Developments Ltd
Manchester City Council,Adult Social Care,Third party payments to Health Authority,07.11.2018,1906255962,769.00,Spectrum Community Health CIC
Manchester City Council,Adult Social Care,Payments for services,07.11.2018,5101003924,750.00,Manchester Deaf Centre Ltd
Manchester City Council,Highways Services,Building Materials for direct delivery,07.11.2018,1906259931,745.00,ECOMIX CONCRETE LIMITE
Manchester City Council,Chief Executives,Compensation Payments,07.11.2018,1906255989,700.00,Central Chambers
Manchester City Council,Manchester Leisure,Professional fees,07.11.2018,5101003945,698.47,Fast Hire UK
Manchester City Council,Adult Social Care,Travel,07.11.2018,1906259884,678.00,Diversity Travel Ltd
Manchester City Council,Highways Services,Compensation Payments,07.11.2018,1906256117,678.00,Department For Work & Pensions
Manchester City Council,Chief Executives,Compensation Payments,07.11.2018,1906255991,656.44,Avr Transcription Ltd
Manchester City Council,Environment and Operations,Professional fees,07.11.2018,5101003737,595.00,Solution Talk LLP
Manchester City Council,Adult Social Care,Home Care ,07.11.2018,1906256433,580.00,Fishers Cleaning Services Ltd
Manchester City Council,Chief Executives,I T Provision,07.11.2018,5101003184,575.65,Insight Direct (Uk) Ltd
Manchester City Council,Manchester Leisure,Legal Fees,07.11.2018,1906255983,575.00,Redacted Personal Information
Manchester City Council,Manchester Leisure,Payments to Sub-Contractors,07.11.2018,5101003577,560.00,Arboricultural Services Treework
Manchester City Council,Highways Services,Building Materials for direct delivery,07.11.2018,1906259953,556.14,Benchmark Building Supplies Ltd
Manchester City Council,Adult Social Care,Equipment,07.11.2018,5101003629,550.00,Aidapt Bathrooms Ltd
Manchester City Council,Manchester Leisure,Travel,07.11.2018,1906259815,535.54,Diversity Travel Ltd
Manchester City Council,Adult Social Care,Third party payments to Health Authority,07.11.2018,1906252953,533.00,University Hosp Birmingham NHS FT
Manchester City Council,Adult Social Care,Third party payments to Health Authority,07.11.2018,1906252955,533.00,University Hosp Birmingham NHS FT
Manchester City Council,Adult Social Care,Home Care ,07.11.2018,1700084445,-580.00,Fishers Cleaning Services Ltd
Manchester City Council,Housing Revenue Account,Council Dwelling Adaptations,07.11.2018,5101003904,-719.91,Rexel UK Ltd
Manchester City Council,Chief Executives,Printing,07.11.2018,5101004004,"-1,460.00",Browns Digital NO LONGER TRADING
Manchester City Council,Adult Social Care,Personal needs of client,07.11.2018,5101003894,"-4,476.00",ArjoHuntleigh
Manchester City Council,Chief Executives,Professional fees,07.11.2018,5101003880,"-5,970.00",Esteem
Manchester City Council,Highways Services,Private Finance and Public Private partnership initiatives,08.11.2018,5101003254,"635,042.59",Amey Highways Lighting (Manchester)
Manchester City Council,Hospitality + Trading Services,Equipment,08.11.2018,5101003681,"195,288.00",DP Structures Ltd
Manchester City Council,Regeneration Finance,Professional fees,08.11.2018,5101003934,"192,135.34",Faithful & Gould Ltd
Manchester City Council,Adult Social Care,Supporting People Payments,08.11.2018,5101004085,"116,332.16",Creative Support Ltd
Manchester City Council,Hospitality + Trading Services,Equipment,08.11.2018,5101003679,"56,850.00",DP Structures Ltd
Manchester City Council,Regeneration Finance,Water Service Charges - Metered,08.11.2018,1906260705,"56,701.17",Water Plus Limited
Manchester City Council,Chief Executives,Vehicle Plant Furniture and Equipment,08.11.2018,5101003515,"55,232.47",Esteem
Manchester City Council,Regeneration Finance,Professional fees,08.11.2018,5101003700,"39,727.97",Faithful & Gould Ltd
Manchester City Council,Hospitality + Trading Services,Equipment,08.11.2018,5101003694,"30,000.00",DP Structures Ltd
Manchester City Council,Regeneration Finance,Water Service Charges - Metered,08.11.2018,1906260770,"28,788.45",Water Plus Limited
Manchester City Council,Adult Social Care,Rents,08.11.2018,5101003336,"25,156.48",Housing Social Ltd
Manchester City Council,Chief Executives,Agency staff provision,08.11.2018,5101003449,"25,020.00",Triad Resourcing
Manchester City Council,Chief Executives,Postage,08.11.2018,5101004406,"25,000.00",Neopost Ltd (Credifon)
Manchester City Council,Hospitality + Trading Services,Equipment,08.11.2018,5101003695,"23,200.00",DP Structures Ltd
Manchester City Council,Hospitality + Trading Services,Equipment,08.11.2018,5101003680,"22,000.00",DP Structures Ltd
Manchester City Council,Hospitality + Trading Services,Equipment,08.11.2018,5101003682,"17,000.00",DP Structures Ltd
Manchester City Council,Adult Social Care,Third party payments relating to Voluntary Organisations,08.11.2018,5101003307,"13,020.83",Manchester Action On Street Health
Manchester City Council,Hospitality + Trading Services,Professional fees,08.11.2018,1906255986,"11,805.00",Decoria Ltd
Manchester City Council,Corporate Services,Professional fees,08.11.2018,5101003688,"10,500.00",Turner & Townsend Cost
Manchester City Council,Chief Executives,Works and associated costs for Land and Buildings,08.11.2018,5101004030,"10,500.00",Gardiner & Theobald LLP
Manchester City Council,Regeneration Finance,Water Service Charges - Metered,08.11.2018,1906260711,"9,944.50",Water Plus Limited
Manchester City Council,Manchester Leisure,Payments to Sub-Contractors,08.11.2018,5101004158,"9,274.50",Greenfingers Landscape Ltd
Manchester City Council,Chief Executives,Works and associated costs for Land and Buildings,08.11.2018,5101004027,"9,250.00",Gardiner & Theobald LLP
Manchester City Council,Manchester Leisure,Professional fees,08.11.2018,5101003203,"8,966.67",Framing Manchester Ltd
Manchester City Council,Adult Social Care,Third party payments to Health Authority,08.11.2018,5101003936,"8,894.28",Uni Hospital of South Mcr
Manchester City Council,Chief Executives,Expenditure re Internal Trading Ordered Externally,08.11.2018,5101004082,"8,793.09",Electoral Reform Services Ltd
Manchester City Council,Hospitality + Trading Services,Water Service Charges - Metered,08.11.2018,1906260710,"8,712.47",Water Plus Limited
Manchester City Council,Adult Social Care,Hire of Premises,08.11.2018,5101004024,"8,652.50",Manchester City Football Club Plc
Manchester City Council,Regeneration Finance,Water Service Charges - Metered,08.11.2018,1906260823,"8,423.01",Water Plus Limited
Manchester City Council,Adult Social Care,Grant and subscriptions awarded,08.11.2018,5101003281,"8,415.75",Shelter
Manchester City Council,Adult Social Care,Grant and subscriptions awarded,08.11.2018,5101004174,"8,000.00",Manchester Alliance For
Manchester City Council,Corporate Services,Professional fees,08.11.2018,5101003691,"7,980.00",Turner & Townsend Cost
Manchester City Council,Corporate Services,Professional fees,08.11.2018,5101003689,"7,876.00",Turner & Townsend Cost
Manchester City Council,Regeneration Finance,Third party payments to other Local Authorities,08.11.2018,5101004094,"7,875.00",Derby City Council
Manchester City Council,Corporate Services,Professional fees,08.11.2018,5101003690,"7,740.00",Turner & Townsend Cost
Manchester City Council,Corporate Services,Postage,08.11.2018,5101003314,"7,071.31",Royal Mail Group Plc
Manchester City Council,Corporate Services,Works and associated costs for Land and Buildings,08.11.2018,5101004100,"7,018.41",Faithful & Gould Ltd
Manchester City Council,Adult Social Care,Rents,08.11.2018,5101004107,"6,911.36",AJD Property Limited
Manchester City Council,Corporate Services,Professional fees,08.11.2018,5101003313,"6,543.39",Mott Macdonald Uk Limited
Manchester City Council,Chief Executives,Works and associated costs for Land and Buildings,08.11.2018,5101003597,"6,178.82",Turner & Townsend Project
Manchester City Council,Regeneration Finance,Water Service Charges - Metered,08.11.2018,1906260713,"6,091.38",Water Plus Limited
Manchester City Council,Regeneration Finance,Water Service Charges - Metered,08.11.2018,1906260706,"5,888.28",Water Plus Limited
Manchester City Council,Regeneration Finance,Water Service Charges - Metered,08.11.2018,1906260775,"4,463.07",Water Plus Limited
Manchester City Council,Adult Social Care,Equipment,08.11.2018,5101004084,"4,400.00",Connevans Ltd
Manchester City Council,Regeneration Finance,Furniture,08.11.2018,5101004395,"4,284.00",Egan Reid Stationery Co Ltd
Manchester City Council,Adult Social Care,Rents,08.11.2018,5101004108,"4,239.86",AJD Property Limited
Manchester City Council,Hospitality + Trading Services,Electricity,08.11.2018,1906260875,"4,207.54",Scottish & Southern Energy Plc
Manchester City Council,Regeneration Finance,Water Service Charges - Metered,08.11.2018,1906260707,"4,191.71",Water Plus Limited
Manchester City Council,Corporate Services,Transport Taxis,08.11.2018,1906262642,"4,070.00",Street Cars
Manchester City Council,Highways Services,Furniture,08.11.2018,5101004385,"3,839.41",Egan Reid Stationery Co Ltd
Manchester City Council,Corporate Services,Transport Taxis,08.11.2018,1906262641,"3,408.80",Street Cars
Manchester City Council,Regeneration Finance,Electricity,08.11.2018,1906260630,"3,198.35",Npower
Manchester City Council,Adult Social Care,Training and Development,08.11.2018,5101004061,"3,120.00",Redacted Personal Information
Manchester City Council,Regeneration Finance,Water Service Charges - Metered,08.11.2018,1906260656,"3,050.85",Water Plus Limited
Manchester City Council,Highways Services,Electricity,08.11.2018,1906260870,"3,026.50",Scottish & Southern Energy Plc
Manchester City Council,Adult Social Care,Licences Purchase,08.11.2018,5101003907,"3,025.60",XMA Limited
Manchester City Council,Adult Social Care,Contract Cleaning External,08.11.2018,5101004076,"2,880.00",Tiddlywinks Day Nursery Ltd
Manchester City Council,Hospitality + Trading Services,Electricity,08.11.2018,1906260879,"2,822.34",Scottish & Southern Energy Plc
Manchester City Council,Hospitality + Trading Services,Water Service Charges - Metered,08.11.2018,1906260836,"2,505.72",Water Plus Limited
Manchester City Council,Regeneration Finance,Water Service Charges - Metered,08.11.2018,1906260708,"2,503.05",Water Plus Limited
Manchester City Council,Adult Social Care,Rents,08.11.2018,5101004109,"2,427.13",AJD Property Limited
Manchester City Council,Chief Executives,Expenditure re Internal Trading Ordered Externally,08.11.2018,5101004080,"2,381.88",Electoral Reform Services Ltd
Manchester City Council,Regeneration Finance,Water Service Charges - Metered,08.11.2018,1906260764,"2,364.12",Water Plus Limited
Manchester City Council,Manchester Leisure,Grant and subscriptions awarded,08.11.2018,5101004140,"2,300.00",Over 50's Activity Club
Manchester City Council,Manchester Leisure,Water Service Charges - Metered,08.11.2018,1906260659,"2,094.29",Water Plus Limited
Manchester City Council,Chief Executives,Works and associated costs for Land and Buildings,08.11.2018,5101003264,"2,048.00",Turner & Townsend Cost
Manchester City Council,Chief Executives,Professional fees,08.11.2018,5101003243,"2,000.00",Delve Organisational Development
Manchester City Council,Adult Social Care,Contract Cleaning External,08.11.2018,5101004008,"1,940.55",Brighter Beginnings Day Nursery
Manchester City Council,Regeneration Finance,Water Service Charges - Metered,08.11.2018,1906260725,"1,879.83",Water Plus Limited
Manchester City Council,Hospitality + Trading Services,Water Service Charges - Metered,08.11.2018,1906260800,"1,870.90",Water Plus Limited
Manchester City Council,Regeneration Finance,Furniture,08.11.2018,5101004392,"1,852.41",Egan Reid Stationery Co Ltd
Manchester City Council,Regeneration Finance,Water Service Charges - Metered,08.11.2018,1906260777,"1,848.59",Water Plus Limited
Manchester City Council,Chief Executives,Works and associated costs for Land and Buildings,08.11.2018,5101004378,"1,848.00",Egan Reid Stationery Co Ltd
Manchester City Council,Regeneration Finance,Water Service Charges - Metered,08.11.2018,1906260766,"1,833.38",Water Plus Limited
Manchester City Council,Corporate Services,Transport Taxis,08.11.2018,1906262645,"1,793.70",Street Cars
Manchester City Council,Adult Social Care,Professional fees,08.11.2018,5101004415,"1,750.00",Caritas Recruitment
Manchester City Council,Chief Executives,Funeral and coroner related services,08.11.2018,5101004070,"1,708.48",Kane Funeral Services
Manchester City Council,Adult Social Care,Rents,08.11.2018,1906259960,"1,700.00",Open House Lettings Digital World C
Manchester City Council,Adult Social Care,Payments for services,08.11.2018,5101004049,"1,540.00",Kaleidoscope Project
Manchester City Council,Manchester Leisure,Legal Fees,08.11.2018,5101004116,"1,500.00",Redacted Personal Information
Manchester City Council,Adult Social Care,Contract Cleaning External,08.11.2018,5101003992,"1,455.41",Brighter Beginnings Day Nursery
Manchester City Council,Adult Social Care,Contract Cleaning External,08.11.2018,5101004000,"1,455.41",Brighter Beginnings Day Nursery
Manchester City Council,Regeneration Finance,Water Service Charges - Metered,08.11.2018,1906260678,"1,426.80",Water Plus Limited
Manchester City Council,Regeneration Finance,Water Service Charges - Metered,08.11.2018,1906260842,"1,392.70",Water Plus Limited
Manchester City Council,Chief Executives,Printing,08.11.2018,5101003202,"1,392.00",NB Colour Print Limited
Manchester City Council,Chief Executives,Works and associated costs for Land and Buildings,08.11.2018,5101004379,"1,386.00",Egan Reid Stationery Co Ltd
Manchester City Council,Hospitality + Trading Services,Rents,08.11.2018,1906259991,"1,368.75",Booker Ltd
Manchester City Council,Manchester Leisure,Water Service Charges - Metered,08.11.2018,1906260702,"1,357.07",Water Plus Limited
Manchester City Council,Corporate Services,Signers/Interpreters Fees,08.11.2018,5101003535,"1,330.00",Interpreting Solutions Ltd
Manchester City Council,Highways Services,Water Service Charges - Metered,08.11.2018,1906260772,"1,295.38",Water Plus Limited
Manchester City Council,Adult Social Care,Rents,08.11.2018,5101004164,"1,267.50",Greater Manchester Police Sports &
Manchester City Council,Housing Revenue Account,Electricity,08.11.2018,1906260869,"1,235.57",Scottish & Southern Energy Plc
Manchester City Council,Manchester Leisure,Multi Media and open learning packs,08.11.2018,5101004161,"1,212.60",Redacted Personal Information
Manchester City Council,Corporate Services,Welfare Provision Service Awards,08.11.2018,5101004327,"1,187.21",The Furnishing Service Ltd
Manchester City Council,Regeneration Finance,Water Service Charges - Metered,08.11.2018,1906260815,"1,133.94",Water Plus Limited
Manchester City Council,Regeneration Finance,Water Service Charges - Metered,08.11.2018,1906260841,"1,126.09",Water Plus Limited
Manchester City Council,Corporate Services,Welfare Provision Service Awards,08.11.2018,5101004340,"1,091.23",The Furnishing Service Ltd
Manchester City Council,Regeneration Finance,External repairs and maintenance for buildings,08.11.2018,1906247623,"1,081.00",Eventures
Manchester City Council,Corporate Services,Postage,08.11.2018,5101003311,"1,070.18",Royal Mail Group Plc
Manchester City Council,Corporate Services,Postage,08.11.2018,5101003312,"1,070.04",Royal Mail Group Plc
Manchester City Council,Adult Social Care,Rents,08.11.2018,1906260049,"1,040.00",Happy Homes Uk Ltd
Manchester City Council,Adult Social Care,Rents,08.11.2018,1906259980,"1,040.00",Redacted Personal Information
Manchester City Council,Highways Services,Electricity,08.11.2018,1906260868,"1,001.40",Scottish & Southern Energy Plc
Manchester City Council,Corporate Services,Welfare Provision Service Awards,08.11.2018,5101004347,993.20,The Furnishing Service Ltd
Manchester City Council,Manchester Leisure,Personal needs of client,08.11.2018,5101003345,975.00,Hemingways Marketing Services Ltd
Manchester City Council,Regeneration Finance,Water Service Charges - Metered,08.11.2018,1906260826,964.08,Water Plus Limited
Manchester City Council,Adult Social Care,Rents,08.11.2018,1906255988,950.00,Redacted Personal Information
Manchester City Council,Adult Social Care,Water Service Charges - Metered,08.11.2018,1906260655,935.81,Water Plus Limited
Manchester City Council,Hospitality + Trading Services,Water Service Charges - Metered,08.11.2018,1906260801,922.86,Water Plus Limited
Manchester City Council,Hospitality + Trading Services,Electricity,08.11.2018,1906260880,901.95,Scottish & Southern Energy Plc
Manchester City Council,Manchester Leisure,Payments to Sub-Contractors,08.11.2018,5101003522,900.00,Ramora Ltd
Manchester City Council,Chief Executives,Printing,08.11.2018,5101003185,894.00,Wallace Printers Ltd
Manchester City Council,Regeneration Finance,Water Service Charges - Metered,08.11.2018,1906260831,890.60,Water Plus Limited
Manchester City Council,Adult Social Care,Personal needs of client,08.11.2018,1906262661,889.82,Redacted Personal Information
Manchester City Council,Adult Social Care,Professional fees,08.11.2018,1906259957,850.00,18 St John Street Chambers
Manchester City Council,Manchester Leisure,Payments to Sub-Contractors,08.11.2018,5101003299,825.00,Redgate Holdings Ltd
Manchester City Council,Regeneration Finance,Water Service Charges - Metered,08.11.2018,1906260864,822.51,Water Plus Limited
Manchester City Council,Manchester Leisure,Library Materials Acquisition,08.11.2018,1906256079,773.00,Select Music & Video
Manchester City Council,Regeneration Finance,Water Service Charges - Metered,08.11.2018,1906260661,769.76,Water Plus Limited
Manchester City Council,Adult Social Care,Supporting People Payments,08.11.2018,5101003952,758.34,Albert Kennedy Trust
Manchester City Council,Adult Social Care,Professional fees,08.11.2018,5101004171,750.00,Cheers Ta Publications
Manchester City Council,Regeneration Finance,Water Service Charges - Metered,08.11.2018,1906260821,742.09,Water Plus Limited
Manchester City Council,Chief Executives,Compensation Payments,08.11.2018,1906262662,740.00,Notable Notaries
Manchester City Council,Corporate Services,Welfare Provision Service Awards,08.11.2018,5101004338,737.24,The Furnishing Service Ltd
Manchester City Council,Regeneration Finance,Electricity,08.11.2018,1906260627,722.75,Npower
Manchester City Council,Regeneration Finance,Water Service Charges - Metered,08.11.2018,1906260794,691.17,Water Plus Limited
Manchester City Council,Regeneration Finance,Water Service Charges - Metered,08.11.2018,1906260818,689.99,Water Plus Limited
Manchester City Council,Adult Social Care,Furniture,08.11.2018,5101004381,670.50,Egan Reid Stationery Co Ltd
Manchester City Council,Adult Social Care,Professional fees,08.11.2018,1906255967,664.86,Pickering Psychology Services Ltd
Manchester City Council,Manchester Leisure,Water Service Charges - Metered,08.11.2018,1906260856,657.97,Water Plus Limited
Manchester City Council,Manchester Leisure,Library Materials Acquisition,08.11.2018,1906256033,657.83,Askews and Holts
Manchester City Council,Manchester Leisure,Payments to Sub-Contractors,08.11.2018,5101003524,650.00,Ramora Ltd
Manchester City Council,Corporate Services,Professional fees,08.11.2018,5101004050,650.00,Naismiths Ltd
Manchester City Council,Corporate Services,Welfare Provision Service Awards,08.11.2018,5101004330,642.36,The Furnishing Service Ltd
Manchester City Council,Regeneration Finance,Water Service Charges - Metered,08.11.2018,1906260651,627.63,Water Plus Limited
Manchester City Council,Regeneration Finance,Water Service Charges - Metered,08.11.2018,1906260806,625.74,Water Plus Limited
Manchester City Council,Hospitality + Trading Services,Water Service Charges - Metered,08.11.2018,1906260832,624.99,Water Plus Limited
Manchester City Council,Regeneration Finance,Water Service Charges - Metered,08.11.2018,1906260730,624.87,Water Plus Limited
Manchester City Council,Adult Social Care,Water Service Charges - Metered,08.11.2018,1906260827,616.94,Water Plus Limited
Manchester City Council,Corporate Services,Postage,08.11.2018,5101003478,616.85,Royal Mail Group Plc
Manchester City Council,Corporate Services,Water Service Charges - Metered,08.11.2018,1906260738,615.39,Water Plus Limited
Manchester City Council,Corporate Services,Welfare Provision Service Awards,08.11.2018,5101004326,612.04,The Furnishing Service Ltd
Manchester City Council,Regeneration Finance,Water Service Charges - Metered,08.11.2018,1906260734,598.20,Water Plus Limited
Manchester City Council,Regeneration Finance,Water Service Charges - Metered,08.11.2018,1906260817,590.61,Water Plus Limited
Manchester City Council,Adult Social Care,Furniture,08.11.2018,5101004324,580.02,The Furnishing Service Ltd
Manchester City Council,Chief Executives,Printing,08.11.2018,5101004436,580.00,Astra Signs
Manchester City Council,Corporate Services,Furniture,08.11.2018,5101004377,570.00,Egan Reid Stationery Co Ltd
Manchester City Council,Hospitality + Trading Services,Water Service Charges - Metered,08.11.2018,1906260860,559.98,Water Plus Limited
Manchester City Council,Corporate Services,Welfare Provision Service Awards,08.11.2018,5101004348,548.42,The Furnishing Service Ltd
Manchester City Council,Chief Executives,Subsistence and Conference Expenses,08.11.2018,5101004172,545.00,Local Government Association
Manchester City Council,Regeneration Finance,Water Service Charges - Metered,08.11.2018,1906260844,540.07,Water Plus Limited
Manchester City Council,Corporate Services,Furniture,08.11.2018,5101004361,510.00,Egan Reid Stationery Co Ltd
Manchester City Council,Manchester Leisure,Payments to Sub-Contractors,08.11.2018,5101004087,504.00,Arboricultural Services Treework
Manchester City Council,Manchester Leisure,Payments to Sub-Contractors,08.11.2018,5101004099,504.00,Arboricultural Services Treework
Manchester City Council,Regeneration Finance,Water Service Charges - Metered,08.11.2018,1906260855,501.61,Water Plus Limited
Manchester City Council,Adult Social Care,Day Care Payments,08.11.2018,5101004163,500.00,Foundation Years Nurs - Sharston
Manchester City Council,Manchester Leisure,Payments to Sub-Contractors,08.11.2018,5101004098,-504.00,Arboricultural Services Treework
Manchester City Council,Regeneration Finance,Water Service Charges - Metered,08.11.2018,1700084461,-866.18,Water Plus Limited
Manchester City Council,Regeneration Finance,Water Service Charges - Metered,08.11.2018,1700084449,-917.04,Water Plus Limited
Manchester City Council,Manchester Leisure,Water Service Charges - Metered,08.11.2018,1700084447,"-1,834.94",Water Plus Limited
Manchester City Council,Regeneration Finance,Water Service Charges - Metered,08.11.2018,1700084454,"-2,281.64",Water Plus Limited
Manchester City Council,Regeneration Finance,Water Service Charges - Metered,08.11.2018,1700084455,"-2,622.77",Water Plus Limited
Manchester City Council,Corporate Services,Professional fees,08.11.2018,5101003316,"-6,543.39",Mott Macdonald Uk Limited
Manchester City Council,Corporate Services,Works and associated costs for Land and Buildings,08.11.2018,5101004101,"-7,018.41",Faithful & Gould Ltd
Manchester City Council,Hospitality + Trading Services,Water Service Charges - Metered,08.11.2018,1700084459,"-7,570.18",Water Plus Limited
Manchester City Council,Regeneration Finance,Water Service Charges - Metered,08.11.2018,1700084457,"-29,536.71",Water Plus Limited
Manchester City Council,Regeneration Finance,Water Service Charges - Metered,08.11.2018,1700084453,"-62,367.99",Water Plus Limited
Manchester City Council,Housing Revenue Account,Northwards Repairs Fee,12.11.2018,5101004189,"1,676,400.00",Northwards Housing Limited
Manchester City Council,Environment and Operations,Construction Works,12.11.2018,5101004358,"758,004.50",Amey Highways Lighting (Manchester)
Manchester City Council,Regeneration Finance,Security,12.11.2018,5101004262,"383,207.21",Group 4 Total Security Ltd T/A G4S
Manchester City Council,Chief Executives,Third party payments relating to Voluntary Organisations,12.11.2018,5101003683,"114,000.00",HOME
Manchester City Council,Hospitality + Trading Services,Vehicle Hire Costs,12.11.2018,5101004422,"71,029.55",Winners Contract Hire Ltd
Manchester City Council,Adult Social Care,Payments for services,12.11.2018,5101004032,"62,784.83",ABL Health Ltd
Manchester City Council,Hospitality + Trading Services,Refuse Collection,12.11.2018,5101003454,"62,500.00",Fairfield Environmental Serv Ltd
Manchester City Council,Adult Social Care,Third party payments relating to Voluntary Organisations,12.11.2018,5101003693,"39,593.75",National Youth Advocacy Service
Manchester City Council,Manchester Leisure,Payments for services,12.11.2018,5101004185,"37,787.40",Belle Vue Manchester
Manchester City Council,Housing Revenue Account,Private Finance and Public Private partnership initiatives,12.11.2018,5101004357,"36,609.59",Manchester Energy Company Limited
Manchester City Council,Chief Executives,ICT Support & Maintenance,12.11.2018,5101004165,"36,285.30",Ansecurity
Manchester City Council,Adult Social Care,Rents,12.11.2018,5101004238,"34,933.61",M & Q Properties Management Ltd
Manchester City Council,Adult Social Care,Payments for services,12.11.2018,5101004031,"27,500.00",ABL Health Ltd
Manchester City Council,Housing Revenue Account,Northwards Management Fee,12.11.2018,5101004192,"27,198.11",Northwards Housing Limited
Manchester City Council,Adult Social Care,Payments for services,12.11.2018,5101004283,"24,831.00",Seashell trust
Manchester City Council,Childrens Services,Works and associated costs for Land and Buildings,12.11.2018,5101004428,"23,467.36",ISG Construction Limited
Manchester City Council,Chief Executives,Agency staff provision,12.11.2018,5101004424,"20,324.25",Reed Employment Plc
Manchester City Council,Hospitality + Trading Services,Vehicle Fuel Costs,12.11.2018,5101004373,"19,649.57",Carlton Fuels Ltd
Manchester City Council,Chief Executives,ICT Support & Maintenance,12.11.2018,5101004243,"19,402.16",Capita IT Services Ltd
Manchester City Council,Corporate Services,Professional fees,12.11.2018,5101004182,"17,280.00",Pierre Angulaire Limited
Manchester City Council,Adult Social Care,Professional fees,12.11.2018,5101003713,"16,045.94",Independent Life Solutions
Manchester City Council,Adult Social Care,Payments for services,12.11.2018,5101003493,"15,671.00",Mary Hare School
Manchester City Council,Manchester Leisure,Professional fees,12.11.2018,5101003402,"15,582.00",Utilities Design & Planning Ltd
Manchester City Council,Adult Social Care,Payments for services,12.11.2018,5101003492,"14,878.00",Mary Hare School
Manchester City Council,Chief Executives,Advertising,12.11.2018,5101004416,"12,021.00",SocialSignin Ltd
Manchester City Council,Regeneration Finance,Professional fees,12.11.2018,5101004410,"11,623.50",Pinsent Masons LLP
Manchester City Council,Chief Executives,Hire of Equipment,12.11.2018,5101004110,"10,961.74",Sterling Event Group
Manchester City Council,Hospitality + Trading Services,Refuse Collection,12.11.2018,5101003519,"10,362.33",Fairfield Environmental Serv Ltd
Manchester City Council,Childrens Services,Works and associated costs for Land and Buildings,12.11.2018,5101004427,"10,102.64",ISG Construction Limited
Manchester City Council,Manchester Leisure,Payments for services,12.11.2018,5101004039,"10,000.00",Eastlands Trust Limited
Manchester City Council,Chief Executives,Agency staff provision,12.11.2018,5101003608,"9,466.67",Michael Page International
Manchester City Council,Regeneration Finance,Professional fees,12.11.2018,5101003520,"9,300.00",Five Plus Architects Limited
Manchester City Council,Highways Services,Security,12.11.2018,5101003671,"8,969.00",AECOM Limited
Manchester City Council,Adult Social Care,Transport Coach Hire,12.11.2018,5101004103,"8,555.00",Galaxy Transport (Manchester) Ltd
Manchester City Council,Adult Social Care,Third party payments relating to Voluntary Organisations,12.11.2018,5101004166,"8,158.00",Greater Manchester Immigration Aid
Manchester City Council,Corporate Services,Professional fees,12.11.2018,5101004232,"8,036.00",Mace Ltd
Manchester City Council,Corporate Services,Professional fees,12.11.2018,5101004412,"7,980.00",Mace Ltd
Manchester City Council,Corporate Services,Professional fees,12.11.2018,5101003443,"7,560.00",Turner & Townsend Cost
Manchester City Council,Corporate Services,Professional fees,12.11.2018,5101003465,"7,560.00",Turner & Townsend Cost
Manchester City Council,Corporate Services,Professional fees,12.11.2018,5101004227,"7,525.00",Mace Ltd
Manchester City Council,Corporate Services,Works and associated costs for Land and Buildings,12.11.2018,5101004104,"7,018.41",Faithful & Gould Ltd
Manchester City Council,Housing General Fund,Works and associated costs for Land and Buildings,12.11.2018,5101004413,"6,178.58",GVA Grimley Ltd
Manchester City Council,Adult Social Care,Professional fees,12.11.2018,5101003725,"6,000.00",Independent Life Solutions
Manchester City Council,Chief Executives,Professional fees,12.11.2018,5101003882,"5,970.00",Esteem
Manchester City Council,Corporate Services,Works and associated costs for Land and Buildings,12.11.2018,5101004097,"5,906.44",Faithful & Gould Ltd
Manchester City Council,Corporate Services,Professional fees,12.11.2018,5100999569,"5,301.94",Wilde Consultants Ltd
Manchester City Council,Environment and Operations,Construction Works,12.11.2018,5101003615,"5,250.00",GMCA
Manchester City Council,Chief Executives,Training and Development,12.11.2018,5101003596,"5,080.00",North West Employers Ltd
Manchester City Council,Chief Executives,Training and Development,12.11.2018,5101003623,"5,080.00",North West Employers Ltd
Manchester City Council,Adult Social Care,Transport Coach Hire,12.11.2018,5101003969,"4,727.50",Redacted Personal Information
Manchester City Council,Corporate Services,Works and associated costs for Land and Buildings,12.11.2018,5101004106,"4,611.33",Faithful & Gould Ltd
Manchester City Council,Chief Executives,Agency staff provision,12.11.2018,5101003505,"4,600.00",HCL Social Care
Manchester City Council,Adult Social Care,Payments for services,12.11.2018,5101004284,"4,596.46",Rossendale School Priory
Manchester City Council,Adult Social Care,Supporting People Payments,12.11.2018,5101004266,"4,351.50",Turning Point Services
Manchester City Council,Adult Social Care,Professional fees,12.11.2018,5101003939,"4,250.00",One Education Ltd
Manchester City Council,Environment and Operations,Construction Works,12.11.2018,5101003616,"4,250.00",GMCA
Manchester City Council,Chief Executives,Signers/Interpreters Fees,12.11.2018,5101004246,"3,618.40",Interpreter Booking Services
Manchester City Council,Adult Social Care,Professional fees,12.11.2018,5101003720,"3,612.00",Independent Life Solutions
Manchester City Council,Adult Social Care,Transport Coach Hire,12.11.2018,5101003558,"3,443.00",T/a K Travel
Manchester City Council,Chief Executives,Rents,12.11.2018,5101004421,"3,252.75",Manchester Creative Digital Assets
Manchester City Council,Environment and Operations,Construction Works,12.11.2018,5101004261,"3,020.22",Amey Highways Lighting (Manchester)
Manchester City Council,Manchester Leisure,Contract Cleaning External,12.11.2018,5101003917,"2,985.48",Scrutiny Cleaning Services
Manchester City Council,Adult Social Care,Transport Coach Hire,12.11.2018,5101003898,"2,908.00",Redacted Personal Information
Manchester City Council,Regeneration Finance,Electricity,12.11.2018,5101004138,"2,877.54",APAM Limited
Manchester City Council,Adult Social Care,Supported Accommodation,12.11.2018,5101004282,"2,870.40",Northgate Public Services (UK) Ltd
Manchester City Council,Chief Executives,Works and associated costs for Land and Buildings,12.11.2018,5101004195,"2,860.25",Manchester Working Ltd
Manchester City Council,Regeneration Finance,Legal Fees,12.11.2018,5101004271,"2,625.00",Landmark Chambers
Manchester City Council,Hospitality + Trading Services,Compensation Payments,12.11.2018,1906262547,"2,518.40",Department For Work & Pensions
Manchester City Council,Chief Executives,Grant Payments,12.11.2018,5101004409,"2,500.00",Castlefield Gallery Limited
Manchester City Council,Adult Social Care,Payments for services,12.11.2018,5101003508,"2,475.00",FoodSync CIC
Manchester City Council,Chief Executives,Vehicle Plant Furniture and Equipment,12.11.2018,5101004113,"2,400.00",Tharstern Limited
Manchester City Council,Hospitality + Trading Services,Hire of Machinery,12.11.2018,5101003881,"2,300.00",Gibsons Garden Machinery Limited
Manchester City Council,Adult Social Care,Third party payments relating to Voluntary Organisations,12.11.2018,5101004209,"2,290.00",Great Places Housing Association
Manchester City Council,Housing Revenue Account,I T Provision,12.11.2018,5101004258,"2,250.00",Aareon UK Ltd
Manchester City Council,Corporate Services,Legal Fees,12.11.2018,5101004270,"2,231.05",Crest Advisory (UK) LTD
Manchester City Council,Regeneration Finance,Building Materials for direct delivery,12.11.2018,5101004265,"2,141.13",Edmundson Electrical Ltd
Manchester City Council,Adult Social Care,Building Materials for direct delivery,12.11.2018,5101004105,"2,042.15",Expert Electrical Supplies Ltd
Manchester City Council,Environment and Operations,Construction Works,12.11.2018,5101003612,"2,000.00",GMCA
Manchester City Council,Hospitality + Trading Services,Vehicle Hire Costs,12.11.2018,5101004112,"1,994.10",Enterprise Flex-E-Rent
Manchester City Council,Manchester Leisure,Equipment,12.11.2018,5101004303,"1,952.00",Kingfisher Design & Management Ltd
Manchester City Council,Regeneration Finance,Contract Cleaning External,12.11.2018,5101003667,"1,883.48",M & M Cleaning Services Ltd
Manchester City Council,Highways Services,Purchase of stores for re-distribution,12.11.2018,5101003847,"1,866.80",Instarmac Group Ltd
Manchester City Council,Adult Social Care,Transport Coach Hire,12.11.2018,5101003407,"1,836.00",T/A Beresford Travel
Manchester City Council,Highways Services,Professional fees,12.11.2018,5101003961,"1,820.00",Waterman Aspen Ltd
Manchester City Council,Corporate Services,I T Provision,12.11.2018,5101004186,"1,812.00",Winshuttle UK Ltd
Manchester City Council,Adult Social Care,Professional fees,12.11.2018,5101003717,"1,792.05",Independent Life Solutions
Manchester City Council,Adult Social Care,Professional fees,12.11.2018,5101003724,"1,718.00",Independent Life Solutions
Manchester City Council,Adult Social Care,Transport Coach Hire,12.11.2018,5101003846,"1,710.00",JKR Travel
Manchester City Council,Chief Executives,Professional fees,12.11.2018,1906255976,"1,619.48",Susan McColl & Associates
Manchester City Council,Chief Executives,Training and Development,12.11.2018,5101003446,"1,600.00",ServiceNow UK Ltd
Manchester City Council,Housing Revenue Account,Supporting People Payments,12.11.2018,5101004301,"1,538.46",Northwards Housing Limited
Manchester City Council,Manchester Leisure,Special Events,12.11.2018,5101004155,"1,500.00",Contact Theatre Company
Manchester City Council,Adult Social Care,Contract Cleaning External,12.11.2018,5101004203,"1,464.00",Foundation Years Nurs - Sharston
Manchester City Council,Adult Social Care,Subsistence and Conference Expenses,12.11.2018,5101004044,"1,444.82",Diversity Travel Ltd
Manchester City Council,Adult Social Care,Supporting People Payments,12.11.2018,5101004215,"1,392.05",Wythenshawe Community Housing Group
Manchester City Council,Housing Revenue Account,Legal Fees,12.11.2018,5101004196,"1,350.00",Kings Chambers
Manchester City Council,Highways Services,Professional fees,12.11.2018,5101003960,"1,282.50",Waterman Aspen Ltd
Manchester City Council,Chief Executives,Training and Development,12.11.2018,5101003692,"1,260.00",The Skills Company
Manchester City Council,Hospitality + Trading Services,Catering Provisions,12.11.2018,1906263462,"1,252.14",Brake Bros Foodservice Ltd
Manchester City Council,Chief Executives,Signers/Interpreters Fees,12.11.2018,5101004250,"1,192.80",Interpreter Booking Services
Manchester City Council,Corporate Services,Professional fees,12.11.2018,5100999569,"1,178.60",Wilde Consultants Ltd
Manchester City Council,Chief Executives,Rents,12.11.2018,5101004423,"1,177.83",Manchester Creative Digital Assets
Manchester City Council,Adult Social Care,Travel,12.11.2018,5101004038,"1,176.20",Diversity Travel Ltd
Manchester City Council,Manchester Leisure,Printing,12.11.2018,5101004119,"1,172.51",Xerox Global Outsourcing
Manchester City Council,Chief Executives,Signers/Interpreters Fees,12.11.2018,5101004248,"1,165.60",Interpreter Booking Services
Manchester City Council,Adult Social Care,Rents,12.11.2018,1906255961,"1,156.00",Landmark Property Management
Manchester City Council,Hospitality + Trading Services,Catering Provisions,12.11.2018,1906263263,"1,144.71",Brake Bros Foodservice Ltd
Manchester City Council,Adult Social Care,Professional fees,12.11.2018,1906259902,"1,125.00",Redacted Personal Information
Manchester City Council,Hospitality + Trading Services,Catering Provisions,12.11.2018,1906263417,"1,091.66",Brake Bros Foodservice Ltd
Manchester City Council,Hospitality + Trading Services,Catering Provisions,12.11.2018,1906263291,"1,089.55",Brake Bros Foodservice Ltd
Manchester City Council,Adult Social Care,Rents,12.11.2018,1906256113,"1,040.00",Landmark Property Management
Manchester City Council,Manchester Leisure,I T Provision,12.11.2018,5101003459,"1,032.26",Insight Direct (Uk) Ltd
Manchester City Council,Hospitality + Trading Services,Hire of Machinery,12.11.2018,5101003964,"1,014.00",Gibsons Garden Machinery Limited
Manchester City Council,Adult Social Care,Compensation Payments,12.11.2018,1906255975,"1,000.00",Serjco Ltd
Manchester City Council,Highways Services,Building Materials for direct delivery,12.11.2018,5101004249,989.80,Fabrikat (Nottingham) Limited
Manchester City Council,Regeneration Finance,Contract Cleaning External,12.11.2018,5101003666,926.44,M & M Cleaning Services Ltd
Manchester City Council,Hospitality + Trading Services,Catering Provisions,12.11.2018,1906263419,894.92,Brake Bros Foodservice Ltd
Manchester City Council,Regeneration Finance,Stationery,12.11.2018,5101004521,891.20,Banner Group Limited
Manchester City Council,Hospitality + Trading Services,Hire of Machinery,12.11.2018,5101003883,874.00,Gibsons Garden Machinery Limited
Manchester City Council,Chief Executives,Training and Development,12.11.2018,5101003739,850.00,North West Employers Ltd
Manchester City Council,Hospitality + Trading Services,Hire of Machinery,12.11.2018,5101003886,848.00,Gibsons Garden Machinery Limited
Manchester City Council,Hospitality + Trading Services,Catering Provisions,12.11.2018,1906263467,843.70,Chicken Joes Limited
Manchester City Council,Highways Services,Payments to Sub-Contractors,12.11.2018,5101003933,804.29,Quadrant Security Group
Manchester City Council,Corporate Services,Discounted Car Parking,12.11.2018,1906253325,800.00,National Car Parks Ltd Season Ticke
Manchester City Council,Chief Executives,Professional fees,12.11.2018,5101003842,800.00,The Knowledge Academy Limited
Manchester City Council,Chief Executives,Professional fees,12.11.2018,5101004244,800.00,Redacted Personal Information
Manchester City Council,Adult Social Care,Supporting People Payments,12.11.2018,5101004213,791.09,Wythenshawe Community Housing Group
Manchester City Council,Regeneration Finance,Professional fees,12.11.2018,5101004037,780.00,GVA Grimley Ltd
Manchester City Council,Hospitality + Trading Services,Catering Provisions,12.11.2018,1906263346,778.59,Brake Bros Foodservice Ltd
Manchester City Council,Hospitality + Trading Services,Hire of Machinery,12.11.2018,5101003963,759.00,Gibsons Garden Machinery Limited
Manchester City Council,Adult Social Care,Contract Cleaning External,12.11.2018,5101003674,755.25,YD Healthcare Ltd
Manchester City Council,Chief Executives,Catering,12.11.2018,5101004228,750.00,Grape and Grain Catering Co
Manchester City Council,Hospitality + Trading Services,Catering Provisions,12.11.2018,1906263384,738.02,Brake Bros Foodservice Ltd
Manchester City Council,Hospitality + Trading Services,Catering Provisions,12.11.2018,1906263243,732.88,Brake Bros Foodservice Ltd
Manchester City Council,Hospitality + Trading Services,Catering Provisions,12.11.2018,1906263283,716.88,Brake Bros Foodservice Ltd
Manchester City Council,Hospitality + Trading Services,Catering Provisions,12.11.2018,1906263416,705.88,Brake Bros Foodservice Ltd
Manchester City Council,Hospitality + Trading Services,Catering Provisions,12.11.2018,1906263500,689.59,Brake Bros Foodservice Ltd
Manchester City Council,Housing Revenue Account,Council Dwelling Adaptations,12.11.2018,5101003929,680.64,SIG Roofing Supplies
Manchester City Council,Hospitality + Trading Services,Catering Provisions,12.11.2018,1906263421,666.83,Brake Bros Foodservice Ltd
Manchester City Council,Hospitality + Trading Services,Catering Provisions,12.11.2018,1906263409,666.47,Brake Bros Foodservice Ltd
Manchester City Council,Hospitality + Trading Services,Catering Provisions,12.11.2018,1906263316,652.41,Brake Bros Foodservice Ltd
Manchester City Council,Manchester Leisure,External repairs and maintenance for buildings,12.11.2018,5101004404,650.00,Vertical Access Ltd
Manchester City Council,Hospitality + Trading Services,Catering Provisions,12.11.2018,1906263379,645.84,Brake Bros Foodservice Ltd
Manchester City Council,Hospitality + Trading Services,Catering Provisions,12.11.2018,1906263435,632.55,Brake Bros Foodservice Ltd
Manchester City Council,Hospitality + Trading Services,Catering Provisions,12.11.2018,1906263372,627.95,Brake Bros Foodservice Ltd
Manchester City Council,Hospitality + Trading Services,Catering Provisions,12.11.2018,1906263368,626.34,Brake Bros Foodservice Ltd
Manchester City Council,Hospitality + Trading Services,Catering Provisions,12.11.2018,1906263479,625.06,Brake Bros Foodservice Ltd
Manchester City Council,Regeneration Finance,Furniture,12.11.2018,5101004364,624.00,Egan Reid Stationery Co Ltd
Manchester City Council,Hospitality + Trading Services,Catering Provisions,12.11.2018,1906263266,620.12,Brake Bros Foodservice Ltd
Manchester City Council,Hospitality + Trading Services,Catering Provisions,12.11.2018,1906263374,602.23,Brake Bros Foodservice Ltd
Manchester City Council,Adult Social Care,Rents,12.11.2018,1906252842,600.00,Ryan Bakers Estate Agents
Manchester City Council,Adult Social Care,Rents,12.11.2018,1906252843,600.00,Ryan Bakers Estate Agents
Manchester City Council,Corporate Services,Professional fees,12.11.2018,5101003937,600.00,Jack Pickett Consultancy Ltd
Manchester City Council,Hospitality + Trading Services,Catering Provisions,12.11.2018,1906263334,585.49,Brake Bros Foodservice Ltd
Manchester City Council,Hospitality + Trading Services,Catering Provisions,12.11.2018,1906263345,576.93,Brake Bros Foodservice Ltd
Manchester City Council,Hospitality + Trading Services,Catering Provisions,12.11.2018,1906263335,563.83,Brake Bros Foodservice Ltd
Manchester City Council,Chief Executives,Printing,12.11.2018,5101004264,562.00,Hound Envelopes Ltd
Manchester City Council,Hospitality + Trading Services,Vehicle Hire Costs,12.11.2018,5101003684,560.00,Winners Contract Hire Ltd
Manchester City Council,Hospitality + Trading Services,Catering Provisions,12.11.2018,1906263303,555.87,Brake Bros Foodservice Ltd
Manchester City Council,Manchester Leisure,Building Materials for direct delivery,12.11.2018,5101004043,530.00,Groundwork Landscapes Ltd
Manchester City Council,Hospitality + Trading Services,Catering Provisions,12.11.2018,1906263505,528.21,Brake Bros Foodservice Ltd
Manchester City Council,Adult Social Care,Hire of Premises,12.11.2018,5101003968,521.67,Chancellors Hotel & Conf Centre
Manchester City Council,Hospitality + Trading Services,Catering Provisions,12.11.2018,1906263281,511.80,Pasta King (Uk) Ltd
Manchester City Council,Manchester Leisure,Professional fees,12.11.2018,5101004335,500.00,Redacted Personal Information
Manchester City Council,Chief Executives,Subsistence and Conference Expenses,12.11.2018,5101004170,-780.00,Local Government Association
Manchester City Council,Regeneration Finance,Building Materials for direct delivery,12.11.2018,5101004253,"-2,141.13",Edmundson Electrical Ltd
Manchester City Council,General Fund,Levies - Cash Limit,13.11.2018,1906017251,"5,456,188.00",GMCA
Manchester City Council,Chief Executives,Works and associated costs for Land and Buildings,13.11.2018,5101004632,"658,138.00",Laing O'Rourke Construction Ltd
Manchester City Council,Housing Revenue Account,Private Finance and Public Private partnership initiatives,13.11.2018,5101004568,"430,066.29",Grove Village Ltd
Manchester City Council,Corporate Services,Works and associated costs for Land and Buildings,13.11.2018,1906263665,"214,500.00",H M Revenues and Customs
Manchester City Council,Insurance Fund,Insurance,13.11.2018,1906260047,"116,197.50",Slater & Gordon (UK) LLP
Manchester City Council,Corporate Services,Long Term Debtors,13.11.2018,5101004789,"86,754.68",Breckside Estates LLP
Manchester City Council,Chief Executives,Postage,13.11.2018,5101004472,"50,197.77",Royal Mail Group Plc
Manchester City Council,Chief Executives,Works and associated costs for Land and Buildings,13.11.2018,5100980535,"49,716.15",Addleshaw Goddard Solicitors
Manchester City Council,Chief Executives,Works and associated costs for Land and Buildings,13.11.2018,5101004589,"39,730.00",Addleshaw Goddard Solicitors
Manchester City Council,Adult Social Care,Payments for services,13.11.2018,5101004580,"37,081.20",The Together Trust
Manchester City Council,Adult Social Care,Payments for services,13.11.2018,5101004579,"33,481.60",The Together Trust
Manchester City Council,Adult Social Care,Payments for services,13.11.2018,5101004576,"28,774.20",The Together Trust
Manchester City Council,Insurance Fund,Insurance,13.11.2018,1906260048,"25,636.40",Department For Work & Pensions
Manchester City Council,Adult Social Care,Payment of School Budget Share,13.11.2018,5101004487,"22,705.00",Southern Cross School
Manchester City Council,Adult Social Care,Payments for services,13.11.2018,5101004555,"21,326.82",Seashell trust
Manchester City Council,Insurance Fund,Balance of Risks Insurance Premium,13.11.2018,1906256107,"20,380.96",The Birches
Manchester City Council,Regeneration Finance,Professional fees,13.11.2018,5101004466,"16,980.00",Good Energy Ltd
Manchester City Council,Manchester Leisure,Payments to Sub-Contractors,13.11.2018,5101004753,"11,167.15",Community Security (North West)
Manchester City Council,Corporate Services,I T Provision,13.11.2018,5101004620,"10,768.50",Insight Direct (Uk) Ltd
Manchester City Council,Chief Executives,Training and Development,13.11.2018,5101004560,"8,142.50",Resulting Limited
Manchester City Council,Manchester Leisure,Professional fees,13.11.2018,5101004477,"7,500.00",The British Library
Manchester City Council,Adult Social Care,Professional fees,13.11.2018,5101004449,"7,200.00",AJM Robertson Consulting Ltd
Manchester City Council,Highways Services,Payments to Contractors,13.11.2018,5101004329,"7,098.37",NSL Ltd
Manchester City Council,Manchester Leisure,Payments to Sub-Contractors,13.11.2018,5101004758,"7,011.51",Community Security (North West)
Manchester City Council,Adult Social Care,Payments for services,13.11.2018,5101004550,"6,767.25",Cedar House School
Manchester City Council,Adult Social Care,Payments for services,13.11.2018,5101004503,"6,608.80",Enhance EHC Ltd
Manchester City Council,Regeneration Finance,Professional fees,13.11.2018,5101004676,"6,521.00",Gerald Eve
Manchester City Council,Adult Social Care,Training and Development,13.11.2018,1906253330,"6,518.25",Redacted Personal Information
Manchester City Council,Hospitality + Trading Services,Insurance,13.11.2018,1906261872,"6,278.91",Zurich Municipal
Manchester City Council,Adult Social Care,Payments for services,13.11.2018,5101004575,"5,583.16",Nugent House School
Manchester City Council,Hospitality + Trading Services,Hire of Machinery,13.11.2018,5101004675,"5,504.77",Readyplant Ltd
Manchester City Council,Manchester Leisure,Compensation Payments,13.11.2018,1906255895,"5,250.00",Manners Pimblett Solicitors
Manchester City Council,Hospitality + Trading Services,Compensation Payments,13.11.2018,1906263233,"5,144.27",Department For Work & Pensions
Manchester City Council,Chief Executives,Agency staff provision,13.11.2018,5101004559,"5,080.81",Deekay Technical Recruitment Ltd
Manchester City Council,Adult Social Care,Payments for services,13.11.2018,5101004552,"5,040.00",PULSE
Manchester City Council,Insurance Fund,Insurance,13.11.2018,1906256406,"4,710.00",Accountant General of the Senior
Manchester City Council,Hospitality + Trading Services,Hire of Machinery,13.11.2018,5101004672,"4,080.00",Readyplant Ltd
Manchester City Council,Insurance Fund,Insurance,13.11.2018,1906256431,"4,070.80",Slater Gordon (UK) LLP
Manchester City Council,Manchester Leisure,Grant and subscriptions awarded,13.11.2018,5101004450,"3,830.00",Community Minded Ltd
Manchester City Council,Manchester Leisure,Compensation Payments,13.11.2018,1906255896,"3,679.00",Manners Pimblett Solicitors
Manchester City Council,Corporate Services,Works and associated costs for Land and Buildings,13.11.2018,5101004036,"3,090.00",University Of Salford
Manchester City Council,Chief Executives,Postage,13.11.2018,5101004785,"3,000.00",Teleset Francotyp Postalia Ltd
Manchester City Council,Chief Executives,Postage,13.11.2018,5101004786,"3,000.00",Teleset Francotyp Postalia Ltd
Manchester City Council,Manchester Leisure,Grant and subscriptions awarded,13.11.2018,5101004457,"3,000.00",4CT Limited
Manchester City Council,Adult Social Care,Payments for services,13.11.2018,5101004553,"2,880.00",Keys Childcare Ltd
Manchester City Council,Adult Social Care,Payments for services,13.11.2018,5101004554,"2,880.00",Keys Childcare Ltd
Manchester City Council,Hospitality + Trading Services,Vehicle Hire Costs,13.11.2018,5101004492,"2,875.00",Gullivers Truck Hire Ltd
Manchester City Council,Chief Executives,Agency staff provision,13.11.2018,5101004660,"2,587.50",Caritas Recruitment
Manchester City Council,Chief Executives,Agency staff provision,13.11.2018,5101004661,"2,587.50",Caritas Recruitment
Manchester City Council,Adult Social Care,Payments for services,13.11.2018,5101004666,"2,513.37",The Together Trust
Manchester City Council,Regeneration Finance,Professional fees,13.11.2018,5101004561,"2,409.00",Quality for Learning & Skills Ltd
Manchester City Council,Regeneration Finance,Professional fees,13.11.2018,5101004467,"2,320.00",Good Energy Ltd
Manchester City Council,Adult Social Care,Payments for services,13.11.2018,5101004578,"2,088.15",The Together Trust
Manchester City Council,Adult Social Care,Personal needs of client,13.11.2018,5101004184,"1,995.00",Sunrise Medical Ltd
Manchester City Council,Libraries and Theatres,Training and Development,13.11.2018,5101004230,"1,980.00",Seta Ltd
Manchester City Council,Manchester Leisure,Professional fees,13.11.2018,5101004443,"1,926.50",Scrutiny Cleaning Services
Manchester City Council,Manchester Leisure,Professional fees,13.11.2018,5101004443,"1,926.50",Scrutiny Cleaning Services
Manchester City Council,Regeneration Finance,Professional fees,13.11.2018,5101004665,"1,750.00",GVA Grimley Ltd
Manchester City Council,Adult Social Care,Transport Coach Hire,13.11.2018,5101004699,"1,662.50",APL Coachhire
Manchester City Council,Adult Social Care,Transport Taxis,13.11.2018,1906262552,"1,480.00",Britannia Radio Cars
Manchester City Council,Hospitality + Trading Services,Rents,13.11.2018,1906262639,"1,368.75",Booker Ltd
Manchester City Council,Chief Executives,Professional fees,13.11.2018,5101004692,"1,350.00",Table Linen Company Ltd
Manchester City Council,Housing General Fund,Building Works,13.11.2018,1906263719,"1,194.00",Aidservice use 30022987
Manchester City Council,Corporate Services,Works and associated costs for Land and Buildings,13.11.2018,5101004235,"1,050.00",Strata Consulting Ltd
Manchester City Council,Hospitality + Trading Services,Hire of Machinery,13.11.2018,5101004674,"1,020.00",Readyplant Ltd
Manchester City Council,Adult Social Care,Transport Coach Hire,13.11.2018,1906256428,995.00,South Shields Removals
Manchester City Council,Regeneration Finance,Stationery,13.11.2018,5101004592,977.10,Banner Group Limited
Manchester City Council,Regeneration Finance,Stationery,13.11.2018,5101004594,977.10,Banner Group Limited
Manchester City Council,Manchester Leisure,Grant and subscriptions awarded,13.11.2018,5101004458,920.00,Dukeries Residents
Manchester City Council,Adult Social Care,Payments for services,13.11.2018,5101004667,847.90,The Together Trust
Manchester City Council,Adult Social Care,Payments for services,13.11.2018,5101004502,807.50,Benchill Community Centre
Manchester City Council,Insurance Fund,Insurance,13.11.2018,1906259990,805.00,Sterling Costs
Manchester City Council,Adult Social Care,Travel,13.11.2018,1906263613,705.40,Diversity Travel Ltd
Manchester City Council,Manchester Leisure,Professional fees,13.11.2018,5101004557,700.00,Redacted Personal Information
Manchester City Council,Regeneration Finance,Furniture,13.11.2018,5101004468,685.65,Back Care Solutions Ltd
Manchester City Council,Hospitality + Trading Services,Hire of Machinery,13.11.2018,5101004673,675.00,Readyplant Ltd
Manchester City Council,Manchester Leisure,Security,13.11.2018,5101004756,633.64,Community Security (North West)
Manchester City Council,Adult Social Care,Professional fees,13.11.2018,5101004461,587.73,Afruca
Manchester City Council,Manchester Leisure,Hire of Premises,13.11.2018,5101004682,558.50,The Mechanics Centre Ltd
Manchester City Council,Adult Social Care,Supporting People Payments,13.11.2018,5101004219,541.66,Wythenshawe Community Housing Group
Manchester City Council,Manchester Leisure,Grant and subscriptions awarded,13.11.2018,5101004445,500.00,City South Manchester Housing Trust
Manchester City Council,Adult Social Care,Third party payments relating to Voluntary Organisations,13.11.2018,5101004611,-540.80,Banner Group Limited
Manchester City Council,Adult Social Care,Supporting People Payments,13.11.2018,5101004465,-541.66,Wythenshawe Community Housing Group
Manchester City Council,Regeneration Finance,Stationery,13.11.2018,5101004593,-977.10,Banner Group Limited
Manchester City Council,Hospitality + Trading Services,Rents,13.11.2018,1700084496,"-1,368.75",Booker Ltd
Manchester City Council,Adult Social Care,Third party payments to Health Authority,14.11.2018,5101004159,"401,023.00",Greater Manchester Mental Health
Manchester City Council,Highways Services,Data Registration Fee,14.11.2018,1906263234,"111,352.00",HMCS Traffic EC
Manchester City Council,Adult Social Care,Third party payments to Health Authority,14.11.2018,5101004612,"65,242.68",NHS Central Manchester CCG
Manchester City Council,Adult Social Care,Bed and Breakfast Accommodation Expenditure,14.11.2018,5101004762,"62,521.10",Cromwood Ltd
Manchester City Council,Housing General Fund,Building Works,14.11.2018,5101004716,"61,792.31",Wythenshawe Community Housing Group
Manchester City Council,Environment and Operations,Construction Works,14.11.2018,5101004212,"41,982.18",Dowhigh Ltd
Manchester City Council,Adult Social Care,Payments for services,14.11.2018,5101004220,"41,715.33",Brook
Manchester City Council,Highways Services,Data Registration Fee,14.11.2018,1906263515,"35,160.00",HMCS Traffic EC
Manchester City Council,Adult Social Care,Carer Support Payments ,14.11.2018,5101004807,"33,726.24",Homecare Support
Manchester City Council,Childrens Services,Works and associated costs for Land and Buildings,14.11.2018,5101004884,"31,584.97",Manchester Working Ltd
Manchester City Council,Adult Social Care,Carer Support Payments ,14.11.2018,5101004135,"30,007.22",Carewatch Care Service
Manchester City Council,Environment and Operations,Construction Works,14.11.2018,5101004198,"27,693.16",Dowhigh Ltd
Manchester City Council,Adult Social Care,Transport Coach Hire,14.11.2018,5101004908,"27,629.75",JCT Travel Ltd
Manchester City Council,Adult Social Care,Carer Support Payments ,14.11.2018,5101004481,"27,610.74",Carewest Limited
Manchester City Council,Adult Social Care,Bed and Breakfast Accommodation Expenditure,14.11.2018,5101004708,"27,446.00",Redacted Personal Information
Manchester City Council,Environment and Operations,Construction Works,14.11.2018,5101004214,"26,967.24",Dowhigh Ltd
Manchester City Council,Adult Social Care,Bed and Breakfast Accommodation Expenditure,14.11.2018,5101004898,"26,953.50",Redacted Personal Information
Manchester City Council,Chief Executives,Agency staff provision,14.11.2018,5101004952,"25,850.51",Hays Personnel
Manchester City Council,Adult Social Care,Carer Support Payments ,14.11.2018,5101004808,"22,120.57",Homecare Support
Manchester City Council,Environment and Operations,Construction Works,14.11.2018,5101004225,"20,997.51",Dowhigh Ltd
Manchester City Council,Manchester Leisure,Professional fees,14.11.2018,5101004730,"20,450.00",The Federation
Manchester City Council,Environment and Operations,Construction Works,14.11.2018,5101004200,"19,877.92",Dowhigh Ltd
Manchester City Council,Adult Social Care,Carer Support Payments ,14.11.2018,5101004211,"17,951.80",DH Homecare Ltd (Direct Health)
Manchester City Council,Adult Social Care,Extra Care Sheltered Housing Payments,14.11.2018,5101004035,"16,582.87",Creative Support Ltd
Manchester City Council,Hospitality + Trading Services,Vehicle Fuel Costs,14.11.2018,5101004731,"16,372.09",Carlton Fuels Ltd
Manchester City Council,Adult Social Care,Transport Coach Hire,14.11.2018,5101003557,"15,834.00",Redacted Personal Information
Manchester City Council,Environment and Operations,Construction Works,14.11.2018,5101004204,"14,950.00",Dowhigh Ltd
Manchester City Council,Environment and Operations,Construction Works,14.11.2018,5101004199,"14,432.20",Dowhigh Ltd
Manchester City Council,Chief Executives,Agency staff provision,14.11.2018,5101004814,"13,483.40",NES UK Limited
Manchester City Council,Adult Social Care,Third party payments relating to Voluntary Organisations,14.11.2018,5101004595,"13,296.60",Wigan Metropolitan Borough Council
Manchester City Council,Environment and Operations,Construction Works,14.11.2018,5101004201,"12,784.91",Dowhigh Ltd
Manchester City Council,Regeneration Finance,Security,14.11.2018,5101004909,"12,754.56",Showsec International Ltd
Manchester City Council,Adult Social Care,Supporting People Payments,14.11.2018,5101004693,"11,666.74",The Depaul Trust
Manchester City Council,Adult Social Care,Bed and Breakfast Accommodation Expenditure,14.11.2018,5101004752,"11,025.00",Redacted Personal Information
Manchester City Council,Adult Social Care,Third party payments relating to Voluntary Organisations,14.11.2018,5101004669,"10,867.50",Salvation Army Housing Association
Manchester City Council,Regeneration Finance,Professional fees,14.11.2018,5101004761,"10,780.90",AA Projects Ltd
Manchester City Council,Environment and Operations,Construction Works,14.11.2018,5101004210,"9,457.27",Dowhigh Ltd
Manchester City Council,Adult Social Care,Bed and Breakfast Accommodation Expenditure,14.11.2018,5101004707,"9,432.00",Redacted Personal Information
Manchester City Council,Adult Social Care,Payments for services,14.11.2018,5101003735,"8,955.90",Age Concern Manchester
Manchester City Council,Hospitality + Trading Services,Professional fees,14.11.2018,5101004714,"8,890.00",T/A Hidden Gem Garden Centre
Manchester City Council,Environment and Operations,Construction Works,14.11.2018,5101004208,"7,708.04",Dowhigh Ltd
Manchester City Council,Adult Social Care,Personal needs of client,14.11.2018,5101004826,"7,275.00",Carebase
Manchester City Council,Adult Social Care,Third party payments relating to Voluntary Organisations,14.11.2018,5101004662,"7,250.00",The Depaul Trust
Manchester City Council,Adult Social Care,Third party payments relating to Voluntary Organisations,14.11.2018,5101004429,"6,737.00",Great Places Housing Association
Manchester City Council,Corporate Services,Professional fees,14.11.2018,5101004736,"6,717.52",Rider Levett Bucknall UK Ltd
Manchester City Council,Chief Executives,Grant and subscriptions awarded,14.11.2018,1906268548,"6,500.00",AIR DNA
Manchester City Council,Adult Social Care,Rents,14.11.2018,5101004749,"6,038.68",Eeven Homes Ltd.
Manchester City Council,Chief Executives,Printing,14.11.2018,5101004945,"5,950.00",Browns CTP Ltd
Manchester City Council,Chief Executives,Printing,14.11.2018,5101004946,"5,524.00",Browns CTP Ltd
Manchester City Council,Adult Social Care,Rents,14.11.2018,5101004844,"5,101.05",Irwell Valley Housing Association
Manchester City Council,Adult Social Care,Supporting People Payments,14.11.2018,5101004693,"5,000.00",The Depaul Trust
Manchester City Council,Chief Executives,Works and associated costs for Land and Buildings,14.11.2018,5101004695,"5,000.00",Turner & Townsend Project
Manchester City Council,Adult Social Care,Supporting People Payments,14.11.2018,5101004570,"4,980.00",Irwell Valley Housing Association
Manchester City Council,Adult Social Care,Payments for services,14.11.2018,5101003735,"4,806.00",Age Concern Manchester
Manchester City Council,Regeneration Finance,Training and Development,14.11.2018,5101004811,"4,733.00",Ncfe
Manchester City Council,Adult Social Care,Transport Coach Hire,14.11.2018,5101003897,"4,532.50",D.J. Minibus Travel
Manchester City Council,Adult Social Care,Car Parking Permits,14.11.2018,1906246209,"4,166.65",National Car Parks Ltd Season Ticke
Manchester City Council,Regeneration Finance,Internal Repairs and Maintenance for buildings,14.11.2018,5101004803,"3,991.78",Manchester Working Ltd
Manchester City Council,Regeneration Finance,Internal Repairs and Maintenance for buildings,14.11.2018,5101004801,"3,875.41",Manchester Working Ltd
Manchester City Council,Regeneration Finance,Internal Repairs and Maintenance for buildings,14.11.2018,5101004804,"3,716.36",Manchester Working Ltd
Manchester City Council,Adult Social Care,Supporting People Payments,14.11.2018,5101004948,"3,684.74",Northwards Housing Limited
Manchester City Council,Corporate Services,Works and associated costs for Land and Buildings,14.11.2018,5101004899,"3,500.00",Powers & Tiltman Ltd
Manchester City Council,Adult Social Care,Third party payments relating to Voluntary Organisations,14.11.2018,5101004670,"3,333.33",Salvation Army Housing Association
Manchester City Council,Chief Executives,Works and associated costs for Land and Buildings,14.11.2018,5101003613,"3,100.00",Sandy Brown Associates Ltd
Manchester City Council,Adult Social Care,Carer Support Payments ,14.11.2018,5101004809,"3,000.00",Homecare Support
Manchester City Council,Adult Social Care,Supporting People Payments,14.11.2018,5101004948,"2,849.24",Northwards Housing Limited
Manchester City Council,Chief Executives,Compensation Payments,14.11.2018,1906267061,"2,846.42",Bibby Factors Yorkshire Ltd
Manchester City Council,Manchester Leisure,Payments to Sub-Contractors,14.11.2018,5101004818,"2,718.50",Green Garden
Manchester City Council,Manchester Leisure,Goods purchased for resale in Council outlets,14.11.2018,1906256417,"2,607.96",Aurora World Ltd
Manchester City Council,Corporate Services,Works and associated costs for Land and Buildings,14.11.2018,5101004900,"2,500.00",Powers & Tiltman Ltd
Manchester City Council,Adult Social Care,Supporting People Payments,14.11.2018,5101004948,"2,487.33",Northwards Housing Limited
Manchester City Council,Adult Social Care,Supporting People Payments,14.11.2018,5101004948,"2,442.21",Northwards Housing Limited
Manchester City Council,Adult Social Care,Rents,14.11.2018,1906263514,"2,300.00",Piccadilly Property Management Ltd
Manchester City Council,Adult Social Care,Equipment,14.11.2018,5101004936,"2,294.90",Aidapt Bathrooms Ltd
Manchester City Council,Adult Social Care,Transport Coach Hire,14.11.2018,5101004495,"2,280.00",DMC Travel
Manchester City Council,Adult Social Care,Third party payments to Health Authority,14.11.2018,1906254158,"2,275.68",East Cheshire NHS Trust
Manchester City Council,Environment and Operations,Construction Works,14.11.2018,5101004206,"2,203.04",Dowhigh Ltd
Manchester City Council,Manchester Leisure,Licences Purchase,14.11.2018,5101004234,"2,040.00",Civica UK Ltd
Manchester City Council,Adult Social Care,Transport Coach Hire,14.11.2018,5101004494,"1,980.00",DMC Travel
Manchester City Council,Corporate Services,Works and associated costs for Land and Buildings,14.11.2018,5100999110,"1,963.52",Tep-The Environment Partnership
Manchester City Council,Manchester Leisure,Professional fees,14.11.2018,5101004827,"1,950.00",Ove Arup & Partners Ltd
Manchester City Council,Manchester Leisure,Goods purchased for resale in Council outlets,14.11.2018,1906256093,"1,902.04",Broste Copenhagen
Manchester City Council,Hospitality + Trading Services,Floral Decorations,14.11.2018,5101004776,"1,878.75",E Smith & Son (Nurserymen)
Manchester City Council,Highways Services,Compensation Payments,14.11.2018,1906263231,"1,811.80",Redacted Personal Information
Manchester City Council,Manchester Leisure,Grant and subscriptions awarded,14.11.2018,1906253321,"1,800.00",Academic Consulting Services Ltd
Manchester City Council,Chief Executives,Printing,14.11.2018,5101004567,"1,734.00",Leeds Graphic Press Ltd
Manchester City Council,Hospitality + Trading Services,Vehicle Hire Costs,14.11.2018,5101004775,"1,700.00",Peter Douglass Platforms
Manchester City Council,Manchester Leisure,Grant and subscriptions awarded,14.11.2018,5101004942,"1,700.00",Attercliffe & Halstead Community
Manchester City Council,Adult Social Care,Supporting People Payments,14.11.2018,5101004948,"1,670.98",Northwards Housing Limited
Manchester City Council,Adult Social Care,Third party payments relating to Voluntary Organisations,14.11.2018,5101004697,"1,583.33",The Depaul Trust
Manchester City Council,Adult Social Care,Transport Coach Hire,14.11.2018,5101004222,"1,530.00",Exec-Coach Services
Manchester City Council,Manchester Leisure,Professional fees,14.11.2018,5101004919,"1,520.00",Q20 Theatre Limited
Manchester City Council,Chief Executives,Compensation Payments,14.11.2018,1906267052,"1,500.00",Redacted Personal Information
Manchester City Council,Adult Social Care,Transport Coach Hire,14.11.2018,5101004566,"1,440.00",Connect Cars Ltd
Manchester City Council,Manchester Leisure,Furniture,14.11.2018,5101004849,"1,414.00",Egan Reid Stationery Co Ltd
Manchester City Council,Highways Services,Compensation Payments,14.11.2018,1906263667,"1,387.06",Redacted Personal Information
Manchester City Council,Regeneration Finance,I T Provision,14.11.2018,5101004724,"1,365.00",NSC LegacyData Solutions Ltd
Manchester City Council,Hospitality + Trading Services,Payments to Sub-Contractors,14.11.2018,5101004711,"1,357.00",Urban Green Space Limited
Manchester City Council,Adult Social Care,Transport Coach Hire,14.11.2018,5101004685,"1,350.00",Connect Cars Ltd
Manchester City Council,Adult Social Care,Transport Coach Hire,14.11.2018,5101004493,"1,260.00",DMC Travel
Manchester City Council,Adult Social Care,Legal Fees,14.11.2018,1906247678,"1,250.00",Redacted Personal Information
Manchester City Council,Highways Services,Building Materials for direct delivery,14.11.2018,5101004718,"1,233.18",TARMAC
Manchester City Council,Hospitality + Trading Services,Vehicle Hire Costs,14.11.2018,5101004777,"1,200.00",Peter Douglass Platforms
Manchester City Council,Highways Services,Building Materials for direct delivery,14.11.2018,5101004721,"1,174.03",TARMAC
Manchester City Council,Adult Social Care,Building Materials for direct delivery,14.11.2018,5101004949,"1,120.00",Illingworth Ingham (M/cR)
Manchester City Council,Hospitality + Trading Services,Catering Provisions,14.11.2018,1906267119,"1,086.29",Brake Bros Foodservice Ltd
Manchester City Council,Adult Social Care,Rents,14.11.2018,1906263658,"1,040.00",Redacted Personal Information
Manchester City Council,Adult Social Care,Stationery,14.11.2018,5101004955,990.00,Rotadex
Manchester City Council,Adult Social Care,Furniture,14.11.2018,5101004927,976.05,Eps Supplies Ltd
Manchester City Council,Manchester Leisure,Building Materials for direct delivery,14.11.2018,1906267524,849.60,CDC
Manchester City Council,Hospitality + Trading Services,Goods purchased for resale in Council outlets,14.11.2018,5101004780,825.35,Treasured Memories Ltd
Manchester City Council,Regeneration Finance,I T Provision,14.11.2018,5101004912,787.50,Refractiv Limited
Manchester City Council,Adult Social Care,Equipment,14.11.2018,5101004817,768.00,Beacon House
Manchester City Council,Adult Social Care,Third party payments to Health Authority,14.11.2018,1906263524,742.00,St Helens & Knowsley Hospitals NHST
Manchester City Council,Manchester Leisure,Building Materials for direct delivery,14.11.2018,5101004953,734.91,Chambers & Perkins
Manchester City Council,Adult Social Care,Security,14.11.2018,5101004806,707.50,Wrixon Care
Manchester City Council,Manchester Leisure,Equipment,14.11.2018,1906267576,702.54,WWW.FIRST4MAGNETS.COM
Manchester City Council,Hospitality + Trading Services,Goods purchased for resale in Council outlets,14.11.2018,5101004782,700.00,Treasured Memories Ltd
Manchester City Council,Manchester Leisure,Hire of Equipment,14.11.2018,5101004712,692.00,CMS Fork Trucks Ltd
Manchester City Council,Chief Executives,Training and Development,14.11.2018,5101004229,690.63,ServiceNow UK Ltd
Manchester City Council,Manchester Leisure,Building Materials for direct delivery,14.11.2018,1906267600,681.60,BIGDUG LIMITED
Manchester City Council,Highways Services,Compensation Payments,14.11.2018,1906263519,647.00,Department For Work & Pensions
Manchester City Council,Chief Executives,Printing,14.11.2018,5101004400,646.00,NB Colour Print Limited
Manchester City Council,Adult Social Care,Supporting People Payments,14.11.2018,5101004948,642.68,Northwards Housing Limited
Manchester City Council,Highways Services,Building Materials for direct delivery,14.11.2018,5101004719,634.92,TARMAC
Manchester City Council,Corporate Services,Professional fees,14.11.2018,5101004929,625.00,Watts Group Limited
Manchester City Council,Adult Social Care,Furniture,14.11.2018,5101004940,576.99,Eps Supplies Ltd
Manchester City Council,Adult Social Care,Equipment,14.11.2018,5101004895,550.00,Aidapt Bathrooms Ltd
Manchester City Council,Chief Executives,Compensation Payments,14.11.2018,1906259970,550.00,Redacted Personal Information
Manchester City Council,Manchester Leisure,Goods purchased for resale in Council outlets,14.11.2018,1906256421,530.70,Doly Ltd
Manchester City Council,Adult Social Care,Professional fees,14.11.2018,5101004709,504.00,Cellmark
Manchester City Council,Manchester Leisure,Professional fees,14.11.2018,5101004710,500.00,Arc People Development Ltd
Manchester City Council,Chief Executives,Professional fees,14.11.2018,1906267055,500.00,Redacted Personal Information
Manchester City Council,Chief Executives,Compensation Payments,14.11.2018,1906267029,500.00,Redacted Personal Information
Manchester City Council,Adult Social Care,Professional fees,14.11.2018,5101004706,-504.00,Cellmark
Manchester City Council,Manchester Leisure,Payments to Sub-Contractors,14.11.2018,5101004816,"-2,718.50",Green Garden
Manchester City Council,Adult Social Care,Seconded Employees,14.11.2018,5101004720,"-5,125.75",Central Mcr Uni Hospital t/a
Manchester City Council,Adult Social Care,Personal needs of client,14.11.2018,5101004825,"-7,275.00",Carebase
Manchester City Council,Highways Services,Professional fees,15.11.2018,5101004941,"511,583.33",Transport for Greater Manchester
Manchester City Council,Adult Social Care,Home Care ,15.11.2018,5101005029,"192,780.91",NHS Central Manchester CCG
Manchester City Council,Adult Social Care,Home Care ,15.11.2018,5101004794,"166,839.17",NHS Central Manchester CCG
Manchester City Council,Insurance Fund,Insurance,15.11.2018,1906263227,"120,549.00",Thompson Solicitors
Manchester City Council,Adult Social Care,Rents,15.11.2018,5101005046,"76,448.43",Accommodation Links Ltd
Manchester City Council,Hospitality + Trading Services,Vehicle Hire Costs,15.11.2018,5101005051,"28,082.62",Manchester Van Hire Ltd
Manchester City Council,Hospitality + Trading Services,Contract Cleaning External,15.11.2018,5101004691,"28,007.25",Biffa Municipal Limited
Manchester City Council,Chief Executives,Funeral and coroner related services,15.11.2018,5101005050,"26,629.21",Central Mcr Uni Hospital t/a
Manchester City Council,Adult Social Care,Transport Coach Hire,15.11.2018,5101003560,"26,384.25",JCT Travel Ltd
Manchester City Council,Adult Social Care,Rents,15.11.2018,5101004965,"25,531.97",Housing Social Ltd
Manchester City Council,Corporate Services,Works and associated costs for Land and Buildings,15.11.2018,5101004819,"19,310.23",AA Projects Ltd
Manchester City Council,Chief Executives,Postage,15.11.2018,5101005019,"16,384.08",Electoral Reform Services Ltd
Manchester City Council,Insurance Fund,Insurance,15.11.2018,1906263521,"15,748.00",Department For Work & Pensions
Manchester City Council,Manchester Leisure,Professional fees,15.11.2018,5101005081,"15,600.00",Building Research Establishment
Manchester City Council,Chief Executives,Works and associated costs for Land and Buildings,15.11.2018,5101005134,"14,636.00",Manchester Quays Limited
Manchester City Council,Chief Executives,Works and associated costs for Land and Buildings,15.11.2018,5101005136,"14,636.00",Manchester Quays Limited
Manchester City Council,Adult Social Care,Third party payments relating to Voluntary Organisations,15.11.2018,5101005135,"13,656.80",Breakthrough Uk Ltd
Manchester City Council,Highways Services,Payments to Sub-Contractors,15.11.2018,5101003362,"13,563.55",Northern Marking Limited
Manchester City Council,Adult Social Care,Transport Coach Hire,15.11.2018,5101005013,"12,463.00",Taxi Team Limited
Manchester City Council,Corporate Services,Professional fees,15.11.2018,5101004986,"11,812.50",Gleeds Management Services Limited
Manchester City Council,Chief Executives,Funeral and coroner related services,15.11.2018,5101005050,"10,833.13",Central Mcr Uni Hospital t/a
Manchester City Council,Manchester Leisure,Library Materials Acquisition,15.11.2018,1906262778,"9,374.28",Cengage Learning (EMEA) Ltd
Manchester City Council,Hospitality + Trading Services,Hire of Equipment,15.11.2018,5101005047,"8,536.23",Fast Hire UK
Manchester City Council,Hospitality + Trading Services,Consultants Fees,15.11.2018,5101005090,"8,514.00",AA Projects Ltd
Manchester City Council,Adult Social Care,Transport Coach Hire,15.11.2018,5101005010,"7,712.00",Taxi Team Limited
Manchester City Council,Manchester Leisure,Professional fees,15.11.2018,5101000851,"7,679.64",City of Manchester Aquatics Swim Te
Manchester City Council,Corporate Services,Postage,15.11.2018,5101004796,"7,318.78",Royal Mail Group Plc
Manchester City Council,Corporate Services,Professional fees,15.11.2018,5101004698,"6,772.50",Turner & Townsend Project
Manchester City Council,Highways Services,Payments to Sub-Contractors,15.11.2018,5101003305,"6,588.00",Utilities Design & Planning Ltd
Manchester City Council,Chief Executives,Funeral and coroner related services,15.11.2018,5101005056,"5,902.00",Uni Hospital of South Mcr
Manchester City Council,Chief Executives,Postage,15.11.2018,5101004476,"5,889.43",Royal Mail Group Plc
Manchester City Council,Chief Executives,Funeral and coroner related services,15.11.2018,5101005055,"5,484.00",Kane Funeral Services
Manchester City Council,Chief Executives,Professional fees,15.11.2018,5101003583,"5,430.00",Building Design Partnership Limited
Manchester City Council,Chief Executives,Agency staff provision,15.11.2018,5101004781,"5,365.71",Michael Page International
Manchester City Council,Adult Social Care,Third party payments relating to Voluntary Organisations,15.11.2018,5101005137,"5,312.50",Pure Innovations Ltd
Manchester City Council,Corporate Services,Professional fees,15.11.2018,5101004988,"5,310.00",Gleeds Management Services Limited
Manchester City Council,Chief Executives,I T Provision,15.11.2018,5101005060,"5,243.04",Advanced Legal Solutions Ltd
Manchester City Council,Adult Social Care,Compensation Payments,15.11.2018,1906252841,"5,000.00",Simpson Millar LLP
Manchester City Council,Adult Social Care,Compensation Payments,15.11.2018,1906255607,"5,000.00",Simpson Millar LLP
Manchester City Council,Adult Social Care,Compensation Payments,15.11.2018,1906255958,"5,000.00",Simpson Millar LLP
Manchester City Council,Adult Social Care,Compensation Payments,15.11.2018,1906255959,"5,000.00",Simpson Millar LLP
Manchester City Council,Adult Social Care,Compensation Payments,15.11.2018,1906255964,"5,000.00",Simpson Millar LLP
Manchester City Council,Adult Social Care,Compensation Payments,15.11.2018,1906255966,"5,000.00",Simpson Millar LLP
Manchester City Council,Insurance Fund,Balance of Risks Insurance Premium,15.11.2018,1906262646,"4,989.21",St.Augustines C.E.Primary School
Manchester City Council,Manchester Leisure,Library Materials Acquisition,15.11.2018,1906262734,"4,965.51",Martin-Lavell Limited
Manchester City Council,Chief Executives,Professional fees,15.11.2018,5101003626,"4,922.26",Building Design Partnership Limited
Manchester City Council,Insurance Fund,Balance of Risks Insurance Premium,15.11.2018,1906262644,"4,545.00",St.Marys Ce Primary School
Manchester City Council,Hospitality + Trading Services,Funeral and coroner related services,15.11.2018,5101003144,"4,130.00",Rigby Taylor Ltd
Manchester City Council,Highways Services,Professional fees,15.11.2018,5101004984,"4,107.00",MetDesk Ltd
Manchester City Council,Adult Social Care,Refuse Collection,15.11.2018,1906263624,"3,876.00",Camilla Carpets Ltd
Manchester City Council,Adult Social Care,Third party payments relating to Voluntary Organisations,15.11.2018,5101005135,"3,414.20",Breakthrough Uk Ltd
Manchester City Council,Highways Services,Building Materials for direct delivery,15.11.2018,5101005093,"3,266.06",TARMAC
Manchester City Council,Adult Social Care,Transport Coach Hire,15.11.2018,5101003559,"3,240.00",Ricks Travel
Manchester City Council,Chief Executives,Agency staff provision,15.11.2018,5101005048,"3,123.92",Ashberry Recruitment Ltd
Manchester City Council,Insurance Fund,Insurance,15.11.2018,1906262549,"3,000.00",Accountant General of the Senior
Manchester City Council,Manchester Leisure,Grant and subscriptions awarded,15.11.2018,5101005086,"3,000.00",Manchester Alliance For
Manchester City Council,Chief Executives,Examination Fees,15.11.2018,5101005050,"2,913.16",Central Mcr Uni Hospital t/a
Manchester City Council,Manchester Leisure,Grant and subscriptions awarded,15.11.2018,5101005068,"2,900.00",Manchester Alliance For
Manchester City Council,Corporate Services,Professional fees,15.11.2018,5101004233,"2,567.50",Mace Ltd
Manchester City Council,Adult Social Care,Third party payments to other Local Authorities,15.11.2018,5101003331,"2,541.00",Nottinghamshire County Council
Manchester City Council,Highways Services,Payments to Sub-Contractors,15.11.2018,5101003343,"2,403.54",Northern Marking Limited
Manchester City Council,Adult Social Care,Training and Development,15.11.2018,5101004727,"2,400.00",Disabled Living
Manchester City Council,Corporate Services,Grant and subscriptions awarded,15.11.2018,5101005039,"2,350.00",BCIS
Manchester City Council,Corporate Services,Professional fees,15.11.2018,5101004252,"2,193.00",Turner & Townsend Cost
Manchester City Council,Adult Social Care,Foster Payments,15.11.2018,1906269363,"2,168.00",Redacted Personal Information
Manchester City Council,Corporate Services,Professional fees,15.11.2018,5101004799,"2,110.33",Experian Limited
Manchester City Council,Chief Executives,Examination Fees,15.11.2018,5101005057,"2,100.00",Uni Hospital of South Mcr
Manchester City Council,Corporate Services,Professional fees,15.11.2018,5101005065,"2,000.00",Cushman & Wakefield
Manchester City Council,Highways Services,Tipping Charges - Tonnage,15.11.2018,5101004894,"1,845.60",J.Hopkins (Contractors) Ltd.
Manchester City Council,Insurance Fund,Balance of Risks Insurance Premium,15.11.2018,1906267046,"1,660.00",Briscoe Lane Academy
Manchester City Council,Manchester Leisure,Building Materials for direct delivery,15.11.2018,5101004813,"1,653.05",Groundwork Landscapes Ltd
Manchester City Council,Chief Executives,Printing,15.11.2018,5101005123,"1,610.00",Astra Signs
Manchester City Council,Highways Services,Building Materials for direct delivery,15.11.2018,5101005070,"1,588.73",TARMAC
Manchester City Council,Regeneration Finance,Window Cleaning,15.11.2018,5101003142,"1,499.00",PWS Window Cleaning Services
Manchester City Council,Chief Executives,Agency staff provision,15.11.2018,5101005054,"1,474.90",Ashberry Recruitment Ltd
Manchester City Council,Manchester Leisure,Building Materials for direct delivery,15.11.2018,5101004569,"1,453.24",Landscape Supply Company
Manchester City Council,Corporate Services,Professional fees,15.11.2018,5101003246,"1,400.00",Rider Levett Bucknall UK Ltd
Manchester City Council,Hospitality + Trading Services,Vehicle Repairs,15.11.2018,5101005052,"1,390.82",Manchester Van Hire Ltd
Manchester City Council,Adult Social Care,Third party payments relating to Voluntary Organisations,15.11.2018,5101005071,"1,386.41",Brighter Beginnings (Charlestown)
Manchester City Council,Highways Services,Payments to Sub-Contractors,15.11.2018,5101004983,"1,250.00",Viewprint
Manchester City Council,Chief Executives,Compensation Payments,15.11.2018,1906267494,"1,250.00",Redacted Personal Information
Manchester City Council,Adult Social Care,Foster Payments,15.11.2018,1906269368,"1,215.44",Redacted Personal Information
Manchester City Council,Highways Services,Building Materials for direct delivery,15.11.2018,5101005078,"1,144.00",TARMAC
Manchester City Council,Manchester Leisure,Grant and subscriptions awarded,15.11.2018,5101004139,"1,113.11",North Manchester FM Ltd
Manchester City Council,Manchester Leisure,Grant and subscriptions awarded,15.11.2018,5101004139,"1,113.11",North Manchester FM Ltd
Manchester City Council,Manchester Leisure,Grant and subscriptions awarded,15.11.2018,5101004139,"1,113.11",North Manchester FM Ltd
Manchester City Council,Manchester Leisure,Grant and subscriptions awarded,15.11.2018,5101004139,"1,113.11",North Manchester FM Ltd
Manchester City Council,Manchester Leisure,Grant and subscriptions awarded,15.11.2018,5101004139,"1,113.11",North Manchester FM Ltd
Manchester City Council,Manchester Leisure,Grant and subscriptions awarded,15.11.2018,5101004139,"1,113.11",North Manchester FM Ltd
Manchester City Council,Manchester Leisure,Grant and subscriptions awarded,15.11.2018,5101004139,"1,105.34",North Manchester FM Ltd
Manchester City Council,Chief Executives,Professional fees,15.11.2018,1906267630,"1,083.33",Redacted Personal Information
Manchester City Council,Highways Services,Building Materials for direct delivery,15.11.2018,5101005064,"1,049.58",TARMAC
Manchester City Council,Manchester Leisure,Special Events,15.11.2018,5101004732,"1,043.33",National Car Parks Ltd Season Ticke
Manchester City Council,Chief Executives,Postage,15.11.2018,5101004474,"1,020.95",Royal Mail Group Plc
Manchester City Council,Hospitality + Trading Services,Vehicle Hire Costs,15.11.2018,5101005131,"1,008.60",Fleet Dynamic Consultancy Ltd
Manchester City Council,Manchester Leisure,Professional fees,15.11.2018,5101005091,"1,000.00",GMCA
Manchester City Council,Insurance Fund,Insurance,15.11.2018,1906263518,"1,000.00",Slater & Gordon
Manchester City Council,Chief Executives,Compensation Payments,15.11.2018,1906267032,"1,000.00",Kenworthy's Chambers
Manchester City Council,Libraries and Theatres,Training and Development,15.11.2018,5101004226,990.00,Seta Ltd
Manchester City Council,Manchester Leisure,Payments to Sub-Contractors,15.11.2018,5101004747,979.02,Manchester Dogs Home
Manchester City Council,Housing Revenue Account,Licences Purchase,15.11.2018,5101005025,975.00,Ncc Services Limited
Manchester City Council,Corporate Services,Furniture,15.11.2018,5101005004,961.00,Back Care Solutions Ltd
Manchester City Council,Hospitality + Trading Services,Rodent and Pest Control,15.11.2018,5101004191,950.00,Killgerm Chemicals Ltd
Manchester City Council,Highways Services,Building Materials for direct delivery,15.11.2018,5101005069,907.14,TARMAC
Manchester City Council,Hospitality + Trading Services,Catering Provisions,15.11.2018,1906269418,906.36,Brake Bros Foodservice Ltd
Manchester City Council,Adult Social Care,Stationery,15.11.2018,5101005124,905.80,Banner Group Limited
Manchester City Council,Manchester Leisure,Library Materials Acquisition,15.11.2018,1906262805,900.06,Peters Bookselling Services
Manchester City Council,Corporate Services,Tele Conferencing,15.11.2018,1906261841,880.90,BT Conferencing Services
Manchester City Council,Chief Executives,Compensation Payments,15.11.2018,1906267495,866.67,Redacted Personal Information
Manchester City Council,Chief Executives,Printing,15.11.2018,5101005202,861.00,Astra Signs
Manchester City Council,Regeneration Finance,External repairs and maintenance for buildings,15.11.2018,5101005038,850.00,BAT Fabrications
Manchester City Council,Highways Services,Building Materials for direct delivery,15.11.2018,5101005089,846.61,TARMAC
Manchester City Council,Adult Social Care,Equipment,15.11.2018,5101004989,842.60,Morris & Alexander Ltd
Manchester City Council,Highways Services,Building Materials for direct delivery,15.11.2018,5101005092,830.01,TARMAC
Manchester City Council,Hospitality + Trading Services,Catering Provisions,15.11.2018,1906269457,808.81,Brake Bros Foodservice Ltd
Manchester City Council,Adult Social Care,Car Allowance Claims,15.11.2018,1906267523,804.98,Redacted Personal Information
Manchester City Council,Hospitality + Trading Services,Catering Provisions,15.11.2018,1906269423,801.48,Brake Bros Foodservice Ltd
Manchester City Council,Corporate Services,Professional fees,15.11.2018,5101003242,800.00,Rider Levett Bucknall UK Ltd
Manchester City Council,Manchester Leisure,Library Materials Acquisition,15.11.2018,1906262747,783.57,Askews and Holts
Manchester City Council,Hospitality + Trading Services,Catering Provisions,15.11.2018,1906269461,751.20,Brake Bros Foodservice Ltd
Manchester City Council,Corporate Services,Professional fees,15.11.2018,5101003662,750.00,WYG Environment Planning
Manchester City Council,Chief Executives,Compensation Payments,15.11.2018,1906267506,750.00,Redacted Personal Information
Manchester City Council,Adult Social Care,External repairs and maintenance for buildings,15.11.2018,5101005001,737.27,Manchester Working Ltd
Manchester City Council,Insurance Fund,Insurance,15.11.2018,1906261864,724.50,Weightmans LLP Solicitors
Manchester City Council,Hospitality + Trading Services,Catering Provisions,15.11.2018,1906269454,712.40,Brake Bros Foodservice Ltd
Manchester City Council,Adult Social Care,Car Allowance Claims,15.11.2018,1906267497,711.38,Redacted Personal Information
Manchester City Council,Hospitality + Trading Services,Catering Provisions,15.11.2018,1906269459,672.59,Brake Bros Foodservice Ltd
Manchester City Council,Highways Services,Payments to Sub-Contractors,15.11.2018,5101004983,650.00,Viewprint
Manchester City Council,Adult Social Care,Foster Payments,15.11.2018,1906269367,639.40,Redacted Personal Information
Manchester City Council,Adult Social Care,Foster Payments,15.11.2018,1906269362,634.86,Redacted Personal Information
Manchester City Council,Hospitality + Trading Services,Catering Provisions,15.11.2018,1906269388,634.27,Brake Bros Foodservice Ltd
Manchester City Council,Hospitality + Trading Services,Catering Provisions,15.11.2018,1906269449,621.66,Brake Bros Foodservice Ltd
Manchester City Council,Hospitality + Trading Services,Catering Provisions,15.11.2018,1906269426,611.42,Brake Bros Foodservice Ltd
Manchester City Council,Corporate Services,Stationery,15.11.2018,5101004957,606.50,Venture Business Forms Ltd
Manchester City Council,Manchester Leisure,Library Materials Acquisition,15.11.2018,1906262767,601.88,Askews and Holts
Manchester City Council,Chief Executives,Printing,15.11.2018,5101004677,592.50,Silk Group Ltd
Manchester City Council,Highways Services,Building Materials for direct delivery,15.11.2018,5101005088,589.30,TARMAC
Manchester City Council,Hospitality + Trading Services,Machinery and equipment repairs,15.11.2018,5101005049,585.80,Fast Hire UK
Manchester City Council,Adult Social Care,Foster Payments,15.11.2018,1906269366,580.06,Redacted Personal Information
Manchester City Council,Hospitality + Trading Services,Contract Cleaning External,15.11.2018,5101004679,580.00,Pest Bird Control Ltd
Manchester City Council,Chief Executives,Professional fees,15.11.2018,1906267493,575.00,Redacted Personal Information
Manchester City Council,Hospitality + Trading Services,Catering Provisions,15.11.2018,1906269411,573.48,Brake Bros Foodservice Ltd
Manchester City Council,Adult Social Care,Equipment,15.11.2018,5101004470,571.00,Back Care Solutions Ltd
Manchester City Council,Adult Social Care,Stationery,15.11.2018,5101005122,565.00,Banner Group Limited
Manchester City Council,Regeneration Finance,External repairs and maintenance for buildings,15.11.2018,5101003730,554.98,Manchester Working Ltd
Manchester City Council,Chief Executives,Funeral and coroner related services,15.11.2018,5101005053,553.80,Redacted Personal Information
Manchester City Council,Manchester Leisure,Training - Day Release Fees,15.11.2018,5101004812,550.00,Raydar Safety Limited
Manchester City Council,Highways Services,Training - Day Release Fees,15.11.2018,5101004783,550.00,Raydar Safety Limited
Manchester City Council,Chief Executives,Compensation Payments,15.11.2018,1906267631,550.00,Kenworthy's Chambers
Manchester City Council,Hospitality + Trading Services,Catering Provisions,15.11.2018,1906269464,541.77,Brake Bros Foodservice Ltd
Manchester City Council,Highways Services,Building Materials for direct delivery,15.11.2018,5101005066,527.94,TARMAC
Manchester City Council,Chief Executives,Examination Fees,15.11.2018,5101005053,525.00,Redacted Personal Information
Manchester City Council,Highways Services,Building Materials for direct delivery,15.11.2018,5101005084,524.98,TARMAC
Manchester City Council,Adult Social Care,Personal Needs of Residents - Other Amenities,15.11.2018,1906255924,520.00,A1 Property Services Ltd
Manchester City Council,Manchester Leisure,Works and associated costs for Land and Buildings,15.11.2018,5101005000,514.33,Manchester Working Ltd
Manchester City Council,Hospitality + Trading Services,Catering Provisions,15.11.2018,1906269374,511.41,Brake Bros Foodservice Ltd
Manchester City Council,Corporate Services,Postage,15.11.2018,5101004797,500.05,Royal Mail Group Plc
Manchester City Council,Highways Services,Payments to Sub-Contractors,15.11.2018,5101004887,500.00,Bt Redcare
Manchester City Council,Corporate Services,Works and associated costs for Land and Buildings,15.11.2018,5101004999,500.00,Manchester Working Ltd
Manchester City Council,Corporate Services,Travel Season Ticket Loan Scheme,15.11.2018,5101004938,-597.90,Transport for Greater Manchester
Manchester City Council,Adult Social Care,Transport Coach Hire,15.11.2018,5101004905,"-26,384.25",JCT Travel Ltd
Manchester City Council,Corporate Services,Works and associated costs for Land and Buildings,16.11.2018,5101005276,"818,058.00",Kier Construction Limited
Manchester City Council,Corporate Services,Professional fees,16.11.2018,5101005140,"98,713.22",Teachers Pensions
Manchester City Council,Chief Executives,Works and associated costs for Land and Buildings,16.11.2018,1906270228,"97,174.37",BT PLC
Manchester City Council,Adult Social Care,Third party payments relating to Voluntary Organisations,16.11.2018,5101005239,"73,750.00",Man. Citizens Advice Bureaux
Manchester City Council,Chief Executives,Payments for services,16.11.2018,5101005278,"60,007.00",Eastlands Trust Limited
Manchester City Council,Adult Social Care,Payments for services,16.11.2018,1906268537,"58,330.00",Aim Habonim School
Manchester City Council,Chief Executives,Grant and subscriptions awarded,16.11.2018,5101005264,"53,794.75",Zion Arts Centre Ltd
Manchester City Council,Corporate Services,Fees,16.11.2018,1906260204,"47,584.60",Marston Group Limited
Manchester City Council,Adult Social Care,Transport Coach Hire,16.11.2018,5101005196,"46,374.00",Communitytransportservices.co.uk
Manchester City Council,Corporate Services,Fees,16.11.2018,1906260199,"40,048.65",Rundles
Manchester City Council,Chief Executives,Works and associated costs for Land and Buildings,16.11.2018,5101005277,"35,600.00",BLACC Ltd
Manchester City Council,Regeneration Finance,Consultants Fees,16.11.2018,5101005255,"32,000.00",Susan Woodward Creative Consultancy
Manchester City Council,Manchester Leisure,Equipment,16.11.2018,5101004835,"21,900.00",Cromwell polythene limited
Manchester City Council,Manchester Leisure,Cash Collection,16.11.2018,5101005094,"18,193.32",National Car Parks Ltd Season Ticke
Manchester City Council,Corporate Services,I T Provision,16.11.2018,5101005295,"17,409.34",Insight Direct (Uk) Ltd
Manchester City Council,Housing General Fund,Works and associated costs for Land and Buildings,16.11.2018,5101005212,"17,105.12",ISG Construction Limited
Manchester City Council,Chief Executives,Equipment Operating Lease,16.11.2018,5101005188,"16,114.22",Xerox Finance Ltd
Manchester City Council,Adult Social Care,Bed and Breakfast Accommodation Expenditure,16.11.2018,5101005208,"16,096.00",Redacted Personal Information
Manchester City Council,Regeneration Finance,Subvention Payments,16.11.2018,5101005296,"15,812.00",Manchester Creative Digital Assets
Manchester City Council,Manchester Leisure,Special Events,16.11.2018,5101005033,"15,000.00",Bridge
Manchester City Council,Chief Executives,Advertising,16.11.2018,5101005155,"14,995.01",Reach Publishing Services Ltd
Manchester City Council,Adult Social Care,Payments for services,16.11.2018,5101005285,"13,648.00",Time Specialist Support Ltd
Manchester City Council,Manchester Leisure,Equipment,16.11.2018,5101005231,"13,125.00",Craemer Uk Ltd
Manchester City Council,Environment and Operations,Infrastructure - Adaptations,16.11.2018,5101002776,"11,280.68",Utilities Design & Planning Ltd
Manchester City Council,Chief Executives,Advertising,16.11.2018,5101005155,"10,140.99",Reach Publishing Services Ltd
Manchester City Council,Chief Executives,Equipment Operating Lease,16.11.2018,5101005187,"9,502.91",Xerox Finance Ltd
Manchester City Council,Manchester Leisure,Professional fees,16.11.2018,5101005102,"9,494.73",GMCA
Manchester City Council,Corporate Services,Fees,16.11.2018,1906260050,"9,371.50",Newlyn Plc
Manchester City Council,Highways Services,Building Materials for direct delivery,16.11.2018,5101005172,"8,758.86",Compass Minerals UK Ltd
Manchester City Council,Adult Social Care,Catering,16.11.2018,5101005087,"8,652.50",Fabulous Fan Fayre Limited
Manchester City Council,Adult Social Care,Transport Coach Hire,16.11.2018,5101005195,"7,650.00",APTSL
Manchester City Council,Adult Social Care,Bed and Breakfast Accommodation Expenditure,16.11.2018,5101005217,"7,331.40",K L Properties
Manchester City Council,Adult Social Care,Payments for services,16.11.2018,5101005279,"7,184.00",Time Specialist Support Ltd
Manchester City Council,Adult Social Care,Third party payments relating to Voluntary Organisations,16.11.2018,5101005240,"6,666.74",Man. Citizens Advice Bureaux
Manchester City Council,Manchester Leisure,Professional fees,16.11.2018,5101005213,"6,000.00",My Incubator Ventures Limited
Manchester City Council,Adult Social Care,Rents,16.11.2018,5101005288,"5,564.75",Diocese of Salford
Manchester City Council,Adult Social Care,Payments for services,16.11.2018,5101005226,"5,359.00",Turning Point
Manchester City Council,Highways Services,Building Materials for direct delivery,16.11.2018,5101005174,"5,207.43",Compass Minerals UK Ltd
Manchester City Council,Adult Social Care,Transport Coach Hire,16.11.2018,5101003875,"4,820.00",Sumi Travel Ltd.
Manchester City Council,Highways Services,Payments to Sub-Contractors,16.11.2018,5101003361,"4,250.00",Northern Marking Limited
Manchester City Council,Chief Executives,Advertising,16.11.2018,5101005157,"4,243.30",Reach Publishing Services Ltd
Manchester City Council,Adult Social Care,Professional fees,16.11.2018,1906270223,"4,200.00",Bangkok Lawyer Company Ltd
Manchester City Council,Corporate Services,Fees,16.11.2018,1906260198,"4,187.60",Rundles
Manchester City Council,Adult Social Care,Supporting People Payments,16.11.2018,5101005207,"4,158.48",ACORN Recovery Projects
Manchester City Council,Adult Social Care,Legal Fees,16.11.2018,5101005227,"3,765.00",Redacted Personal Information
Manchester City Council,Corporate Services,Fees,16.11.2018,5101005164,"3,715.00",Pannone Corporate LLP
Manchester City Council,Adult Social Care,Supporting People Payments,16.11.2018,5101004705,"3,548.50",Irwell Valley Housing Association
Manchester City Council,Highways Services,Professional fees,16.11.2018,5101004618,"3,533.28",Wilde Consultants Ltd
Manchester City Council,Chief Executives,Compensation Payments,16.11.2018,1906268574,"3,500.00",Central Chambers
Manchester City Council,Highways Services,Professional fees,16.11.2018,5101004621,"3,496.80",Wilde Consultants Ltd
Manchester City Council,Highways Services,Payments to Sub-Contractors,16.11.2018,5101003528,"3,400.00",Northern Marking Limited
Manchester City Council,Highways Services,Professional fees,16.11.2018,5101004978,"3,244.80",Wilde Consultants Ltd
Manchester City Council,Manchester Leisure,Equipment,16.11.2018,1906268514,"3,087.00",Event Buggy Hire
Manchester City Council,Adult Social Care,Third party payments relating to Voluntary Organisations,16.11.2018,5101004475,"2,881.79",Breakthrough Uk Ltd
Manchester City Council,Chief Executives,Advertising,16.11.2018,5101005157,"2,869.70",Reach Publishing Services Ltd
Manchester City Council,Manchester Leisure,Professional fees,16.11.2018,5101005287,"2,616.75",Experian  Ltd
Manchester City Council,Highways Services,Building Materials for direct delivery,16.11.2018,5101005161,"2,527.36",TARMAC
Manchester City Council,Housing Revenue Account,Council Dwelling Adaptations,16.11.2018,5101005206,"2,460.50",Hoist & Shower Chair Company
Manchester City Council,Adult Social Care,Payments for services,16.11.2018,5101005274,"2,450.00",Wythenshawe Community Initiative
Manchester City Council,Adult Social Care,Professional fees,16.11.2018,5101005282,"2,420.00",G-MAP Services Limited
Manchester City Council,Adult Social Care,Training and Development,16.11.2018,5101005002,"2,340.00",North West Employers Ltd
Manchester City Council,Highways Services,Building Materials for direct delivery,16.11.2018,5101005244,"2,325.00",Compass Minerals UK Ltd
Manchester City Council,Adult Social Care,Professional fees,16.11.2018,5101003701,"2,325.00",Redacted Personal Information
Manchester City Council,Corporate Services,Fees,16.11.2018,1906260203,"2,310.95",Marston Group Limited
Manchester City Council,Adult Social Care,Payments for services,16.11.2018,5101005232,"2,150.00",Cais Ltd
Manchester City Council,Adult Social Care,Payments for services,16.11.2018,5101005234,"2,150.00",Cais Ltd
Manchester City Council,Highways Services,Professional fees,16.11.2018,5101004614,"2,149.44",Wilde Consultants Ltd
Manchester City Council,Regeneration Finance,External repairs and maintenance for buildings,16.11.2018,5101004897,"2,137.00",Fairway Landscapes Ltd
Manchester City Council,Adult Social Care,Professional fees,16.11.2018,1906259961,"2,109.25",Redacted Personal Information
Manchester City Council,Adult Social Care,Professional fees,16.11.2018,1906255982,"2,100.00",Redacted Personal Information
Manchester City Council,Manchester Leisure,Grant and subscriptions awarded,16.11.2018,5101005159,"2,063.57",Manchester Alliance For
Manchester City Council,Highways Services,Professional fees,16.11.2018,5101005194,"2,000.00",Rochdale MBC
Manchester City Council,Highways Services,Building Materials for direct delivery,16.11.2018,5101005169,"1,975.47",Compass Minerals UK Ltd
Manchester City Council,Manchester Leisure,Professional fees,16.11.2018,5101004914,"1,968.00",Mahood Marquees Ltd
Manchester City Council,Highways Services,Building Materials for direct delivery,16.11.2018,5101005173,"1,925.10",Compass Minerals UK Ltd
Manchester City Council,Highways Services,Payments to Sub-Contractors,16.11.2018,5101004455,"1,700.00",Northern Marking Limited
Manchester City Council,Highways Services,Payments to Sub-Contractors,16.11.2018,5101005003,"1,700.00",Northern Marking Limited
Manchester City Council,Regeneration Finance,Professional fees,16.11.2018,5101004939,"1,600.00",Arboricultural Services Treework
Manchester City Council,Chief Executives,Compensation Payments,16.11.2018,1906268612,"1,577.20",Dr N P Alwin Ltd
Manchester City Council,Corporate Services,Grant Payments,16.11.2018,5101005146,"1,540.00",digitalenergy Ltd
Manchester City Council,Adult Social Care,Transport Coach Hire,16.11.2018,5101005257,"1,520.00",First Manchester Ltd
Manchester City Council,Adult Social Care,Contract Cleaning External,16.11.2018,5101005204,"1,464.00",Foundation Years Nurs - Sharston
Manchester City Council,Adult Social Care,Personal needs of client,16.11.2018,5101004979,"1,454.00",Care & Independence Ltd
Manchester City Council,Adult Social Care,Professional fees,16.11.2018,1906263605,"1,450.00",Kenworthy's Chambers
Manchester City Council,Adult Social Care,Professional fees,16.11.2018,1906267034,"1,400.00",Kenworthy's Chambers
Manchester City Council,Chief Executives,Paper & Envelopes,16.11.2018,5101005139,"1,398.85",Premier Paper Group Ltd
Manchester City Council,Highways Services,Building Materials for direct delivery,16.11.2018,5101005242,"1,315.00",Compass Minerals UK Ltd
Manchester City Council,Manchester Leisure,Professional fees,16.11.2018,5101005286,"1,314.35",Experian  Ltd
Manchester City Council,Adult Social Care,Funeral and coroner related services,16.11.2018,5101005009,"1,274.00",Greater Manchester Funeral Service
Manchester City Council,Adult Social Care,Funeral and coroner related services,16.11.2018,5101005012,"1,274.00",Greater Manchester Funeral Service
Manchester City Council,Manchester Leisure,Professional fees,16.11.2018,5101005284,"1,242.10",Experian  Ltd
Manchester City Council,Adult Social Care,Professional fees,16.11.2018,1906267507,"1,141.67",Redacted Personal Information
Manchester City Council,Highways Services,Building Materials for direct delivery,16.11.2018,5101005236,"1,121.12",TARMAC
Manchester City Council,Manchester Leisure,Goods purchased for resale in Council outlets,16.11.2018,5101005183,"1,100.00",Macmillan Distribution Ltd
Manchester City Council,Corporate Services,Grant Payments,16.11.2018,5101005148,"1,050.00",digitalenergy Ltd
Manchester City Council,Adult Social Care,Third party payments relating to Voluntary Organisations,16.11.2018,5101004967,"1,041.74",Centrepoint-YPSF
Manchester City Council,Adult Social Care,Professional fees,16.11.2018,1906268527,"1,000.00",Redacted Personal Information
Manchester City Council,Chief Executives,Subsistence and Conference Expenses,16.11.2018,5101003252,"1,000.00",Improvement & Development Agency
Manchester City Council,Highways Services,Building Materials for direct delivery,16.11.2018,5101005170,999.81,Compass Minerals UK Ltd
Manchester City Council,Manchester Leisure,Professional fees,16.11.2018,5101005254,950.00,Redacted Personal Information
Manchester City Council,Adult Social Care,Professional fees,16.11.2018,1906267508,950.00,Redacted Personal Information
Manchester City Council,Adult Social Care,Supporting People Payments,16.11.2018,5101004836,881.79,Arawak Walton Housing Association
Manchester City Council,Adult Social Care,Professional fees,16.11.2018,1906263616,825.00,Redacted Personal Information
Manchester City Council,Corporate Services,Fees,16.11.2018,1906260202,814.90,Marston Group Limited
Manchester City Council,Adult Social Care,Professional fees,16.11.2018,1906267035,800.00,Kenworthy's Chambers
Manchester City Council,Chief Executives,Advertising,16.11.2018,5101005153,800.00,Loop Publishing Ltd
Manchester City Council,Adult Social Care,Payments for services,16.11.2018,1906268543,800.00,Sedgely Park Community School
Manchester City Council,Adult Social Care,Supporting People Payments,16.11.2018,5101004701,760.13,Irwell Valley Housing Association
Manchester City Council,Highways Services,Building Materials for direct delivery,16.11.2018,5101005237,755.82,TARMAC
Manchester City Council,Adult Social Care,Funeral and coroner related services,16.11.2018,5101005008,755.00,Greater Manchester Funeral Service
Manchester City Council,Corporate Services,Grant Payments,16.11.2018,5101005216,750.00,SAP UK & Eire User Group
Manchester City Council,Manchester Leisure,Grounds Maintenance Costs,16.11.2018,5101004883,725.00,Groundwork Landscapes Ltd
Manchester City Council,Adult Social Care,Professional fees,16.11.2018,1906255970,725.00,Redacted Personal Information
Manchester City Council,Chief Executives,Compensation Payments,16.11.2018,1906270118,700.00,Redacted Personal Information
Manchester City Council,Adult Social Care,Payments for services,16.11.2018,5101005225,699.00,Turning Point
Manchester City Council,Manchester Leisure,Goods purchased for resale in Council outlets,16.11.2018,5101005193,693.42,Museums and Galleries Ltd
Manchester City Council,Adult Social Care,Professional fees,16.11.2018,1906267053,681.50,Bowland Psychological Services Ltd
Manchester City Council,Adult Social Care,Contract Cleaning External,16.11.2018,1906247625,675.48,Mayfield Floors
Manchester City Council,Corporate Services,Fees,16.11.2018,5101005189,665.00,Pannone Corporate LLP
Manchester City Council,Adult Social Care,Professional fees,16.11.2018,1906267057,650.00,18 St John Street Chambers
Manchester City Council,Regeneration Finance,Grounds Maintenance Costs,16.11.2018,5101005133,630.00,Countrywide Grounds Maintenance Ltd
Manchester City Council,Chief Executives,Payments to Sub-Contractors,16.11.2018,5101005245,630.00,Redacted Personal Information
Manchester City Council,Highways Services,Building Materials for direct delivery,16.11.2018,5101005235,603.36,TARMAC
Manchester City Council,Adult Social Care,Supporting People Payments,16.11.2018,5101004836,577.88,Arawak Walton Housing Association
Manchester City Council,Adult Social Care,Professional fees,16.11.2018,1906267085,566.30,Target Psychology Ltd
Manchester City Council,Hospitality + Trading Services,Vehicle Hire Costs,16.11.2018,5101005263,560.00,Winners Contract Hire Ltd
Manchester City Council,Adult Social Care,Supporting People Payments,16.11.2018,5101004836,557.80,Arawak Walton Housing Association
Manchester City Council,Adult Social Care,Professional fees,16.11.2018,1906263615,550.00,Redacted Personal Information
Manchester City Council,Adult Social Care,Professional fees,16.11.2018,1906259972,550.00,Redacted Personal Information
Manchester City Council,Highways Services,Building Materials for direct delivery,16.11.2018,5101005160,524.98,TARMAC
Manchester City Council,Chief Executives,Printing,16.11.2018,5101004980,510.00,Allied Publicity Serv.(Manchester)
Manchester City Council,Chief Executives,Printing,16.11.2018,5101005151,500.00,The Parking Shop Ltd
Manchester City Council,Regeneration Finance,Professional fees,16.11.2018,5101004943,500.00,Arboricultural Services Treework
Manchester City Council,Chief Executives,Vehicle Plant Furniture and Equipment,16.11.2018,5101004890,500.00,Intec For Business Ltd
Manchester City Council,Corporate Services,Fees,16.11.2018,1906260202,-814.90,Marston Group Limited
Manchester City Council,Corporate Services,Fees,16.11.2018,1906260203,"-2,310.95",Marston Group Limited
Manchester City Council,Corporate Services,Fees,16.11.2018,1906260198,"-4,187.60",Rundles
Manchester City Council,Corporate Services,Fees,16.11.2018,1906260050,"-9,371.50",Newlyn Plc
Manchester City Council,Corporate Services,Fees,16.11.2018,1906260199,"-40,048.65",Rundles
Manchester City Council,Corporate Services,Fees,16.11.2018,1906260204,"-47,584.60",Marston Group Limited
Manchester City Council,Housing General Fund,Works and associated costs for Land and Buildings,19.11.2018,5101005150,"428,905.64",Wates Construction Ltd
Manchester City Council,Adult Social Care,Professional fees,19.11.2018,5101004916,"396,311.00",Manchester School Services Limited
Manchester City Council,Regeneration Finance,Subvention Payments,19.11.2018,5101005302,"252,937.00",Manchester Creative Digital Assets
Manchester City Council,Regeneration Finance,Subvention Payments,19.11.2018,5101005338,"207,401.00",Manchester Creative Digital Assets
Manchester City Council,Corporate Services,Works and associated costs for Land and Buildings,19.11.2018,5101005310,"164,156.04",Ove Arup & Partners Ltd
Manchester City Council,Corporate Services,Long Term Debtors,19.11.2018,5101005501,"150,841.03",Splash Developments Ltd
Manchester City Council,Adult Social Care,Rents,19.11.2018,5101005297,"116,804.76",Mack Residential Letting Ltd
Manchester City Council,Adult Social Care,Rents,19.11.2018,5101005465,"76,427.00",Accommodation Links Ltd
Manchester City Council,Housing General Fund,Surplus property Acquisitions,19.11.2018,1906271149,"63,000.00",Ford Banks Irwin Solicitors
Manchester City Council,Regeneration Finance,Subvention Payments,19.11.2018,5101005303,"62,527.00",Manchester Creative Digital Assets
Manchester City Council,Adult Social Care,Rents,19.11.2018,5101005365,"58,973.26",B & A Properties
Manchester City Council,Regeneration Finance,Professional fees,19.11.2018,5101005467,"44,000.00",Jacobs UK Ltd
Manchester City Council,Adult Social Care,Payments for services,19.11.2018,5101005372,"43,648.50",St John Vianney School
Manchester City Council,Adult Social Care,Payments for services,19.11.2018,5101005460,"40,626.67",Belmont School Ltd
Manchester City Council,Adult Social Care,Payments for services,19.11.2018,5101005445,"38,584.00",Social Care Services (Clayton) Ltd
Manchester City Council,Adult Social Care,Payments for services,19.11.2018,5101005448,"38,584.00",Social Care Services (Clayton) Ltd
Manchester City Council,Chief Executives,Works and associated costs for Land and Buildings,19.11.2018,5101005317,"35,000.00",Gardiner & Theobald LLP
Manchester City Council,Regeneration Finance,Subvention Payments,19.11.2018,5101005341,"32,632.00",Manchester Creative Digital Assets
Manchester City Council,Chief Executives,I T Provision,19.11.2018,5101004831,"26,783.60",Insight Direct (Uk) Ltd
Manchester City Council,Chief Executives,Agency staff provision,19.11.2018,5101005466,"22,078.41",Cadence Resourcing Ltd
Manchester City Council,Hospitality + Trading Services,Vehicle Fuel Costs,19.11.2018,5101005191,"19,605.98",Carlton Fuels Ltd
Manchester City Council,Hospitality + Trading Services,Vehicle Fuel Costs,19.11.2018,5101005405,"19,603.80",Carlton Fuels Ltd
Manchester City Council,Chief Executives,Works and associated costs for Land and Buildings,19.11.2018,5101005410,"19,272.99",Manchester Working Ltd
Manchester City Council,Adult Social Care,Payments for services,19.11.2018,5101005299,"18,824.38",H.G. Care Services Ltd
Manchester City Council,Housing Revenue Account,West Gorton Management Fee,19.11.2018,5101005456,"15,761.00",The Guinness Partnership Ltd
Manchester City Council,Chief Executives,Electricity,19.11.2018,5101005209,"14,663.12",Manchester Creative Digital Assets
Manchester City Council,Housing General Fund,Capital Receipts,19.11.2018,1906267080,"14,350.00",Redrow Homes Lancashire
Manchester City Council,Adult Social Care,Payments for services,19.11.2018,5101005428,"13,833.33",Cambian Childcare Ltd
Manchester City Council,Adult Social Care,Gas,19.11.2018,5101004917,"13,500.72",Manchester School Services Limited
Manchester City Council,Adult Social Care,Payments for services,19.11.2018,5101005459,"13,153.79",Ramillies Hall School Ltd
Manchester City Council,Adult Social Care,Payments for services,19.11.2018,5101005464,"12,942.92",Belmont School Ltd
Manchester City Council,Adult Social Care,Payments for services,19.11.2018,5101005430,"12,821.74",The Together Trust
Manchester City Council,Highways Services,Collection Commission,19.11.2018,5101005412,"12,323.90",Verrus (UK) T/A paybyphone
Manchester City Council,Corporate Services,Works and associated costs for Land and Buildings,19.11.2018,5101005308,"12,166.88",Ove Arup & Partners Ltd
Manchester City Council,Manchester Leisure,Equipment,19.11.2018,5101005233,"11,934.00",Craemer Uk Ltd
Manchester City Council,Manchester Leisure,Equipment,19.11.2018,5101005407,"11,934.00",Craemer Uk Ltd
Manchester City Council,Manchester Leisure,Equipment,19.11.2018,5101005229,"11,661.00",Craemer Uk Ltd
Manchester City Council,Adult Social Care,Payments for services,19.11.2018,5101005462,"11,482.94",Belmont School Ltd
Manchester City Council,Corporate Services,Works and associated costs for Land and Buildings,19.11.2018,5101005376,"10,900.00",Ove Arup & Partners Ltd
Manchester City Council,Housing General Fund,Capital Receipts,19.11.2018,1906263656,"10,015.00",Redrow Homes Lancashire
Manchester City Council,Corporate Services,Long Term Debtors,19.11.2018,5101005503,"9,229.02",Splash Developments Ltd
Manchester City Council,Adult Social Care,Bed and Breakfast Accommodation Expenditure,19.11.2018,5101005422,"8,825.00",Redacted Personal Information
Manchester City Council,Adult Social Care,Payments for services,19.11.2018,5101005301,"8,772.70",H.G. Care Services Ltd
Manchester City Council,Corporate Services,Works and associated costs for Land and Buildings,19.11.2018,5101005312,"7,425.00",Ove Arup & Partners Ltd
Manchester City Council,Adult Social Care,Bed and Breakfast Accommodation Expenditure,19.11.2018,5101005313,"7,225.00",Redacted Personal Information
Manchester City Council,Chief Executives,Advertising,19.11.2018,5101005429,"7,000.00",Clicky Media Ltd
Manchester City Council,Corporate Services,Works and associated costs for Land and Buildings,19.11.2018,5101005378,"6,863.00",Ove Arup & Partners Ltd
Manchester City Council,Manchester Leisure,Security,19.11.2018,5100978763,"6,777.29",Showsec International Ltd
Manchester City Council,Adult Social Care,Personal needs of client,19.11.2018,5101005433,"5,855.64",Creative Care Limited
Manchester City Council,Adult Social Care,Payments for services,19.11.2018,5101005461,"5,853.33",Belmont School Ltd
Manchester City Council,Chief Executives,Agency staff provision,19.11.2018,5101005423,"5,664.42",Deekay Technical Recruitment Ltd
Manchester City Council,Chief Executives,Advertising,19.11.2018,5101005339,"5,600.00",Exterion Media
Manchester City Council,Highways Services,Payments to Sub-Contractors,19.11.2018,5101005256,"5,343.00",Utilities Design & Planning Ltd
Manchester City Council,Adult Social Care,Payments for services,19.11.2018,5101005373,"4,914.75",St John Vianney School
Manchester City Council,Manchester Leisure,Hire of Equipment,19.11.2018,5101005427,"4,417.38",dbnAudile Limited
Manchester City Council,Adult Social Care,Transport Coach Hire,19.11.2018,5101005215,"4,380.00",School Transport Solutions
Manchester City Council,Chief Executives,Advertising,19.11.2018,5101005340,"4,200.00",Exterion Media
Manchester City Council,Adult Social Care,Car Parking Permits,19.11.2018,1906246221,"4,086.64",National Car Parks Ltd Season Ticke
Manchester City Council,Chief Executives,Advertising,19.11.2018,5101005397,"4,000.00",Fonemedia Limited
Manchester City Council,Adult Social Care,Payments for services,19.11.2018,5101005444,"3,965.89",The Together Trust
Manchester City Council,Chief Executives,I T Provision,19.11.2018,1906259989,"3,566.98",Vodafone (Ex C&W)
Manchester City Council,Chief Executives,Compensation Payments,19.11.2018,1906269903,"3,500.00",Central Chambers
Manchester City Council,Regeneration Finance,Professional fees,19.11.2018,5101005477,"3,325.00",Jacobs UK Ltd
Manchester City Council,Adult Social Care,Transport Coach Hire,19.11.2018,5101005214,"3,278.00",School Transport Solutions
Manchester City Council,Adult Social Care,Payments for services,19.11.2018,5101005451,"3,239.74",The Together Trust
Manchester City Council,Adult Social Care,Payments for services,19.11.2018,5101005446,"3,209.61",The Together Trust
Manchester City Council,Adult Social Care,Bed and Breakfast Accommodation Expenditure,19.11.2018,5101005463,"3,162.50",Park Crescent Hotel Ltd
Manchester City Council,Adult Social Care,Payments for services,19.11.2018,5101005371,"3,024.00",Radical Services Ltd
Manchester City Council,Chief Executives,Printing,19.11.2018,5101003619,"2,979.25",Silk Group Ltd
Manchester City Council,Adult Social Care,Third party payments to other Local Authorities,19.11.2018,5101005393,"2,604.66",Altrincham College Of Arts
Manchester City Council,Highways Services,"Clothes, Uniform and Laundry",19.11.2018,5101005335,"2,590.06",Longworth Ltd
Manchester City Council,Regeneration Finance,Professional fees,19.11.2018,5101005479,"2,517.50",Jacobs UK Ltd
Manchester City Council,Manchester Leisure,Goods purchased for resale in Council outlets,19.11.2018,5101005322,"2,509.49",Marimekko
Manchester City Council,Adult Social Care,Payments for services,19.11.2018,5101005450,"2,354.72",The Together Trust
Manchester City Council,Adult Social Care,Payments for services,19.11.2018,5101005369,"2,184.00",Radical Services Ltd
Manchester City Council,Highways Services,"Clothes, Uniform and Laundry",19.11.2018,5101005329,"2,082.20",Longworth Ltd
Manchester City Council,Adult Social Care,Payments for services,19.11.2018,5101005453,"2,037.66",The Together Trust
Manchester City Council,Adult Social Care,Bed and Breakfast Accommodation Expenditure,19.11.2018,5101005419,"2,020.00",Redacted Personal Information
Manchester City Council,Manchester Leisure,Grant and subscriptions awarded,19.11.2018,5101004448,"2,000.00",Gorton Events Committee
Manchester City Council,Manchester Leisure,Payments to Sub-Contractors,19.11.2018,5101005368,"1,984.00",Wythenshawe Community Farm
Manchester City Council,Adult Social Care,Payment of School Budget Share,19.11.2018,5101005432,"1,980.00",Meade Hill School
Manchester City Council,Manchester Leisure,Payments to Sub-Contractors,19.11.2018,5101005367,"1,968.00",Wythenshawe Community Farm
Manchester City Council,Hospitality + Trading Services,Professional fees,19.11.2018,5101005480,"1,908.00",Jacobs UK Ltd
Manchester City Council,Adult Social Care,Payments for services,19.11.2018,5101005449,"1,808.84",The Together Trust
Manchester City Council,Adult Social Care,Payments for services,19.11.2018,5101005447,"1,773.21",The Together Trust
Manchester City Council,Chief Executives,Advertising,19.11.2018,5101005337,"1,770.00",Exterion Media
Manchester City Council,Chief Executives,Landline Telephone Charges,19.11.2018,5101005171,"1,750.00",The Loop t/a Gamma Telecom Ltd
Manchester City Council,Adult Social Care,Subsistence and Conference Expenses,19.11.2018,5101005332,"1,750.00",Calico Enterprise Limited
Manchester City Council,Chief Executives,Licences Purchase,19.11.2018,5101005370,"1,695.00",Socitm Limited
Manchester City Council,Adult Social Care,Payments for services,19.11.2018,5101005454,"1,619.87",The Together Trust
Manchester City Council,Regeneration Finance,Cleaning Equipment and Materials,19.11.2018,5101005508,"1,593.79",Alliance Disposables Ltd
Manchester City Council,Regeneration Finance,Professional fees,19.11.2018,5101005477,"1,530.20",Jacobs UK Ltd
Manchester City Council,Adult Social Care,Professional fees,19.11.2018,1906269897,"1,500.00",Redacted Personal Information
Manchester City Council,Adult Social Care,Transport Coach Hire,19.11.2018,5101005145,"1,283.40",Cresta Car Hire
Manchester City Council,Hospitality + Trading Services,Catering Provisions,19.11.2018,1906271183,"1,272.09",Brake Bros Foodservice Ltd
Manchester City Council,Highways Services,Payments to Sub-Contractors,19.11.2018,5101005333,"1,187.20",Northern Marking Limited
Manchester City Council,Adult Social Care,Payments for services,19.11.2018,5101005452,"1,182.14",The Together Trust
Manchester City Council,Adult Social Care,Payments for services,19.11.2018,5101005484,"1,170.03",The Together Trust
Manchester City Council,Adult Social Care,Funeral and coroner related services,19.11.2018,5101005418,"1,124.00",Greater Manchester Funeral Service
Manchester City Council,Chief Executives,Payments to Sub-Contractors,19.11.2018,5101005486,"1,033.26",Redacted Personal Information
Manchester City Council,Regeneration Finance,Cleaning Equipment and Materials,19.11.2018,5101005507,"1,022.06",Alliance Disposables Ltd
Manchester City Council,Adult Social Care,Car Parking Permits,19.11.2018,1906246206,"1,021.66",National Car Parks Ltd Season Ticke
Manchester City Council,Hospitality + Trading Services,Professional fees,19.11.2018,5101005477,"1,000.00",Jacobs UK Ltd
Manchester City Council,Chief Executives,Professional fees,19.11.2018,5101005421,"1,000.00",Manchester Literature Festival
Manchester City Council,Regeneration Finance,Professional fees,19.11.2018,5101004820,996.13,AA Projects Ltd
Manchester City Council,Adult Social Care,Transport Coach Hire,19.11.2018,5101005129,990.00,Cresta Car Hire
Manchester City Council,Adult Social Care,Third party payments relating to Voluntary Organisations,19.11.2018,5101005396,990.00,Tiddlywinks Nursery-Clayton No.4 Ac
Manchester City Council,Adult Social Care,Payments for services,19.11.2018,5101005485,984.90,The Together Trust
Manchester City Council,Adult Social Care,Professional fees,19.11.2018,1906185207,975.00,Redacted Personal Information
Manchester City Council,Manchester Leisure,Payments for services,19.11.2018,5101005426,950.00,Dance and Fitness Agency Ltd
Manchester City Council,Hospitality + Trading Services,Catering Provisions,19.11.2018,1906271156,908.87,Brake Bros Foodservice Ltd
Manchester City Council,Manchester Leisure,Goods purchased for resale in Council outlets,19.11.2018,5101005326,882.95,Littlehampton Book Services Ltd
Manchester City Council,Adult Social Care,Professional fees,19.11.2018,5101005401,850.00,North West Employers Ltd
Manchester City Council,Housing General Fund,Surplus property Fees,19.11.2018,1906271149,834.00,Ford Banks Irwin Solicitors
Manchester City Council,Adult Social Care,Professional fees,19.11.2018,1906269895,810.00,Manchester Private Paediatrician
Manchester City Council,Chief Executives,Landline Telephone Charges,19.11.2018,5101005165,795.00,The Loop t/a Gamma Telecom Ltd
Manchester City Council,Housing General Fund,Surplus property Fees,19.11.2018,5101005477,795.00,Jacobs UK Ltd
Manchester City Council,Adult Social Care,Transport Coach Hire,19.11.2018,5101005144,792.00,Cresta Car Hire
Manchester City Council,Adult Social Care,Transport Coach Hire,19.11.2018,5101005168,787.50,Cresta Car Hire
Manchester City Council,Chief Executives,Stationery,19.11.2018,5101005593,782.86,Banner Group Limited
Manchester City Council,Hospitality + Trading Services,"Clothes, Uniform and Laundry",19.11.2018,5101005598,773.80,Image@Work Ltd
Manchester City Council,Manchester Leisure,Furniture,19.11.2018,5101005413,771.00,Earth Anchors Ltd
Manchester City Council,Hospitality + Trading Services,"Clothes, Uniform and Laundry",19.11.2018,5101005597,766.05,Image@Work Ltd
Manchester City Council,Manchester Leisure,Goods purchased for resale in Council outlets,19.11.2018,5101005375,752.90,Etnika
Manchester City Council,Corporate Services,Professional fees,19.11.2018,5101005483,750.00,Dalbergia Consulting Ltd
Manchester City Council,Manchester Leisure,Goods purchased for resale in Council outlets,19.11.2018,5101005482,747.89,Hartley & Marks Publishers Ltd
Manchester City Council,Adult Social Care,Transport Coach Hire,19.11.2018,5101005142,738.00,Cresta Car Hire
Manchester City Council,Manchester Leisure,Payments to Sub-Contractors,19.11.2018,5101005366,728.00,Wythenshawe Community Farm
Manchester City Council,Adult Social Care,Transport Coach Hire,19.11.2018,5101005130,725.20,Cresta Car Hire
Manchester City Council,Regeneration Finance,Stationery,19.11.2018,5101005596,711.20,Banner Group Limited
Manchester City Council,Regeneration Finance,Professional fees,19.11.2018,5101005477,684.00,Jacobs UK Ltd
Manchester City Council,Manchester Leisure,Payments for services,19.11.2018,5101005394,680.00,Pure Dogeball
Manchester City Council,Adult Social Care,Transport Coach Hire,19.11.2018,5101005143,659.10,Cresta Car Hire
Manchester City Council,Adult Social Care,Transport Coach Hire,19.11.2018,5101005163,648.00,Cresta Car Hire
Manchester City Council,Adult Social Care,Transport Taxis,19.11.2018,1906263516,599.61,Cresta Car Hire
Manchester City Council,Adult Social Care,Payments to Contractors,19.11.2018,1906268526,597.80,Farrer & Co
Manchester City Council,Environment and Operations,Professional fees,19.11.2018,5101005424,595.00,Solution Talk LLP
Manchester City Council,Hospitality + Trading Services,Catering Provisions,19.11.2018,1906271210,585.56,Brake Bros Foodservice Ltd
Manchester City Council,Regeneration Finance,Professional fees,19.11.2018,5101005477,576.00,Jacobs UK Ltd
Manchester City Council,Hospitality + Trading Services,"Clothes, Uniform and Laundry",19.11.2018,5101005601,569.00,Image@Work Ltd
Manchester City Council,Manchester Leisure,Goods purchased for resale in Council outlets,19.11.2018,5101005327,552.47,Grantham Book Services Ltd
Manchester City Council,Adult Social Care,Rents,19.11.2018,1906262551,550.00,Ryan Bakers Estate Agents
Manchester City Council,Chief Executives,Works and associated costs for Land and Buildings,19.11.2018,5101005347,550.00,Survey Operations Limited
Manchester City Council,Hospitality + Trading Services,Catering Provisions,19.11.2018,1906271165,533.68,Brake Bros Foodservice Ltd
Manchester City Council,Hospitality + Trading Services,Catering Provisions,19.11.2018,1906271213,516.54,Brake Bros Foodservice Ltd
Manchester City Council,Chief Executives,Compensation Payments,19.11.2018,1906269884,515.95,Letechia Consulting Ltd
Manchester City Council,Chief Executives,Payments to Sub-Contractors,19.11.2018,5101005243,511.05,Redacted Personal Information
Manchester City Council,Adult Social Care,Hire of Premises,19.11.2018,5101005388,500.00,Quaker Trading Ltd
Manchester City Council,Chief Executives,Compensation Payments,19.11.2018,1906269910,500.00,Redacted Personal Information
Manchester City Council,Highways Services,"Clothes, Uniform and Laundry",19.11.2018,5101005325,"-2,082.20",Longworth Ltd
Manchester City Council,Highways Services,Compensation Payments,19.11.2018,1700084535,"-3,750.00",Platt Halpern
Manchester City Council,Adult Social Care,Private Finance and Public Private partnership initiatives,19.11.2018,5101004833,"-4,866.48",Manchester School Services Limited
Manchester City Council,Adult Social Care,Third party payments to Health Authority,19.11.2018,5101005562,"-225,000.00",NHS Central Manchester CCG
Manchester City Council,Corporate Services,Works and associated costs for Land and Buildings,20.11.2018,5101005574,"160,000.00",Purcell Miller Tritton LLP
Manchester City Council,Chief Executives,Grant and subscriptions awarded,20.11.2018,1906260539,"100,000.00",Manchester Credit Union
Manchester City Council,Corporate Services,Works and associated costs for Land and Buildings,20.11.2018,5101005599,"38,797.82",Mace Ltd
Manchester City Council,Regeneration Finance,Internal Repairs and Maintenance for buildings,20.11.2018,5101005576,"34,361.67",Manchester Working Ltd
Manchester City Council,Corporate Services,Works and associated costs for Land and Buildings,20.11.2018,5101005555,"18,372.08",Manchester Working Ltd
Manchester City Council,Housing General Fund,Building Works,20.11.2018,1906272297,"17,425.00",Stannah Lift Services Ltd
Manchester City Council,Corporate Services,Works and associated costs for Land and Buildings,20.11.2018,5101005573,"10,000.00",Purcell Miller Tritton LLP
Manchester City Council,Regeneration Finance,Professional fees,20.11.2018,5101005559,"9,661.00",Kpmg Llp
Manchester City Council,Adult Social Care,Professional fees,20.11.2018,5101005500,"9,500.00",Paystream
Manchester City Council,Manchester Leisure,Payments to Sub-Contractors,20.11.2018,5101005558,"9,274.50",Greenfingers Landscape Ltd
Manchester City Council,Manchester Leisure,Payments to Sub-Contractors,20.11.2018,5101005629,"9,274.50",Greenfingers Landscape Ltd
Manchester City Council,Highways Services,Compensation Payments,20.11.2018,1906270196,"8,951.00",Department For Work & Pensions
Manchester City Council,Housing General Fund,Building Works,20.11.2018,1906272291,"8,751.64",UPS Building & Maintenance Ltd
Manchester City Council,Corporate Services,Works and associated costs for Land and Buildings,20.11.2018,5101005617,"8,240.00",Planit
Manchester City Council,Housing General Fund,Building Works,20.11.2018,1906272293,"8,101.38",UPS Building & Maintenance Ltd
Manchester City Council,Adult Social Care,Training and Development,20.11.2018,5101005557,"7,000.00",Wild in Art Limited
Manchester City Council,Housing General Fund,Building Works,20.11.2018,1906272290,"6,655.10",UPS Building & Maintenance Ltd
Manchester City Council,Adult Social Care,Third party payments relating to Voluntary Organisations,20.11.2018,1906267083,"6,147.57",Cambridge Education
Manchester City Council,Housing General Fund,Building Works,20.11.2018,1906272287,"5,906.35",UPS Building & Maintenance Ltd
Manchester City Council,Housing General Fund,Building Works,20.11.2018,1906272288,"5,782.87",UPS Building & Maintenance Ltd
Manchester City Council,Housing General Fund,Building Works,20.11.2018,1906272281,"5,673.00",Stannah Lift Services Ltd
Manchester City Council,Housing General Fund,Building Works,20.11.2018,1906272283,"5,574.24",UPS Building & Maintenance Ltd
Manchester City Council,Housing General Fund,Building Works,20.11.2018,1906272289,"5,511.63",UPS Building & Maintenance Ltd
Manchester City Council,Housing General Fund,Building Works,20.11.2018,1906272277,"5,491.70",UPS Building & Maintenance Ltd
Manchester City Council,Housing General Fund,Building Works,20.11.2018,1906272285,"5,269.12",UPS Building & Maintenance Ltd
Manchester City Council,Housing General Fund,Building Works,20.11.2018,1906272286,"4,618.49",UPS Building & Maintenance Ltd
Manchester City Council,Regeneration Finance,Professional fees,20.11.2018,5101005622,"4,583.00",Philanthropy Company
Manchester City Council,Housing General Fund,Building Works,20.11.2018,1906272279,"4,525.00",Thyssenkrupp Encasa
Manchester City Council,Housing General Fund,Building Works,20.11.2018,1906272295,"4,420.00",Thyssenkrupp Encasa
Manchester City Council,Housing General Fund,Building Works,20.11.2018,1906272292,"4,390.00",Thyssenkrupp Encasa
Manchester City Council,Corporate Services,Transport Taxis,20.11.2018,1906272444,"4,328.31",Manchester Cars
Manchester City Council,Chief Executives,Compensation Payments,20.11.2018,1906271146,"4,240.00",Redstone Psychology & PBS
Manchester City Council,Housing General Fund,Building Works,20.11.2018,1906272280,"4,236.00",Hoist & Shower Chair Company
Manchester City Council,Regeneration Finance,External repairs and maintenance for buildings,20.11.2018,5101005495,"4,063.48",Manchester Working Ltd
Manchester City Council,Chief Executives,Professional fees,20.11.2018,1906270298,"4,000.00",Redacted Personal Information
Manchester City Council,Adult Social Care,Personal needs of client,20.11.2018,5101005589,"3,400.00",James Leckey Design Ltd
Manchester City Council,Housing General Fund,Building Works,20.11.2018,1906272296,"3,372.00",UPS Building & Maintenance Ltd
Manchester City Council,Regeneration Finance,External repairs and maintenance for buildings,20.11.2018,5101005551,"3,067.30",Manchester Working Ltd
Manchester City Council,Housing General Fund,Building Works,20.11.2018,1906272282,"2,292.00",Stannah Lift Services Ltd
Manchester City Council,Housing General Fund,Building Works,20.11.2018,1906272284,"2,146.00",Stannah Lift Services Ltd
Manchester City Council,Adult Social Care,Training and Development,20.11.2018,5101005504,"2,000.00",The Training Co
Manchester City Council,Corporate Services,Compensation Payments,20.11.2018,1906269896,"2,000.00",Redacted Personal Information
Manchester City Council,Corporate Services,Works and associated costs for Land and Buildings,20.11.2018,5101005572,"2,000.00",Purcell Miller Tritton LLP
Manchester City Council,Regeneration Finance,External repairs and maintenance for buildings,20.11.2018,5101005552,"1,940.46",Manchester Working Ltd
Manchester City Council,Regeneration Finance,Professional fees,20.11.2018,5101005566,"1,891.50",Manchester Working Ltd
Manchester City Council,Chief Executives,Compensation Payments,20.11.2018,1906270297,"1,870.40",Millennium Translations Ltd
Manchester City Council,Adult Social Care,Bed and Breakfast Accommodation Expenditure,20.11.2018,5101005498,"1,800.00",Park Crescent Hotel Ltd
Manchester City Council,Housing Revenue Account,Professional fees,20.11.2018,5101005542,"1,750.00",Roger Hannah & Co
Manchester City Council,Chief Executives,Compensation Payments,20.11.2018,1906270192,"1,750.00",Redacted Personal Information
Manchester City Council,Adult Social Care,Third party payments relating to Voluntary Organisations,20.11.2018,5101005623,"1,629.00",Alzheimers Society (Mcr Branch)
Manchester City Council,Adult Social Care,Equipment,20.11.2018,5101005583,"1,561.40",Drive Devilbiss Healthcare Ltd
Manchester City Council,Manchester Leisure,Library Materials Acquisition,20.11.2018,1906272236,"1,499.00",Dandy Booksellers
Manchester City Council,Adult Social Care,Professional fees,20.11.2018,1906270299,"1,250.00",Redacted Personal Information
Manchester City Council,Corporate Services,Transport Taxis,20.11.2018,1906272561,"1,112.60",Manchester Cars
Manchester City Council,Hospitality + Trading Services,Contract Cleaning External,20.11.2018,5101005499,"1,100.00",Pest Bird Control Ltd
Manchester City Council,Housing General Fund,Building Works,20.11.2018,1906272294,"1,040.00",Stannah Lift Services Ltd
Manchester City Council,Adult Social Care,"Clothes, Uniform and Laundry",20.11.2018,5101005706,997.50,Alliance Disposables Ltd
Manchester City Council,Housing General Fund,Building Works,20.11.2018,1906272278,925.00,UPS Building & Maintenance Ltd
Manchester City Council,Chief Executives,Compensation Payments,20.11.2018,1906270180,908.45,Redacted Personal Information
Manchester City Council,Chief Executives,Compensation Payments,20.11.2018,1906270189,908.33,Redacted Personal Information
Manchester City Council,Adult Social Care,Professional fees,20.11.2018,1906270300,900.00,Redacted Personal Information
Manchester City Council,Manchester Leisure,Payments to Sub-Contractors,20.11.2018,5101005571,892.00,Wythenshawe Community Farm
Manchester City Council,Hospitality + Trading Services,External repairs and maintenance for buildings,20.11.2018,5101005554,813.75,Manchester Working Ltd
Manchester City Council,Corporate Services,Works and associated costs for Land and Buildings,20.11.2018,5101005556,706.30,Manchester Working Ltd
Manchester City Council,Adult Social Care,Hire of Premises,20.11.2018,5101005615,700.20,Greater Manchester Police Sports &
Manchester City Council,Highways Services,Compensation Payments,20.11.2018,1906267030,678.00,Department For Work & Pensions
Manchester City Council,Highways Services,Compensation Payments,20.11.2018,1906270194,647.00,Department For Work & Pensions
Manchester City Council,Manchester Leisure,Payments to Sub-Contractors,20.11.2018,5101005569,616.00,Wythenshawe Community Farm
Manchester City Council,Highways Services,Compensation Payments,20.11.2018,1906270185,528.00,Redacted Personal Information
Manchester City Council,Regeneration Finance,Non Housing Rent Receipts,20.11.2018,1700084579,-700.00,Redacted Personal Information
Manchester City Council,Collection Fund,Ctax - Preceptor Payments,21.11.2018,1906010992,"2,445,136.00",GMCA
Manchester City Council,Corporate Services,Long Term Debtors,21.11.2018,5101005763,"684,396.00",Vesta Street Development Ltd
Manchester City Council,Corporate Services,Works and associated costs for Land and Buildings,21.11.2018,5101005741,"529,586.13",ISG Construction Limited
Manchester City Council,Collection Fund,Business Rates - Preceptor Payments,21.11.2018,1906010992,"270,684.00",GMCA
Manchester City Council,Adult Social Care,Private Finance and Public Private partnership initiatives,21.11.2018,5101005701,"74,971.26",NU3PS
Manchester City Council,Adult Social Care,Transport Coach Hire,21.11.2018,5101005403,"72,930.49",Westfield Minibuses
Manchester City Council,Childrens Services,Works and associated costs for Land and Buildings,21.11.2018,5101003874,"40,958.61",Herbert T Forrest Ltd
Manchester City Council,Adult Social Care,Payments for services,21.11.2018,5101005852,"35,702.70",Creative Support Ltd
Manchester City Council,Adult Social Care,Payments for services,21.11.2018,5101005854,"35,702.70",Creative Support Ltd
Manchester City Council,Adult Social Care,Payments for services,21.11.2018,5101005807,"23,495.00",The William Henry Smith School
Manchester City Council,Environment and Operations,Construction Works,21.11.2018,5101005219,"20,756.63",J.Hopkins (Contractors) Ltd.
Manchester City Council,Corporate Services,Works and associated costs for Land and Buildings,21.11.2018,5101005808,"19,502.28",Ramboll UK Limited
Manchester City Council,Adult Social Care,Third party payments relating to Voluntary Organisations,21.11.2018,5101005262,"18,099.50",DISC Ltd
Manchester City Council,Manchester Leisure,Grant and subscriptions awarded,21.11.2018,5101005758,"15,500.00",The Bread and Butter Thing
Manchester City Council,Adult Social Care,Supporting People Payments,21.11.2018,5101005260,"11,407.94",DISC Ltd
Manchester City Council,Adult Social Care,Payments for services,21.11.2018,5101005812,"11,333.33",Time Out Children'S Homes Ltd
Manchester City Council,Corporate Services,Fees,21.11.2018,5101005614,"11,259.58",Pannone Corporate LLP
Manchester City Council,Corporate Services,Works and associated costs for Land and Buildings,21.11.2018,5101005846,"11,204.14",ISG Construction Limited
Manchester City Council,Corporate Services,Professional fees,21.11.2018,5101005352,"10,801.08",Wilde Consultants Ltd
Manchester City Council,Corporate Services,Collection Commission,21.11.2018,5101005616,"7,785.00",Capacity Grid
Manchester City Council,Adult Social Care,Bed and Breakfast Accommodation Expenditure,21.11.2018,5101005855,"7,628.06",K L Properties
Manchester City Council,Corporate Services,Works and associated costs for Land and Buildings,21.11.2018,5101005497,"7,354.23",Manchester Creative Digital Assets
Manchester City Council,Highways Services,Car Parking Permits,21.11.2018,5101005841,"7,352.95",Quadrant Security Group
Manchester City Council,Highways Services,Professional fees,21.11.2018,5101005346,"7,260.55",Wilde Consultants Ltd
Manchester City Council,Highways Services,Professional fees,21.11.2018,5101005357,"6,759.60",Wilde Consultants Ltd
Manchester City Council,Adult Social Care,Payments for services,21.11.2018,5101005813,"6,500.00",Cambian Childcare Ltd
Manchester City Council,Chief Executives,Professional fees,21.11.2018,5101005684,"5,908.72",Foreign and Commonwealth Office
Manchester City Council,Regeneration Finance,External repairs and maintenance for buildings,21.11.2018,5101005575,"5,905.25",Manchester Working Ltd
Manchester City Council,Regeneration Finance,Preventative Maintenance Work,21.11.2018,5101005755,"5,724.40",Manchester Working Ltd
Manchester City Council,Highways Services,Professional fees,21.11.2018,5101005344,"5,655.36",Wilde Consultants Ltd
Manchester City Council,Adult Social Care,Equipment,21.11.2018,5101005259,"5,520.00",Invacare Limited
Manchester City Council,Highways Services,Compensation Payments,21.11.2018,1906262542,"5,500.00",Sinton Solicitors
Manchester City Council,Libraries and Theatres,Training and Development,21.11.2018,5101005469,"5,400.00",T/A Uncle Joe's Driving School
Manchester City Council,Regeneration Finance,Professional fees,21.11.2018,5101003971,"4,876.45",Philanthropy Company
Manchester City Council,Regeneration Finance,Payments to Sub-Contractors,21.11.2018,5101005374,"4,628.90",Custodian Monitoring
Manchester City Council,Adult Social Care,Third party payments relating to Voluntary Organisations,21.11.2018,5101005293,"4,301.85",Man. Citizens Advice Bureaux
Manchester City Council,Chief Executives,ICT Support & Maintenance,21.11.2018,5101005404,"4,250.00",TNP Ltd
Manchester City Council,Adult Social Care,Professional fees,21.11.2018,1906272437,"3,950.00",Redacted Personal Information
Manchester City Council,Corporate Services,Fees,21.11.2018,1906270290,"3,584.85",Equita Ltd
Manchester City Council,Regeneration Finance,Supporting People Payments,21.11.2018,5101005659,"3,240.00",City Care Partnership Ltd
Manchester City Council,Adult Social Care,Supporting People Payments,21.11.2018,5101005261,"3,200.33",DISC Ltd
Manchester City Council,Adult Social Care,Professional fees,21.11.2018,5101005693,"2,750.00",JBS-R Associates
Manchester City Council,Manchester Leisure,Professional fees,21.11.2018,5101005892,"2,573.51",Daly Drains Ltd
Manchester City Council,Manchester Leisure,Payments to Sub-Contractors,21.11.2018,1906270242,"2,500.00",Redacted Personal Information
Manchester City Council,Manchester Leisure,Payments for services,21.11.2018,5101005492,"2,400.00",Robert Young Consulting Limited
Manchester City Council,Highways Services,Professional fees,21.11.2018,5101005348,"2,386.08",Wilde Consultants Ltd
Manchester City Council,Chief Executives,Vehicle Plant Furniture and Equipment,21.11.2018,5101005682,"2,250.00",Acuma Solutions Ltd
Manchester City Council,Adult Social Care,Equipment,21.11.2018,5101005582,"2,236.00",Drive Devilbiss Healthcare Ltd
Manchester City Council,Adult Social Care,Third party payments to Health Authority,21.11.2018,1906272467,"2,171.00",Virgin Care Servs Ltd
Manchester City Council,Regeneration Finance,Training and Development,21.11.2018,5101005747,"2,168.00",Manchester Metropolitan University
Manchester City Council,Corporate Services,Professional fees,21.11.2018,5101005563,"2,160.00",Wilde Consultants Ltd
Manchester City Council,Adult Social Care,Third party payments to Health Authority,21.11.2018,1906272421,"2,047.38",East Cheshire NHS Trust
Manchester City Council,Hospitality + Trading Services,Vehicle Hire Costs,21.11.2018,5101005716,"1,975.80",Enterprise Flex-E-Rent
Manchester City Council,Manchester Leisure,Professional fees,21.11.2018,5101005823,"1,830.00",Redacted Personal Information
Manchester City Council,Adult Social Care,Transport Coach Hire,21.11.2018,5101005713,"1,819.00",Redacted Personal Information
Manchester City Council,Corporate Services,Works and associated costs for Land and Buildings,21.11.2018,5101005797,"1,767.79",Manchester Working Ltd
Manchester City Council,Adult Social Care,Payments for services,21.11.2018,5101005715,"1,722.00",Redacted Personal Information
Manchester City Council,Highways Services,Purchase of stores for re-distribution,21.11.2018,5101005672,"1,600.56",Colas Limited
Manchester City Council,Adult Social Care,Professional fees,21.11.2018,5101005811,"1,500.00",Redacted Personal Information
Manchester City Council,Regeneration Finance,Hire of Premises,21.11.2018,5101005154,"1,440.00",Levenshulme Inspire
Manchester City Council,Regeneration Finance,Hire of Premises,21.11.2018,5101005158,"1,440.00",Levenshulme Inspire
Manchester City Council,Regeneration Finance,Hire of Premises,21.11.2018,5101005680,"1,440.00",Levenshulme Inspire
Manchester City Council,Regeneration Finance,Hire of Premises,21.11.2018,5101005681,"1,440.00",Levenshulme Inspire
Manchester City Council,Regeneration Finance,External repairs and maintenance for buildings,21.11.2018,5101005794,"1,356.25",Manchester Working Ltd
Manchester City Council,Regeneration Finance,External repairs and maintenance for buildings,21.11.2018,5101005801,"1,311.95",Manchester Working Ltd
Manchester City Council,Manchester Leisure,Professional fees,21.11.2018,5101005699,"1,205.00",Silverback Events Limited
Manchester City Council,Adult Social Care,Professional fees,21.11.2018,5101005692,"1,200.00",Cornerstone Design and Marketing
Manchester City Council,Adult Social Care,Professional fees,21.11.2018,1906272423,"1,200.00",Redacted Personal Information
Manchester City Council,Regeneration Finance,Stationery,21.11.2018,5101005764,"1,157.00",Digital ID Ltd
Manchester City Council,Adult Social Care,Day Care Payments,21.11.2018,5101005757,"1,130.00",Village Nursery & Pre-School
Manchester City Council,Hospitality + Trading Services,Hire of Machinery,21.11.2018,5101005776,"1,038.50",R & M Developments Ltd
Manchester City Council,Hospitality + Trading Services,Hire of Machinery,21.11.2018,5101005778,"1,038.50",R & M Developments Ltd
Manchester City Council,Hospitality + Trading Services,Hire of Machinery,21.11.2018,5101005773,"1,012.50",R & M Developments Ltd
Manchester City Council,Hospitality + Trading Services,Hire of Machinery,21.11.2018,5101005780,"1,012.50",R & M Developments Ltd
Manchester City Council,Adult Social Care,Personal needs of client,21.11.2018,5101005668,933.00,James Leckey Design Ltd
Manchester City Council,Adult Social Care,Third party payments to Health Authority,21.11.2018,1906272464,861.00,Virgin Care Servs Ltd
Manchester City Council,Adult Social Care,Payments for services,21.11.2018,1906270265,800.00,Wellfeild Infant & Nursery School
Manchester City Council,Manchester Leisure,Hire of Machinery,21.11.2018,5101005042,782.76,F.R.Sharrock Ltd
Manchester City Council,Adult Social Care,Rents,21.11.2018,1906272548,750.00,Happy Homes Uk Ltd
Manchester City Council,Adult Social Care,Third party payments to Health Authority,21.11.2018,1906272420,744.66,East Cheshire NHS Trust
Manchester City Council,Chief Executives,I T Provision,21.11.2018,5101005826,695.00,The Knowledge Academy Limited
Manchester City Council,Corporate Services,External repairs and maintenance for buildings,21.11.2018,5101005667,679.80,Whitecroft Lighting Ltd
Manchester City Council,Adult Social Care,Personal needs of client,21.11.2018,5101005564,661.40,Osprey Healthcare Ltd
Manchester City Council,Adult Social Care,Professional fees,21.11.2018,1906270177,650.00,Redacted Personal Information
Manchester City Council,Chief Executives,Training and Development,21.11.2018,5101005847,648.95,Resulting Limited
Manchester City Council,Highways Services,Purchase of stores for re-distribution,21.11.2018,5101005660,633.62,P.F. Cusack (Tools Supplies) Ltd
Manchester City Council,Chief Executives,Payments to Sub-Contractors,21.11.2018,5101005798,622.80,Redacted Personal Information
Manchester City Council,Adult Social Care,Rents,21.11.2018,1906272527,618.84,Easy 2 Let Manchester Ltd
Manchester City Council,Chief Executives,ICT Support & Maintenance,21.11.2018,5101005628,590.00,Finastra
Manchester City Council,Adult Social Care,Supporting People Payments,21.11.2018,5101005788,578.06,Southway Housing Trust
Manchester City Council,Chief Executives,Catering,21.11.2018,5101004460,577.50,Good Mood Food
Manchester City Council,Adult Social Care,Travel,21.11.2018,1906276054,572.44,Diversity Travel Ltd
Manchester City Council,Chief Executives,Payments to Sub-Contractors,21.11.2018,5101005834,525.61,Redacted Personal Information
Manchester City Council,Adult Social Care,External repairs and maintenance for buildings,21.11.2018,5101005800,500.00,Manchester Working Ltd
Manchester City Council,Adult Social Care,Rents,21.11.2018,1906272546,500.00,Happy Homes Uk Ltd
Manchester City Council,Adult Social Care,Professional fees,21.11.2018,1906269925,500.00,Redacted Personal Information
Manchester City Council,Adult Social Care,Personal needs of client,21.11.2018,5101005475,500.00,Hemingways Marketing Services Ltd
Manchester City Council,Corporate Services,Works and associated costs for Land and Buildings,21.11.2018,5101005810,500.00,Manchester Working Ltd
Manchester City Council,Regeneration Finance,Hire of Premises,21.11.2018,5101005678,"-1,440.00",Levenshulme Inspire
Manchester City Council,Regeneration Finance,Hire of Premises,21.11.2018,5101005679,"-1,440.00",Levenshulme Inspire
Manchester City Council,Corporate Services,Collection Commission,21.11.2018,5101005618,"-1,597.50",Capacity Grid
Manchester City Council,Corporate Services,Fees,21.11.2018,1906270290,"-3,584.85",Equita Ltd
Manchester City Council,Regeneration Finance,Professional fees,21.11.2018,5101005621,"-4,876.45",Philanthropy Company
Manchester City Council,Environment and Operations,Construction Works,22.11.2018,5101005493,"390,219.99",Dawnus Construction
Manchester City Council,Adult Social Care,Payments for services,22.11.2018,5101005986,"254,908.03",Standwalk Ltd
Manchester City Council,Adult Social Care,Payments for services,22.11.2018,5101005936,"221,896.03",Future Directions CIC
Manchester City Council,Housing General Fund,Building Works,22.11.2018,1906278525,"72,930.58",Abensons Solicitors
Manchester City Council,Hospitality + Trading Services,Electricity,22.11.2018,1906277999,"37,808.17",Npower
Manchester City Council,Regeneration Finance,Electricity,22.11.2018,1906278008,"37,292.61",Npower
Manchester City Council,Adult Social Care,Third party payments to other Local Authorities,22.11.2018,5101005959,"35,785.11",Pictor Academy
Manchester City Council,Regeneration Finance,Electricity,22.11.2018,1906278014,"35,081.52",Npower
Manchester City Council,Chief Executives,Works and associated costs for Land and Buildings,22.11.2018,5101005928,"32,500.00",Building Design Partnership Limited
Manchester City Council,Chief Executives,Works and associated costs for Land and Buildings,22.11.2018,5101005927,"31,637.50",Building Design Partnership Limited
Manchester City Council,Corporate Services,External repairs and maintenance for buildings,22.11.2018,5101005863,"25,000.00",G & J Seddon Ltd
Manchester City Council,Regeneration Finance,Electricity,22.11.2018,1906277946,"20,561.69",Npower
Manchester City Council,Hospitality + Trading Services,Electricity,22.11.2018,1906277953,"18,304.54",Npower
Manchester City Council,Regeneration Finance,Electricity,22.11.2018,1906277997,"17,655.37",Npower
Manchester City Council,Adult Social Care,Supporting People Payments,22.11.2018,5101005817,"17,445.33",Nacro
Manchester City Council,Adult Social Care,Bed and Breakfast Accommodation Expenditure,22.11.2018,5101005914,"16,124.00",Redacted Personal Information
Manchester City Council,Regeneration Finance,Third party payments to other Local Authorities,22.11.2018,5101005917,"15,750.00",Kirklees Council
Manchester City Council,Chief Executives,Hire of Equipment,22.11.2018,5101005816,"12,974.80",Universal Live
Manchester City Council,Regeneration Finance,Electricity,22.11.2018,1906278013,"12,637.00",Npower
Manchester City Council,Adult Social Care,Rents,22.11.2018,5101005814,"11,131.51",Manchester Housing Group Ltd
Manchester City Council,Adult Social Care,Bed and Breakfast Accommodation Expenditure,22.11.2018,5101005869,"10,983.00",Redacted Personal Information
Manchester City Council,Regeneration Finance,Electricity,22.11.2018,1906278009,"10,943.49",Npower
Manchester City Council,Hospitality + Trading Services,Hire of Machinery,22.11.2018,5101006200,"10,291.49",Readyplant Ltd
Manchester City Council,Corporate Services,Works and associated costs for Land and Buildings,22.11.2018,5101006048,"9,925.19",Manchester Working Ltd
Manchester City Council,Regeneration Finance,Electricity,22.11.2018,1906278000,"9,083.50",Npower
Manchester City Council,Adult Social Care,Bed and Breakfast Accommodation Expenditure,22.11.2018,5101006035,"8,898.00",Redacted Personal Information
Manchester City Council,Regeneration Finance,Water Service Charges - Metered,22.11.2018,1906277438,"8,705.15",Water Plus Limited
Manchester City Council,Adult Social Care,Payments for services,22.11.2018,5101005963,"8,536.57",Future Directions CIC
Manchester City Council,Adult Social Care,Supporting People Payments,22.11.2018,5101005817,"8,126.83",Nacro
Manchester City Council,Highways Services,Compensation Payments,22.11.2018,1906272452,"8,100.00",Rushton Hinchy Solicitors Ltd
Manchester City Council,Regeneration Finance,Water Service Charges - Metered,22.11.2018,1906277322,"8,095.01",Water Plus Limited
Manchester City Council,Manchester Leisure,Electricity,22.11.2018,1906278033,"7,980.12",Npower
Manchester City Council,Regeneration Finance,Electricity,22.11.2018,1906277985,"7,806.39",Npower
Manchester City Council,Manchester Leisure,Transport and Driver Hire,22.11.2018,5101005856,"7,765.52",Martinspeed Ltd
Manchester City Council,Corporate Services,Works and associated costs for Land and Buildings,22.11.2018,5101005870,"7,734.78",Manchester Working Ltd
Manchester City Council,Manchester Leisure,Electricity,22.11.2018,1906278030,"7,721.40",Npower
Manchester City Council,Manchester Leisure,Electricity,22.11.2018,1906278032,"7,716.60",Npower
Manchester City Council,Hospitality + Trading Services,Water Service Charges - Metered,22.11.2018,1906277326,"7,585.62",Water Plus Limited
Manchester City Council,Regeneration Finance,Grant and subscriptions awarded,22.11.2018,5101005941,"7,500.00",Southway Housing Trust
Manchester City Council,Hospitality + Trading Services,Electricity,22.11.2018,1906277972,"7,395.77",Npower
Manchester City Council,Manchester Leisure,Electricity,22.11.2018,1906278031,"7,355.54",Npower
Manchester City Council,Regeneration Finance,Electricity,22.11.2018,1906278012,"7,271.97",Npower
Manchester City Council,Regeneration Finance,Water Service Charges - Metered,22.11.2018,1906277391,"7,049.30",Water Plus Limited
Manchester City Council,Manchester Leisure,Electricity,22.11.2018,1906278029,"6,900.28",Npower
Manchester City Council,Corporate Services,Postage,22.11.2018,5101005443,"6,842.27",Royal Mail Group Plc
Manchester City Council,Corporate Services,External repairs and maintenance for buildings,22.11.2018,5101005871,"6,789.81",Manchester Working Ltd
Manchester City Council,Regeneration Finance,Electricity,22.11.2018,1906277967,"6,581.91",Npower
Manchester City Council,Hospitality + Trading Services,External repairs and maintenance for buildings,22.11.2018,5101006004,"6,576.00",Egan Reid Stationery Co Ltd
Manchester City Council,Regeneration Finance,Electricity,22.11.2018,1906278015,"6,454.35",Npower
Manchester City Council,Regeneration Finance,Electricity,22.11.2018,1906277973,"6,206.49",Npower
Manchester City Council,Childrens Services,Works and associated costs for Land and Buildings,22.11.2018,5101005695,"6,102.53",Laing O'Rourke Construction Ltd
